Workbook

Sheet Inserir_Dados
B6: Dados Gerais | H6: Entrada de Dados do Teste | K6: Entrada de Dados do
B7: Identificação do Poço: | D7: Poço de Bombeamento XXXXXXXXX | H7: de Bombeamento | K7: Teste de Recuperação
B8: Município/Localização: | D8: %%%%%%%%
B9: Data: | D9: &&&&&&& | H9: TEMPO (min) | I9: Rebaixamento (m) | K9: TEMPO (min) | L9: Recuperação (m)
B10: Coordenadas Lat:
B11: Coordenadas Long:
A12: # | C12: Vazão de Bombeamento (m³/h) = | D12: 250
A13: # | C13: Distância Poço/Piezômetro (m) = | D13: 20
A14: # | C14: Espessura do Aquitarde (m) = | D14: 90
A15: # | C15: Tempo de Bombeamento (min) = | D15: 4231
A16: # | C16: Nível Freático/Estático (m)= | D16: 23.5
A17: # | C17: Topo do Aquifero = | D17: 23.5
A18: # | C18: Base do Aquifero = | D18: 350
C19: Diâmetro do Revestimento (pol.) = | D19: 10
C20: Diâmetro de Perfuração (pol.) = | D20: 14
C21: Profundidade do Poço = | D21: 260
A22: # | B22: Campos de Preenchimento Obrigatório
A23: # | B23: Campos de Preenchimento Obrigatório para a Determinação de K

Sheet Recuperação_Jacob
C9: Determinação da Transmissividade | L9: Estas colunas realizam os cálculos da planilha, não as utilize
C10: Pelo Método de Recuperação de Jacob | L10: se não souber o que está fazendo
D12: IDENTIFICAÇÃO DO POÇO: | E12: =Inserir_Dados!D7 -> Poço de Bombeamento XXXXXXXXX | M12: Tempo de bombeamento = | N12: =+Inserir_Dados!D15 -> 4231
M13: Nível Estático do Poço = | N13: =+Inserir_Dados!D16 -> 23.5
B14: INSERIR DADOS DO POÇO E DO AQUÍFERO | F14: Localização: | G14: =Inserir_Dados!D8 -> %%%%%%%%
B15: Detalhes da Construção: | F15: Data: | G15: =Inserir_Dados!D9 -> &&&&&&& | L15: Tempo (min) | M15: ND (m) | N15: T/T’ | O15: S’ | P15: T
B16: Diâmetro do Revestimento: | C16: =+Inserir_Dados!D19 -> 10 | D16: Polegadas | F16: Coordenadas: | L16: =+Inserir_Dados!K10 -> 0 | M16: =+Inserir_Dados!L10 -> 0 | N16: =4231/L16 ->  | O16: =+M16-N13 -> -23.5 | P16: =((0.183*0.07/$C$30)*LOG10(($N$12+L16)/L16))-0.86 -> 
B17: Diâmetro de Perfuração: | C17: =Inserir_Dados!D20 -> 14 | D17: Polegadas | L17: =IF(M17>0,Inserir_Dados!K11,L16) -> 0 | M17: =+Inserir_Dados!L11 -> 0 | N17: =IF(M17>0,4231/L17,N16) ->  | O17: =IF(L17>L16,M17-$N$13,O16) -> -23.5 | P17: =((0.183*0.07/$C$30)*LOG10(($N$12+L17)/L17))-0.86 -> 
B18: Profundidade do Poço: | C18: =Inserir_Dados!D21 -> 260 | D18: metros | L18: =IF(M18>0,Inserir_Dados!K12,L17) -> 0 | M18: =+Inserir_Dados!L12 -> 0 | N18: =IF(M18>0,4231/L18,N17) ->  | O18: =IF(L18>L17,M18-$N$13,O17) -> -23.5
B19: Profundidades: | G19: RESULTADOS | L19: =IF(M19>0,Inserir_Dados!K13,L18) -> 0 | M19: =+Inserir_Dados!L13 -> 0 | O19: -23.5
B20: Nível Estático: | C20: =Inserir_Dados!D16 -> 23.5 | D20: metros | F20: B (espessura aqüífero) = | G20: =+C22-C21 -> 326.5 | H20: m | L20: =IF(M20>0,Inserir_Dados!K14,L19) -> 0 | M20: =+Inserir_Dados!L14 -> 0 | O20: -23.5
B21: Topo do Aquifero: | C21: =Inserir_Dados!D17 -> 23.5 | D21: metros | F21: Q (vazão) = | G21: =+Inserir_Dados!D12 -> 250 | H21: m³/h | L21: =IF(M21>0,Inserir_Dados!K15,L20) -> 0 | M21: =+Inserir_Dados!L15 -> 0 | O21: -23.5
B22: Base do Aquifero: | C22: =Inserir_Dados!D18 -> 350 | D22: metros | F22: R (dist. do piezômetro) = | G22: =+Inserir_Dados!D13 -> 20 | H22: m | L22: =IF(M22>0,Inserir_Dados!K16,L21) -> 0 | M22: =+Inserir_Dados!L16 -> 0 | O22: -23.5
B23: Espaço Anular: | F23: T (Transmissividade) = | G23: =+C30*3600 -> 52.27601823 | H23: m²/h | L23: =IF(M23>0,Inserir_Dados!K17,L22) -> 0 | M23: =+Inserir_Dados!L17 -> 0 | O23: -23.5
B24: Material do Pré-Filtro: | F24: k (permeabilidade) = | G24: =+G23/(C22-C21) -> 0.1601103162 | H24: m/h | L24: =IF(M24>0,Inserir_Dados!K18,L23) -> 0 | M24: =+Inserir_Dados!L18 -> 0 | O24: -23.5
B25: Selo do Poço: | L25: =IF(M25>0,Inserir_Dados!K19,L24) -> 0 | M25: =+Inserir_Dados!L19 -> 0 | O25: -23.5
B26: Material do Aqüífero: | L26: =IF(M26>0,Inserir_Dados!K20,L25) -> 0 | M26: =+Inserir_Dados!L20 -> 0 | O26: =IF(L26>L25,M26-$N$13,O25) -> -23.5
B27: Vazão de Bombeamento: | C27: =+Inserir_Dados!D12 -> 250 | D27: m³/h | L27: =IF(M27>0,Inserir_Dados!K21,L26) -> 0 | M27: =+Inserir_Dados!L21 -> 0 | O27: -23.5
L28: =IF(M28>0,Inserir_Dados!K22,L27) -> 0 | M28: =+Inserir_Dados!L22 -> 0 | O28: -23.5
L29: =IF(M29>0,Inserir_Dados!K23,L28) -> 0 | M29: =+Inserir_Dados!L23 -> 0 | O29: -23.5
B30: T = | C30: =10^((D30/1000)-10) -> 0.01452111618 | D30: 8162 | L30: =IF(M30>0,Inserir_Dados!K24,L29) -> 0 | M30: =+Inserir_Dados!L24 -> 0 | O30: -23.5
L31: =IF(M31>0,Inserir_Dados!K25,L30) -> 0 | M31: =+Inserir_Dados!L25 -> 0 | O31: -23.5
L32: =IF(M32>0,Inserir_Dados!K26,L31) -> 0 | M32: =+Inserir_Dados!L26 -> 0 | O32: -23.5
L33: =IF(M33>0,Inserir_Dados!K27,L32) -> 0 | M33: =+Inserir_Dados!L27 -> 0 | O33: -23.5
L34: =IF(M34>0,Inserir_Dados!K28,L33) -> 0 | M34: =+Inserir_Dados!L28 -> 0 | O34: -23.5
L35: =IF(M35>0,Inserir_Dados!K29,L34) -> 0 | M35: =+Inserir_Dados!L29 -> 0 | O35: -23.5
L36: =IF(M36>0,Inserir_Dados!K30,L35) -> 0 | M36: =+Inserir_Dados!L30 -> 0 | O36: -23.5
L37: =IF(M37>0,Inserir_Dados!K31,L36) -> 0 | M37: =+Inserir_Dados!L31 -> 0 | O37: -23.5
L38: =IF(M38>0,Inserir_Dados!K32,L37) -> 0 | M38: =+Inserir_Dados!L32 -> 0 | O38: -23.5
L39: =IF(M39>0,Inserir_Dados!K33,L38) -> 0 | M39: =+Inserir_Dados!L33 -> 0 | O39: -23.5
L40: =IF(M40>0,Inserir_Dados!K34,L39) -> 0 | M40: =+Inserir_Dados!L34 -> 0 | O40: -23.5
L41: =IF(M41>0,Inserir_Dados!K35,L40) -> 0 | M41: =+Inserir_Dados!L35 -> 0 | O41: -23.5 | P41: =((0.183*0.07/$C$30)*LOG10(($N$12+L41)/L41))-0.86 -> 
L42: =IF(M42>0,Inserir_Dados!K36,L41) -> 0 | M42: =+Inserir_Dados!L36 -> 0 | O42: -23.5
L43: =IF(M43>0,Inserir_Dados!K37,L42) -> 0 | M43: =+Inserir_Dados!L37 -> 0 | O43: -23.5
D44: 20 | L44: =IF(M44>0,Inserir_Dados!K38,L43) -> 0 | M44: =+Inserir_Dados!L38 -> 0 | O44: -23.5
L45: =IF(M45>0,Inserir_Dados!K39,L44) -> 0 | M45: =+Inserir_Dados!L39 -> 0 | O45: -23.5
L46: =IF(M46>0,Inserir_Dados!K40,L45) -> 0 | M46: =+Inserir_Dados!L40 -> 0 | O46: -23.5
L47: =IF(M47>0,Inserir_Dados!K41,L46) -> 0 | M47: =+Inserir_Dados!L41 -> 0 | O47: -23.5
L48: =IF(M48>0,Inserir_Dados!K42,L47) -> 0 | M48: =+Inserir_Dados!L42 -> 0 | O48: -23.5
L49: =IF(M49>0,Inserir_Dados!K43,L48) -> 0 | M49: =+Inserir_Dados!L43 -> 0 | O49: -23.5
L50: =IF(M50>0,Inserir_Dados!K44,L49) -> 0 | M50: =+Inserir_Dados!L44 -> 0 | O50: -23.5
L51: =IF(M51>0,Inserir_Dados!K45,L50) -> 0 | M51: =+Inserir_Dados!L45 -> 0 | O51: -23.5
L52: =IF(M52>0,Inserir_Dados!K46,L51) -> 0 | M52: =+Inserir_Dados!L46 -> 0 | O52: -23.5
L53: =IF(M53>0,Inserir_Dados!K47,L52) -> 0 | M53: =+Inserir_Dados!L47 -> 0 | O53: -23.5
L54: =IF(M54>0,Inserir_Dados!K48,L53) -> 0 | M54: =+Inserir_Dados!L48 -> 0 | O54: -23.5
L55: =IF(M55>0,Inserir_Dados!K49,L54) -> 0 | M55: =+Inserir_Dados!L49 -> 0 | O55: -23.5
L56: =IF(M56>0,Inserir_Dados!K50,L55) -> 0 | M56: =+Inserir_Dados!L50 -> 0 | O56: -23.5
L57: =IF(M57>0,Inserir_Dados!K51,L56) -> 0 | M57: =+Inserir_Dados!L51 -> 0 | O57: -23.5
L58: =IF(M58>0,Inserir_Dados!K52,L57) -> 0 | M58: =+Inserir_Dados!L52 -> 0 | O58: -23.5
L59: =IF(M59>0,Inserir_Dados!K53,L58) -> 0 | M59: =+Inserir_Dados!L53 -> 0 | O59: -23.5
L60: =IF(M60>0,Inserir_Dados!K54,L59) -> 0 | M60: =+Inserir_Dados!L54 -> 0 | O60: -23.5
L61: =IF(M61>0,Inserir_Dados!K55,L60) -> 0 | M61: =+Inserir_Dados!L55 -> 0 | O61: -23.5
L62: =IF(M62>0,Inserir_Dados!K56,L61) -> 0 | M62: =+Inserir_Dados!L56 -> 0 | O62: -23.5
L63: =IF(M63>0,Inserir_Dados!K57,L62) -> 0 | M63: =+Inserir_Dados!L57 -> 0 | O63: -23.5
L64: =IF(M64>0,Inserir_Dados!K58,L63) -> 0 | M64: =+Inserir_Dados!L58 -> 0 | O64: -23.5
L65: =IF(M65>0,Inserir_Dados!K59,L64) -> 0 | M65: =+Inserir_Dados!L59 -> 0 | O65: -23.5
L66: =IF(M66>0,Inserir_Dados!K60,L65) -> 0 | M66: =+Inserir_Dados!L60 -> 0 | O66: -23.5
L67: =IF(M67>0,Inserir_Dados!K61,L66) -> 0 | M67: =+Inserir_Dados!L61 -> 0 | O67: -23.5
L68: =IF(M68>0,Inserir_Dados!K62,L67) -> 0 | M68: =+Inserir_Dados!L62 -> 0 | O68: -23.5
L69: =IF(M69>0,Inserir_Dados!K63,L68) -> 0 | M69: =+Inserir_Dados!L63 -> 0 | O69: -23.5
L70: =IF(M70>0,Inserir_Dados!K64,L69) -> 0 | M70: =+Inserir_Dados!L64 -> 0 | O70: -23.5
L71: =IF(M71>0,Inserir_Dados!K65,L70) -> 0 | M71: =+Inserir_Dados!L65 -> 0 | O71: -23.5
L72: =IF(M72>0,Inserir_Dados!K66,L71) -> 0 | M72: =+Inserir_Dados!L66 -> 0 | O72: -23.5
L73: =IF(M73>0,Inserir_Dados!K67,L72) -> 0 | M73: =+Inserir_Dados!L67 -> 0 | O73: -23.5
L74: =IF(M74>0,Inserir_Dados!K68,L73) -> 0 | M74: =+Inserir_Dados!L68 -> 0 | O74: -23.5
L75: =IF(M75>0,Inserir_Dados!K69,L74) -> 0 | M75: =+Inserir_Dados!L69 -> 0 | O75: -23.5
L76: =IF(M76>0,Inserir_Dados!K70,L75) -> 0 | M76: =+Inserir_Dados!L70 -> 0 | O76: -23.5
L77: =IF(M77>0,Inserir_Dados!K71,L76) -> 0 | M77: =+Inserir_Dados!L71 -> 0 | O77: -23.5
L78: =IF(M78>0,Inserir_Dados!K72,L77) -> 0 | M78: =+Inserir_Dados!L72 -> 0 | O78: -23.5
L79: =IF(M79>0,Inserir_Dados!K73,L78) -> 0 | M79: =+Inserir_Dados!L73 -> 0 | O79: -23.5
L80: =IF(M80>0,Inserir_Dados!K74,L79) -> 0 | M80: =+Inserir_Dados!L74 -> 0 | O80: -23.5
L81: =IF(M81>0,Inserir_Dados!K75,L80) -> 0 | M81: =+Inserir_Dados!L75 -> 0 | O81: -23.5
L82: =IF(M82>0,Inserir_Dados!K76,L81) -> 0 | M82: =+Inserir_Dados!L76 -> 0 | N82: =IF(M82>0,4231/L82,N81) ->  | O82: =IF(L82>L81,M82-$N$13,O81) -> -23.5
L83: =IF(M83>0,Inserir_Dados!K77,L82) -> 0 | M83: =+Inserir_Dados!L77 -> 0 | O83: -23.5
L84: =IF(M84>0,Inserir_Dados!K78,L83) -> 0 | M84: =+Inserir_Dados!L78 -> 0 | O84: -23.5
L85: =IF(M85>0,Inserir_Dados!K79,L84) -> 0 | M85: =+Inserir_Dados!L79 -> 0 | O85: -23.5
L86: =IF(M86>0,Inserir_Dados!K80,L85) -> 0 | M86: =+Inserir_Dados!L80 -> 0 | O86: -23.5
L87: =IF(M87>0,Inserir_Dados!K81,L86) -> 0 | M87: =+Inserir_Dados!L81 -> 0 | O87: -23.5
L88: =IF(M88>0,Inserir_Dados!K82,L87) -> 0 | M88: =+Inserir_Dados!L82 -> 0 | O88: -23.5
L89: =IF(M89>0,Inserir_Dados!K83,L88) -> 0 | M89: =+Inserir_Dados!L83 -> 0 | O89: -23.5
L90: =IF(M90>0,Inserir_Dados!K84,L89) -> 0 | M90: =+Inserir_Dados!L84 -> 0 | O90: -23.5
L91: =IF(M91>0,Inserir_Dados!K85,L90) -> 0 | M91: =+Inserir_Dados!L85 -> 0 | O91: -23.5
L92: =IF(M92>0,Inserir_Dados!K86,L91) -> 0 | M92: =+Inserir_Dados!L86 -> 0 | O92: -23.5
L93: =IF(M93>0,Inserir_Dados!K87,L92) -> 0 | M93: =+Inserir_Dados!L87 -> 0 | O93: -23.5
L94: =IF(M94>0,Inserir_Dados!K88,L93) -> 0 | M94: =+Inserir_Dados!L88 -> 0 | O94: -23.5
L95: =IF(M95>0,Inserir_Dados!K89,L94) -> 0 | M95: =+Inserir_Dados!L89 -> 0 | O95: -23.5
L96: =IF(M96>0,Inserir_Dados!K90,L95) -> 0 | M96: =+Inserir_Dados!L90 -> 0 | O96: -23.5
L97: =IF(M97>0,Inserir_Dados!K91,L96) -> 0 | M97: =+Inserir_Dados!L91 -> 0 | O97: -23.5
L98: =IF(M98>0,Inserir_Dados!K92,L97) -> 0 | M98: =+Inserir_Dados!L92 -> 0 | O98: -23.5
L99: =IF(M99>0,Inserir_Dados!K93,L98) -> 0 | M99: =+Inserir_Dados!L93 -> 0 | O99: -23.5
L100: =IF(M100>0,Inserir_Dados!K94,L99) -> 0 | M100: =+Inserir_Dados!L94 -> 0 | O100: -23.5
L101: =IF(M101>0,Inserir_Dados!K95,L100) -> 0 | M101: =+Inserir_Dados!L95 -> 0 | O101: -23.5
L102: =IF(M102>0,Inserir_Dados!K96,L101) -> 0 | M102: =+Inserir_Dados!L96 -> 0 | O102: -23.5
L103: =IF(M103>0,Inserir_Dados!K97,L102) -> 0 | M103: =+Inserir_Dados!L97 -> 0 | O103: -23.5
L104: =IF(M104>0,Inserir_Dados!K98,L103) -> 0 | M104: =+Inserir_Dados!L98 -> 0 | O104: -23.5
L105: =IF(M105>0,Inserir_Dados!K99,L104) -> 0 | M105: =+Inserir_Dados!L99 -> 0 | O105: -23.5 | P105: =((0.183*0.07/$C$30)*LOG10(($N$12+L105)/L105))-0.86 -> 
L106: =IF(M106>0,Inserir_Dados!K100,L105) -> 0 | M106: =+Inserir_Dados!L100 -> 0 | O106: -23.5
L107: =IF(M107>0,Inserir_Dados!K101,L106) -> 0 | M107: =+Inserir_Dados!L101 -> 0 | O107: -23.5
L108: =IF(M108>0,Inserir_Dados!K102,L107) -> 0 | M108: =+Inserir_Dados!L102 -> 0 | O108: -23.5
L109: =IF(M109>0,Inserir_Dados!K103,L108) -> 0 | M109: =+Inserir_Dados!L103 -> 0 | O109: -23.5
L110: =IF(M110>0,Inserir_Dados!K104,L109) -> 0 | M110: =+Inserir_Dados!L104 -> 0 | O110: -23.5
L111: =IF(M111>0,Inserir_Dados!K105,L110) -> 0 | M111: =+Inserir_Dados!L105 -> 0 | O111: -23.5
L112: =IF(M112>0,Inserir_Dados!K106,L111) -> 0 | M112: =+Inserir_Dados!L106 -> 0 | O112: -23.5
L113: =IF(M113>0,Inserir_Dados!K107,L112) -> 0 | M113: =+Inserir_Dados!L107 -> 0 | O113: -23.5
L114: =IF(M114>0,Inserir_Dados!K108,L113) -> 0 | M114: =+Inserir_Dados!L108 -> 0 | O114: -23.5
L115: =IF(M115>0,Inserir_Dados!K109,L114) -> 0 | M115: =+Inserir_Dados!L109 -> 0 | O115: -23.5
L116: =IF(M116>0,Inserir_Dados!K110,L115) -> 0 | M116: =+Inserir_Dados!L110 -> 0 | O116: -23.5
L117: =IF(M117>0,Inserir_Dados!K111,L116) -> 0 | M117: =+Inserir_Dados!L111 -> 0 | O117: -23.5
L118: =IF(M118>0,Inserir_Dados!K112,L117) -> 0 | M118: =+Inserir_Dados!L112 -> 0 | O118: -23.5
L119: =IF(M119>0,Inserir_Dados!K113,L118) -> 0 | M119: =+Inserir_Dados!L113 -> 0 | O119: -23.5
L120: =IF(M120>0,Inserir_Dados!K114,L119) -> 0 | M120: =+Inserir_Dados!L114 -> 0 | O120: -23.5
L121: =IF(M121>0,Inserir_Dados!K115,L120) -> 0 | M121: =+Inserir_Dados!L115 -> 0 | O121: -23.5
L122: =IF(M122>0,Inserir_Dados!K116,L121) -> 0 | M122: =+Inserir_Dados!L116 -> 0 | O122: -23.5
L123: =IF(M123>0,Inserir_Dados!K117,L122) -> 0 | M123: =+Inserir_Dados!L117 -> 0 | O123: -23.5
L124: =IF(M124>0,Inserir_Dados!K118,L123) -> 0 | M124: =+Inserir_Dados!L118 -> 0 | O124: -23.5
L125: =IF(M125>0,Inserir_Dados!K119,L124) -> 0 | M125: =+Inserir_Dados!L119 -> 0 | O125: -23.5
L126: =IF(M126>0,Inserir_Dados!K120,L125) -> 0 | M126: =+Inserir_Dados!L120 -> 0 | O126: -23.5
L127: =IF(M127>0,Inserir_Dados!K121,L126) -> 0 | M127: =+Inserir_Dados!L121 -> 0 | O127: -23.5
L128: =IF(M128>0,Inserir_Dados!K122,L127) -> 0 | M128: =+Inserir_Dados!L122 -> 0 | O128: -23.5
L129: =IF(M129>0,Inserir_Dados!K123,L128) -> 0 | M129: =+Inserir_Dados!L123 -> 0 | O129: -23.5
L130: =IF(M130>0,Inserir_Dados!K124,L129) -> 0 | M130: =+Inserir_Dados!L124 -> 0 | O130: -23.5
L131: =IF(M131>0,Inserir_Dados!K125,L130) -> 0 | M131: =+Inserir_Dados!L125 -> 0 | O131: -23.5
L132: =IF(M132>0,Inserir_Dados!K126,L131) -> 0 | M132: =+Inserir_Dados!L126 -> 0 | O132: -23.5
L133: =IF(M133>0,Inserir_Dados!K127,L132) -> 0 | M133: =+Inserir_Dados!L127 -> 0 | O133: -23.5
L134: =IF(M134>0,Inserir_Dados!K128,L133) -> 0 | M134: =+Inserir_Dados!L128 -> 0 | O134: -23.5
L135: =IF(M135>0,Inserir_Dados!K129,L134) -> 0 | M135: =+Inserir_Dados!L129 -> 0 | O135: -23.5
L136: =IF(M136>0,Inserir_Dados!K130,L135) -> 0 | M136: =+Inserir_Dados!L130 -> 0 | O136: -23.5
L137: =IF(M137>0,Inserir_Dados!K131,L136) -> 0 | M137: =+Inserir_Dados!L131 -> 0 | O137: -23.5
L138: =IF(M138>0,Inserir_Dados!K132,L137) -> 0 | M138: =+Inserir_Dados!L132 -> 0 | O138: -23.5
L139: =IF(M139>0,Inserir_Dados!K133,L138) -> 0 | M139: =+Inserir_Dados!L133 -> 0 | O139: -23.5
L140: =IF(M140>0,Inserir_Dados!K134,L139) -> 0 | M140: =+Inserir_Dados!L134 -> 0 | O140: -23.5
L141: =IF(M141>0,Inserir_Dados!K135,L140) -> 0 | M141: =+Inserir_Dados!L135 -> 0 | O141: -23.5
L142: =IF(M142>0,Inserir_Dados!K136,L141) -> 0 | M142: =+Inserir_Dados!L136 -> 0 | O142: -23.5
L143: =IF(M143>0,Inserir_Dados!K137,L142) -> 0 | M143: =+Inserir_Dados!L137 -> 0 | O143: -23.5
L144: =IF(M144>0,Inserir_Dados!K138,L143) -> 0 | M144: =+Inserir_Dados!L138 -> 0 | O144: -23.5
L145: =IF(M145>0,Inserir_Dados!K139,L144) -> 0 | M145: =+Inserir_Dados!L139 -> 0 | O145: -23.5
L146: =IF(M146>0,Inserir_Dados!K140,L145) -> 0 | M146: =+Inserir_Dados!L140 -> 0 | N146: =IF(M146>0,4231/L146,N145) ->  | O146: =IF(L146>L145,M146-$N$13,O145) -> -23.5
L147: =IF(M147>0,Inserir_Dados!K141,L146) -> 0 | M147: =+Inserir_Dados!L141 -> 0 | O147: -23.5
L148: =IF(M148>0,Inserir_Dados!K142,L147) -> 0 | M148: =+Inserir_Dados!L142 -> 0 | O148: -23.5
L149: =IF(M149>0,Inserir_Dados!K143,L148) -> 0 | M149: =+Inserir_Dados!L143 -> 0 | O149: -23.5
L150: =IF(M150>0,Inserir_Dados!K144,L149) -> 0 | M150: =+Inserir_Dados!L144 -> 0 | O150: -23.5
L151: =IF(M151>0,Inserir_Dados!K145,L150) -> 0 | M151: =+Inserir_Dados!L145 -> 0 | O151: -23.5
L152: =IF(M152>0,Inserir_Dados!K146,L151) -> 0 | M152: =+Inserir_Dados!L146 -> 0 | O152: -23.5
L153: =IF(M153>0,Inserir_Dados!K147,L152) -> 0 | M153: =+Inserir_Dados!L147 -> 0 | O153: -23.5
L154: =IF(M154>0,Inserir_Dados!K148,L153) -> 0 | M154: =+Inserir_Dados!L148 -> 0 | O154: -23.5
L155: =IF(M155>0,Inserir_Dados!K149,L154) -> 0 | M155: =+Inserir_Dados!L149 -> 0 | O155: -23.5
L156: =IF(M156>0,Inserir_Dados!K150,L155) -> 0 | M156: =+Inserir_Dados!L150 -> 0 | O156: -23.5
L157: =IF(M157>0,Inserir_Dados!K151,L156) -> 0 | M157: =+Inserir_Dados!L151 -> 0 | O157: -23.5
L158: =IF(M158>0,Inserir_Dados!K152,L157) -> 0 | M158: =+Inserir_Dados!L152 -> 0 | O158: -23.5
L159: =IF(M159>0,Inserir_Dados!K153,L158) -> 0 | M159: =+Inserir_Dados!L153 -> 0 | O159: -23.5
L160: =IF(M160>0,Inserir_Dados!K154,L159) -> 0 | M160: =+Inserir_Dados!L154 -> 0 | O160: -23.5
L161: =IF(M161>0,Inserir_Dados!K155,L160) -> 0 | M161: =+Inserir_Dados!L155 -> 0 | O161: -23.5
L162: =IF(M162>0,Inserir_Dados!K156,L161) -> 0 | M162: =+Inserir_Dados!L156 -> 0 | O162: -23.5
L163: =IF(M163>0,Inserir_Dados!K157,L162) -> 0 | M163: =+Inserir_Dados!L157 -> 0 | O163: -23.5
L164: =IF(M164>0,Inserir_Dados!K158,L163) -> 0 | M164: =+Inserir_Dados!L158 -> 0 | O164: -23.5
L165: =IF(M165>0,Inserir_Dados!K159,L164) -> 0 | M165: =+Inserir_Dados!L159 -> 0 | O165: -23.5
L166: =IF(M166>0,Inserir_Dados!K160,L165) -> 0 | M166: =+Inserir_Dados!L160 -> 0 | O166: -23.5
L167: =IF(M167>0,Inserir_Dados!K161,L166) -> 0 | M167: =+Inserir_Dados!L161 -> 0 | O167: -23.5
L168: =IF(M168>0,Inserir_Dados!K162,L167) -> 0 | M168: =+Inserir_Dados!L162 -> 0 | O168: -23.5
L169: =IF(M169>0,Inserir_Dados!K163,L168) -> 0 | M169: =+Inserir_Dados!L163 -> 0 | O169: -23.5 | P169: =((0.183*0.07/$C$30)*LOG10(($N$12+L169)/L169))-0.86 -> 
L170: =IF(M170>0,Inserir_Dados!K164,L169) -> 0 | M170: =+Inserir_Dados!L164 -> 0 | O170: -23.5
L171: =IF(M171>0,Inserir_Dados!K165,L170) -> 0 | M171: =+Inserir_Dados!L165 -> 0 | O171: -23.5
L172: =IF(M172>0,Inserir_Dados!K166,L171) -> 0 | M172: =+Inserir_Dados!L166 -> 0 | O172: -23.5
L173: =IF(M173>0,Inserir_Dados!K167,L172) -> 0 | M173: =+Inserir_Dados!L167 -> 0 | O173: -23.5
L174: =IF(M174>0,Inserir_Dados!K168,L173) -> 0 | M174: =+Inserir_Dados!L168 -> 0 | O174: -23.5
L175: =IF(M175>0,Inserir_Dados!K169,L174) -> 0 | M175: =+Inserir_Dados!L169 -> 0 | O175: -23.5
L176: =IF(M176>0,Inserir_Dados!K170,L175) -> 0 | M176: =+Inserir_Dados!L170 -> 0 | O176: -23.5
L177: =IF(M177>0,Inserir_Dados!K171,L176) -> 0 | M177: =+Inserir_Dados!L171 -> 0 | O177: -23.5
L178: =IF(M178>0,Inserir_Dados!K172,L177) -> 0 | M178: =+Inserir_Dados!L172 -> 0 | O178: -23.5
L179: =IF(M179>0,Inserir_Dados!K173,L178) -> 0 | M179: =+Inserir_Dados!L173 -> 0 | O179: -23.5
L180: =IF(M180>0,Inserir_Dados!K174,L179) -> 0 | M180: =+Inserir_Dados!L174 -> 0 | O180: -23.5
L181: =IF(M181>0,Inserir_Dados!K175,L180) -> 0 | M181: =+Inserir_Dados!L175 -> 0 | O181: -23.5
L182: =IF(M182>0,Inserir_Dados!K176,L181) -> 0 | M182: =+Inserir_Dados!L176 -> 0 | O182: -23.5
L183: =IF(M183>0,Inserir_Dados!K177,L182) -> 0 | M183: =+Inserir_Dados!L177 -> 0 | O183: -23.5
L184: =IF(M184>0,Inserir_Dados!K178,L183) -> 0 | M184: =+Inserir_Dados!L178 -> 0 | O184: -23.5
L185: =IF(M185>0,Inserir_Dados!K179,L184) -> 0 | M185: =+Inserir_Dados!L179 -> 0 | O185: -23.5
L186: =IF(M186>0,Inserir_Dados!K180,L185) -> 0 | M186: =+Inserir_Dados!L180 -> 0 | O186: -23.5
L187: =IF(M187>0,Inserir_Dados!K181,L186) -> 0 | M187: =+Inserir_Dados!L181 -> 0 | O187: -23.5
L188: =IF(M188>0,Inserir_Dados!K182,L187) -> 0 | M188: =+Inserir_Dados!L182 -> 0 | O188: -23.5
L189: =IF(M189>0,Inserir_Dados!K183,L188) -> 0 | M189: =+Inserir_Dados!L183 -> 0 | O189: -23.5
L190: =IF(M190>0,Inserir_Dados!K184,L189) -> 0 | M190: =+Inserir_Dados!L184 -> 0 | O190: -23.5
L191: =IF(M191>0,Inserir_Dados!K185,L190) -> 0 | M191: =+Inserir_Dados!L185 -> 0 | O191: -23.5
L192: =IF(M192>0,Inserir_Dados!K186,L191) -> 0 | M192: =+Inserir_Dados!L186 -> 0 | O192: -23.5
L193: =IF(M193>0,Inserir_Dados!K187,L192) -> 0 | M193: =+Inserir_Dados!L187 -> 0 | O193: -23.5
L194: =IF(M194>0,Inserir_Dados!K188,L193) -> 0 | M194: =+Inserir_Dados!L188 -> 0 | O194: -23.5
L195: =IF(M195>0,Inserir_Dados!K189,L194) -> 0 | M195: =+Inserir_Dados!L189 -> 0 | O195: -23.5
L196: =IF(M196>0,Inserir_Dados!K190,L195) -> 0 | M196: =+Inserir_Dados!L190 -> 0 | O196: -23.5
L197: =IF(M197>0,Inserir_Dados!K191,L196) -> 0 | M197: =+Inserir_Dados!L191 -> 0 | O197: -23.5
L198: =IF(M198>0,Inserir_Dados!K192,L197) -> 0 | M198: =+Inserir_Dados!L192 -> 0 | O198: -23.5
L199: =IF(M199>0,Inserir_Dados!K193,L198) -> 0 | M199: =+Inserir_Dados!L193 -> 0 | O199: -23.5
L200: =IF(M200>0,Inserir_Dados!K194,L199) -> 0 | M200: =+Inserir_Dados!L194 -> 0 | O200: -23.5
L201: =IF(M201>0,Inserir_Dados!K195,L200) -> 0 | M201: =+Inserir_Dados!L195 -> 0 | O201: -23.5
L202: =IF(M202>0,Inserir_Dados!K196,L201) -> 0 | M202: =+Inserir_Dados!L196 -> 0 | O202: -23.5
L203: =IF(M203>0,Inserir_Dados!K197,L202) -> 0 | M203: =+Inserir_Dados!L197 -> 0 | O203: -23.5
L204: =IF(M204>0,Inserir_Dados!K198,L203) -> 0 | M204: =+Inserir_Dados!L198 -> 0 | O204: -23.5
L205: =IF(M205>0,Inserir_Dados!K199,L204) -> 0 | M205: =+Inserir_Dados!L199 -> 0 | O205: -23.5
L206: =IF(M206>0,Inserir_Dados!K200,L205) -> 0 | M206: =+Inserir_Dados!L200 -> 0 | O206: -23.5
L207: =IF(M207>0,Inserir_Dados!K201,L206) -> 0 | M207: =+Inserir_Dados!L201 -> 0 | O207: -23.5
L208: =IF(M208>0,Inserir_Dados!K202,L207) -> 0 | M208: =+Inserir_Dados!L202 -> 0 | O208: -23.5
L209: =IF(M209>0,Inserir_Dados!K203,L208) -> 0 | M209: =+Inserir_Dados!L203 -> 0 | O209: -23.5
... 2 more rows

Sheet Cooper_Jacob
C10: Determinação da Transmissividade e do Coeficiente | L10: Estas colunas realizam os cálculos da planilha, não as utilize
C11: de Armazenamento Pelo Método de Cooper-Jacob | L11: se não souber o que está fazendo
D13: IDENTIFICAÇÃO DO POÇO: | E13: =Inserir_Dados!D7 -> Poço de Bombeamento XXXXXXXXX
B15: INSERIR DADOS DO POÇO E DO AQUÍFERO | F15: Localização: | G15: =Inserir_Dados!D8 -> %%%%%%%% | L15: Tempo | M15: Rebaixamento | N15: Rebaixamento
B16: Detalhes da Construção: | F16: Data: | G16: =Inserir_Dados!D9 -> &&&&&&& | M16: s (m) | N16: s' (m)
B17: Diâmetro do Revestimento: | C17: =Inserir_Dados!D19 -> 10 | D17: Polegadas | F17: Coordenadas | G17: =Inserir_Dados!D10 -> 0 | L17: =(Inserir_Dados!H10*60) -> 0 | M17: =+Inserir_Dados!I10 -> 0 | N17: =+((0.07/(4*PI()*$C$31))*LN((2.25*$C$31*(L17))/((Inserir_Dados!$D$13^2)*$G$31))) -> 
B18: Diâmetro de Perfuração: | C18: =Inserir_Dados!D20 -> 14 | D18: Polegadas | G18: =Inserir_Dados!D11 -> 0 | L18: =IF(M18>0,Inserir_Dados!H11*60,L17) -> 0 | M18: =+Inserir_Dados!I11 -> 0 | N18: =+((0.07/(4*PI()*$C$31))*LN((2.25*$C$31*(L18))/((Inserir_Dados!$D$13^2)*$G$31))) -> 
B19: Profundidade do Poço: | C19: =Inserir_Dados!D21 -> 260 | D19: metros | L19: =IF(M19>0,Inserir_Dados!H12*60,L18) -> 0 | M19: =+Inserir_Dados!I12 -> 0 | N19: =+((0.07/(4*PI()*$C$31))*LN((2.25*$C$31*(L19))/((Inserir_Dados!$D$13^2)*$G$31))) -> 
B20: Profundidades: | G20: RESULTADOS | L20: =IF(M20>0,Inserir_Dados!H13*60,L19) -> 0 | M20: =+Inserir_Dados!I13 -> 0 | N20: =+((0.07/(4*PI()*$C$31))*LN((2.25*$C$31*(L20))/((Inserir_Dados!$D$13^2)*$G$31))) -> 
B21: Nível Estático: | C21: =Inserir_Dados!D16 -> 23.5 | D21: metros | F21: B (espessura aqüífero) = | G21: =+C23-C22 -> 326.5 | H21: m | L21: =IF(M21>0,Inserir_Dados!H14*60,L20) -> 0 | M21: =+Inserir_Dados!I14 -> 0 | N21: =+((0.07/(4*PI()*$C$31))*LN((2.25*$C$31*(L21))/((Inserir_Dados!$D$13^2)*$G$31))) -> 
B22: Topo do Aquifero: | C22: =Inserir_Dados!D17 -> 23.5 | D22: metros | F22: Q (vazão) = | G22: =+Inserir_Dados!D12 -> 250 | H22: m³/h | L22: =IF(M22>0,Inserir_Dados!H15*60,L21) -> 0 | M22: =+Inserir_Dados!I15 -> 0 | N22: =+((0.07/(4*PI()*$C$31))*LN((2.25*$C$31*(L22))/((Inserir_Dados!$D$13^2)*$G$31))) -> 
B23: Base do Aquifero: | C23: =Inserir_Dados!D18 -> 350 | D23: metros | F23: R (dist. do piezômetro) = | G23: =+Inserir_Dados!D13 -> 20 | H23: m | L23: =IF(M23>0,Inserir_Dados!H16*60,L22) -> 0 | M23: =+Inserir_Dados!I16 -> 0 | N23: =+((0.07/(4*PI()*$C$31))*LN((2.25*$C$31*(L23))/((Inserir_Dados!$D$13^2)*$G$31))) -> 
B24: Espaço Anular: | F24: T (Transmissividade) = | G24: =+C31*3600 -> 45.95179712 | H24: m²/h | L24: =IF(M24>0,Inserir_Dados!H17*60,L23) -> 0 | M24: =+Inserir_Dados!I17 -> 0 | N24: =+((0.07/(4*PI()*$C$31))*LN((2.25*$C$31*(L24))/((Inserir_Dados!$D$13^2)*$G$31))) -> 
B25: Material do Pré-Filtro: | F25: k (permeabilidade) = | G25: =G24/(C23-C22) -> 0.1407405731 | H25: m/h | L25: =IF(M25>0,Inserir_Dados!H18*60,L24) -> 0 | M25: =+Inserir_Dados!I18 -> 0 | N25: =+((0.07/(4*PI()*$C$31))*LN((2.25*$C$31*(L25))/((Inserir_Dados!$D$13^2)*$G$31))) -> 
B26: Selo do Poço: | F26: S (coef. de armazenamento) = | G26: =+G31 -> 0.0001629296033 | L26: =IF(M26>0,Inserir_Dados!H19*60,L25) -> 0 | M26: =+Inserir_Dados!I19 -> 0 | N26: =+((0.07/(4*PI()*$C$31))*LN((2.25*$C$31*(L26))/((Inserir_Dados!$D$13^2)*$G$31))) -> 
B27: Material da Formação: | L27: =IF(M27>0,Inserir_Dados!H20*60,L26) -> 0 | M27: =+Inserir_Dados!I20 -> 0 | N27: =+((0.07/(4*PI()*$C$31))*LN((2.25*$C$31*(L27))/((Inserir_Dados!$D$13^2)*$G$31))) -> 
B28: Vazão de Bombeamento: | C28: =Inserir_Dados!D12 -> 250 | D28: m³/h | L28: =IF(M28>0,Inserir_Dados!H21*60,L27) -> 0 | M28: =+Inserir_Dados!I21 -> 0 | N28: =+((0.07/(4*PI()*$C$31))*LN((2.25*$C$31*(L28))/((Inserir_Dados!$D$13^2)*$G$31))) -> 
L29: =IF(M29>0,Inserir_Dados!H22*60,L28) -> 0 | M29: =+Inserir_Dados!I22 -> 0 | N29: =+((0.07/(4*PI()*$C$31))*LN((2.25*$C$31*(L29))/((Inserir_Dados!$D$13^2)*$G$31))) -> 
L30: =IF(M30>0,Inserir_Dados!H23*60,L29) -> 0 | M30: =+Inserir_Dados!I23 -> 0 | N30: =+((0.07/(4*PI()*$C$31))*LN((2.25*$C$31*(L30))/((Inserir_Dados!$D$13^2)*$G$31))) -> 
B31: T = | C31: =10^((D31/1000)-10) -> 0.01276438809 | D31: 8106 | F31: S | G31: =10^((I31/1000)-10) -> 0.0001629296033 | I31: 6212 | L31: =IF(M31>0,Inserir_Dados!H24*60,L30) -> 0 | M31: =+Inserir_Dados!I24 -> 0 | N31: =+((0.07/(4*PI()*$C$31))*LN((2.25*$C$31*(L31))/((Inserir_Dados!$D$13^2)*$G$31))) -> 
L32: =IF(M32>0,Inserir_Dados!H25*60,L31) -> 0 | M32: =+Inserir_Dados!I25 -> 0 | N32: =+((0.07/(4*PI()*$C$31))*LN((2.25*$C$31*(L32))/((Inserir_Dados!$D$13^2)*$G$31))) -> 
L33: =IF(M33>0,Inserir_Dados!H26*60,L32) -> 0 | M33: =+Inserir_Dados!I26 -> 0 | N33: =+((0.07/(4*PI()*$C$31))*LN((2.25*$C$31*(L33))/((Inserir_Dados!$D$13^2)*$G$31))) -> 
C34: =+C31*3600*24 -> 1102.843131 | L34: =IF(M34>0,Inserir_Dados!H27*60,L33) -> 0 | M34: =+Inserir_Dados!I27 -> 0 | N34: =+((0.07/(4*PI()*$C$31))*LN((2.25*$C$31*(L34))/((Inserir_Dados!$D$13^2)*$G$31))) -> 
L35: =IF(M35>0,Inserir_Dados!H28*60,L34) -> 0 | M35: =+Inserir_Dados!I28 -> 0 | N35: =+((0.07/(4*PI()*$C$31))*LN((2.25*$C$31*(L35))/((Inserir_Dados!$D$13^2)*$G$31))) -> 
L36: =IF(M36>0,Inserir_Dados!H29*60,L35) -> 0 | M36: =+Inserir_Dados!I29 -> 0 | N36: =+((0.07/(4*PI()*$C$31))*LN((2.25*$C$31*(L36))/((Inserir_Dados!$D$13^2)*$G$31))) -> 
L37: =IF(M37>0,Inserir_Dados!H30*60,L36) -> 0 | M37: =+Inserir_Dados!I30 -> 0 | N37: =+((0.07/(4*PI()*$C$31))*LN((2.25*$C$31*(L37))/((Inserir_Dados!$D$13^2)*$G$31))) -> 
L38: =IF(M38>0,Inserir_Dados!H31*60,L37) -> 0 | M38: =+Inserir_Dados!I31 -> 0 | N38: =+((0.07/(4*PI()*$C$31))*LN((2.25*$C$31*(L38))/((Inserir_Dados!$D$13^2)*$G$31))) -> 
L39: =IF(M39>0,Inserir_Dados!H32*60,L38) -> 0 | M39: =+Inserir_Dados!I32 -> 0 | N39: =+((0.07/(4*PI()*$C$31))*LN((2.25*$C$31*(L39))/((Inserir_Dados!$D$13^2)*$G$31))) -> 
L40: =IF(M40>0,Inserir_Dados!H33*60,L39) -> 0 | M40: =+Inserir_Dados!I33 -> 0 | N40: =+((0.07/(4*PI()*$C$31))*LN((2.25*$C$31*(L40))/((Inserir_Dados!$D$13^2)*$G$31))) -> 
L41: =IF(M41>0,Inserir_Dados!H34*60,L40) -> 0 | M41: =+Inserir_Dados!I34 -> 0 | N41: =+((0.07/(4*PI()*$C$31))*LN((2.25*$C$31*(L41))/((Inserir_Dados!$D$13^2)*$G$31))) -> 
L42: =IF(M42>0,Inserir_Dados!H35*60,L41) -> 0 | M42: =+Inserir_Dados!I35 -> 0 | N42: =+((0.07/(4*PI()*$C$31))*LN((2.25*$C$31*(L42))/((Inserir_Dados!$D$13^2)*$G$31))) -> 
L43: =IF(M43>0,Inserir_Dados!H36*60,L42) -> 0 | M43: =+Inserir_Dados!I36 -> 0 | N43: =+((0.07/(4*PI()*$C$31))*LN((2.25*$C$31*(L43))/((Inserir_Dados!$D$13^2)*$G$31))) -> 
C44: 20 | H44: 10 | L44: =IF(M44>0,Inserir_Dados!H37*60,L43) -> 0 | M44: =+Inserir_Dados!I37 -> 0 | N44: =+((0.07/(4*PI()*$C$31))*LN((2.25*$C$31*(L44))/((Inserir_Dados!$D$13^2)*$G$31))) -> 
L45: =IF(M45>0,Inserir_Dados!H38*60,L44) -> 0 | M45: =+Inserir_Dados!I38 -> 0 | N45: =+((0.07/(4*PI()*$C$31))*LN((2.25*$C$31*(L45))/((Inserir_Dados!$D$13^2)*$G$31))) -> 
L46: =IF(M46>0,Inserir_Dados!H39*60,L45) -> 0 | M46: =+Inserir_Dados!I39 -> 0 | N46: =+((0.07/(4*PI()*$C$31))*LN((2.25*$C$31*(L46))/((Inserir_Dados!$D$13^2)*$G$31))) -> 
L47: =IF(M47>0,Inserir_Dados!H40*60,L46) -> 0 | M47: =+Inserir_Dados!I40 -> 0 | N47: =+((0.07/(4*PI()*$C$31))*LN((2.25*$C$31*(L47))/((Inserir_Dados!$D$13^2)*$G$31))) -> 
L48: =IF(M48>0,Inserir_Dados!H41*60,L47) -> 0 | M48: =+Inserir_Dados!I41 -> 0 | N48: =+((0.07/(4*PI()*$C$31))*LN((2.25*$C$31*(L48))/((Inserir_Dados!$D$13^2)*$G$31))) -> 
L49: =IF(M49>0,Inserir_Dados!H42*60,L48) -> 0 | M49: =+Inserir_Dados!I42 -> 0 | N49: =+((0.07/(4*PI()*$C$31))*LN((2.25*$C$31*(L49))/((Inserir_Dados!$D$13^2)*$G$31))) -> 
L50: =IF(M50>0,Inserir_Dados!H43*60,L49) -> 0 | M50: =+Inserir_Dados!I43 -> 0 | N50: =+((0.07/(4*PI()*$C$31))*LN((2.25*$C$31*(L50))/((Inserir_Dados!$D$13^2)*$G$31))) -> 
L51: =IF(M51>0,Inserir_Dados!H44*60,L50) -> 0 | M51: =+Inserir_Dados!I44 -> 0 | N51: =+((0.07/(4*PI()*$C$31))*LN((2.25*$C$31*(L51))/((Inserir_Dados!$D$13^2)*$G$31))) -> 
L52: =IF(M52>0,Inserir_Dados!H45*60,L51) -> 0 | M52: =+Inserir_Dados!I45 -> 0 | N52: =+((0.07/(4*PI()*$C$31))*LN((2.25*$C$31*(L52))/((Inserir_Dados!$D$13^2)*$G$31))) -> 
L53: =IF(M53>0,Inserir_Dados!H46*60,L52) -> 0 | M53: =+Inserir_Dados!I46 -> 0 | N53: =+((0.07/(4*PI()*$C$31))*LN((2.25*$C$31*(L53))/((Inserir_Dados!$D$13^2)*$G$31))) -> 
L54: =IF(M54>0,Inserir_Dados!H47*60,L53) -> 0 | M54: =+Inserir_Dados!I47 -> 0 | N54: =+((0.07/(4*PI()*$C$31))*LN((2.25*$C$31*(L54))/((Inserir_Dados!$D$13^2)*$G$31))) -> 
L55: =IF(M55>0,Inserir_Dados!H48*60,L54) -> 0 | M55: =+Inserir_Dados!I48 -> 0 | N55: =+((0.07/(4*PI()*$C$31))*LN((2.25*$C$31*(L55))/((Inserir_Dados!$D$13^2)*$G$31))) -> 
L56: =IF(M56>0,Inserir_Dados!H49*60,L55) -> 0 | M56: =+Inserir_Dados!I49 -> 0 | N56: =+((0.07/(4*PI()*$C$31))*LN((2.25*$C$31*(L56))/((Inserir_Dados!$D$13^2)*$G$31))) -> 
L57: =IF(M57>0,Inserir_Dados!H50*60,L56) -> 0 | M57: =+Inserir_Dados!I50 -> 0 | N57: =+((0.07/(4*PI()*$C$31))*LN((2.25*$C$31*(L57))/((Inserir_Dados!$D$13^2)*$G$31))) -> 
L58: =IF(M58>0,Inserir_Dados!H51*60,L57) -> 0 | M58: =+Inserir_Dados!I51 -> 0 | N58: =+((0.07/(4*PI()*$C$31))*LN((2.25*$C$31*(L58))/((Inserir_Dados!$D$13^2)*$G$31))) -> 
L59: =IF(M59>0,Inserir_Dados!H52*60,L58) -> 0 | M59: =+Inserir_Dados!I52 -> 0 | N59: =+((0.07/(4*PI()*$C$31))*LN((2.25*$C$31*(L59))/((Inserir_Dados!$D$13^2)*$G$31))) -> 
L60: =IF(M60>0,Inserir_Dados!H53*60,L59) -> 0 | M60: =+Inserir_Dados!I53 -> 0 | N60: =+((0.07/(4*PI()*$C$31))*LN((2.25*$C$31*(L60))/((Inserir_Dados!$D$13^2)*$G$31))) -> 
L61: =IF(M61>0,Inserir_Dados!H54*60,L60) -> 0 | M61: =+Inserir_Dados!I54 -> 0 | N61: =+((0.07/(4*PI()*$C$31))*LN((2.25*$C$31*(L61))/((Inserir_Dados!$D$13^2)*$G$31))) -> 
L62: =IF(M62>0,Inserir_Dados!H55*60,L61) -> 0 | M62: =+Inserir_Dados!I55 -> 0 | N62: =+((0.07/(4*PI()*$C$31))*LN((2.25*$C$31*(L62))/((Inserir_Dados!$D$13^2)*$G$31))) -> 
L63: =IF(M63>0,Inserir_Dados!H56*60,L62) -> 0 | M63: =+Inserir_Dados!I56 -> 0 | N63: =+((0.07/(4*PI()*$C$31))*LN((2.25*$C$31*(L63))/((Inserir_Dados!$D$13^2)*$G$31))) -> 
L64: =IF(M64>0,Inserir_Dados!H57*60,L63) -> 0 | M64: =+Inserir_Dados!I57 -> 0 | N64: =+((0.07/(4*PI()*$C$31))*LN((2.25*$C$31*(L64))/((Inserir_Dados!$D$13^2)*$G$31))) -> 
L65: =IF(M65>0,Inserir_Dados!H58*60,L64) -> 0 | M65: =+Inserir_Dados!I58 -> 0 | N65: =+((0.07/(4*PI()*$C$31))*LN((2.25*$C$31*(L65))/((Inserir_Dados!$D$13^2)*$G$31))) -> 
L66: =IF(M66>0,Inserir_Dados!H59*60,L65) -> 0 | M66: =+Inserir_Dados!I59 -> 0 | N66: =+((0.07/(4*PI()*$C$31))*LN((2.25*$C$31*(L66))/((Inserir_Dados!$D$13^2)*$G$31))) -> 
L67: =IF(M67>0,Inserir_Dados!H60*60,L66) -> 0 | M67: =+Inserir_Dados!I60 -> 0 | N67: =+((0.07/(4*PI()*$C$31))*LN((2.25*$C$31*(L67))/((Inserir_Dados!$D$13^2)*$G$31))) -> 
L68: =IF(M68>0,Inserir_Dados!H61*60,L67) -> 0 | M68: =+Inserir_Dados!I61 -> 0 | N68: =+((0.07/(4*PI()*$C$31))*LN((2.25*$C$31*(L68))/((Inserir_Dados!$D$13^2)*$G$31))) -> 
L69: =IF(M69>0,Inserir_Dados!H62*60,L68) -> 0 | M69: =+Inserir_Dados!I62 -> 0 | N69: =+((0.07/(4*PI()*$C$31))*LN((2.25*$C$31*(L69))/((Inserir_Dados!$D$13^2)*$G$31))) -> 
L70: =IF(M70>0,Inserir_Dados!H63*60,L69) -> 0 | M70: =+Inserir_Dados!I63 -> 0 | N70: =+((0.07/(4*PI()*$C$31))*LN((2.25*$C$31*(L70))/((Inserir_Dados!$D$13^2)*$G$31))) -> 
L71: =IF(M71>0,Inserir_Dados!H64*60,L70) -> 0 | M71: =+Inserir_Dados!I64 -> 0 | N71: =+((0.07/(4*PI()*$C$31))*LN((2.25*$C$31*(L71))/((Inserir_Dados!$D$13^2)*$G$31))) -> 
L72: =IF(M72>0,Inserir_Dados!H65*60,L71) -> 0 | M72: =+Inserir_Dados!I65 -> 0 | N72: =+((0.07/(4*PI()*$C$31))*LN((2.25*$C$31*(L72))/((Inserir_Dados!$D$13^2)*$G$31))) -> 
L73: =IF(M73>0,Inserir_Dados!H66*60,L72) -> 0 | M73: =+Inserir_Dados!I66 -> 0 | N73: =+((0.07/(4*PI()*$C$31))*LN((2.25*$C$31*(L73))/((Inserir_Dados!$D$13^2)*$G$31))) -> 
L74: =IF(M74>0,Inserir_Dados!H67*60,L73) -> 0 | M74: =+Inserir_Dados!I67 -> 0 | N74: =+((0.07/(4*PI()*$C$31))*LN((2.25*$C$31*(L74))/((Inserir_Dados!$D$13^2)*$G$31))) -> 
L75: =IF(M75>0,Inserir_Dados!H68*60,L74) -> 0 | M75: =+Inserir_Dados!I68 -> 0 | N75: =+((0.07/(4*PI()*$C$31))*LN((2.25*$C$31*(L75))/((Inserir_Dados!$D$13^2)*$G$31))) -> 
L76: =IF(M76>0,Inserir_Dados!H69*60,L75) -> 0 | M76: =+Inserir_Dados!I69 -> 0 | N76: =+((0.07/(4*PI()*$C$31))*LN((2.25*$C$31*(L76))/((Inserir_Dados!$D$13^2)*$G$31))) -> 
L77: =IF(M77>0,Inserir_Dados!H70*60,L76) -> 0 | M77: =+Inserir_Dados!I70 -> 0 | N77: =+((0.07/(4*PI()*$C$31))*LN((2.25*$C$31*(L77))/((Inserir_Dados!$D$13^2)*$G$31))) -> 
L78: =IF(M78>0,Inserir_Dados!H71*60,L77) -> 0 | M78: =+Inserir_Dados!I71 -> 0 | N78: =+((0.07/(4*PI()*$C$31))*LN((2.25*$C$31*(L78))/((Inserir_Dados!$D$13^2)*$G$31))) -> 
L79: =IF(M79>0,Inserir_Dados!H72*60,L78) -> 0 | M79: =+Inserir_Dados!I72 -> 0 | N79: =+((0.07/(4*PI()*$C$31))*LN((2.25*$C$31*(L79))/((Inserir_Dados!$D$13^2)*$G$31))) -> 
L80: =IF(M80>0,Inserir_Dados!H73*60,L79) -> 0 | M80: =+Inserir_Dados!I73 -> 0 | N80: =+((0.07/(4*PI()*$C$31))*LN((2.25*$C$31*(L80))/((Inserir_Dados!$D$13^2)*$G$31))) -> 
L81: =IF(M81>0,Inserir_Dados!H74*60,L80) -> 0 | M81: =+Inserir_Dados!I74 -> 0 | N81: =+((0.07/(4*PI()*$C$31))*LN((2.25*$C$31*(L81))/((Inserir_Dados!$D$13^2)*$G$31))) -> 
L82: =IF(M82>0,Inserir_Dados!H75*60,L81) -> 0 | M82: =+Inserir_Dados!I75 -> 0 | N82: =+((0.07/(4*PI()*$C$31))*LN((2.25*$C$31*(L82))/((Inserir_Dados!$D$13^2)*$G$31))) -> 
L83: =IF(M83>0,Inserir_Dados!H76*60,L82) -> 0 | M83: =+Inserir_Dados!I76 -> 0 | N83: =+((0.07/(4*PI()*$C$31))*LN((2.25*$C$31*(L83))/((Inserir_Dados!$D$13^2)*$G$31))) -> 
L84: =IF(M84>0,Inserir_Dados!H77*60,L83) -> 0 | M84: =+Inserir_Dados!I77 -> 0 | N84: =+((0.07/(4*PI()*$C$31))*LN((2.25*$C$31*(L84))/((Inserir_Dados!$D$13^2)*$G$31))) -> 
L85: =IF(M85>0,Inserir_Dados!H78*60,L84) -> 0 | M85: =+Inserir_Dados!I78 -> 0 | N85: =+((0.07/(4*PI()*$C$31))*LN((2.25*$C$31*(L85))/((Inserir_Dados!$D$13^2)*$G$31))) -> 
L86: =IF(M86>0,Inserir_Dados!H79*60,L85) -> 0 | M86: =+Inserir_Dados!I79 -> 0 | N86: =+((0.07/(4*PI()*$C$31))*LN((2.25*$C$31*(L86))/((Inserir_Dados!$D$13^2)*$G$31))) -> 
L87: =IF(M87>0,Inserir_Dados!H80*60,L86) -> 0 | M87: =+Inserir_Dados!I80 -> 0 | N87: =+((0.07/(4*PI()*$C$31))*LN((2.25*$C$31*(L87))/((Inserir_Dados!$D$13^2)*$G$31))) -> 
L88: =IF(M88>0,Inserir_Dados!H81*60,L87) -> 0 | M88: =+Inserir_Dados!I81 -> 0 | N88: =+((0.07/(4*PI()*$C$31))*LN((2.25*$C$31*(L88))/((Inserir_Dados!$D$13^2)*$G$31))) -> 
L89: =IF(M89>0,Inserir_Dados!H82*60,L88) -> 0 | M89: =+Inserir_Dados!I82 -> 0 | N89: =+((0.07/(4*PI()*$C$31))*LN((2.25*$C$31*(L89))/((Inserir_Dados!$D$13^2)*$G$31))) -> 
L90: =IF(M90>0,Inserir_Dados!H83*60,L89) -> 0 | M90: =+Inserir_Dados!I83 -> 0 | N90: =+((0.07/(4*PI()*$C$31))*LN((2.25*$C$31*(L90))/((Inserir_Dados!$D$13^2)*$G$31))) -> 
L91: =IF(M91>0,Inserir_Dados!H84*60,L90) -> 0 | M91: =+Inserir_Dados!I84 -> 0 | N91: =+((0.07/(4*PI()*$C$31))*LN((2.25*$C$31*(L91))/((Inserir_Dados!$D$13^2)*$G$31))) -> 
L92: =IF(M92>0,Inserir_Dados!H85*60,L91) -> 0 | M92: =+Inserir_Dados!I85 -> 0 | N92: =+((0.07/(4*PI()*$C$31))*LN((2.25*$C$31*(L92))/((Inserir_Dados!$D$13^2)*$G$31))) -> 
L93: =IF(M93>0,Inserir_Dados!H86*60,L92) -> 0 | M93: =+Inserir_Dados!I86 -> 0 | N93: =+((0.07/(4*PI()*$C$31))*LN((2.25*$C$31*(L93))/((Inserir_Dados!$D$13^2)*$G$31))) -> 
L94: =IF(M94>0,Inserir_Dados!H87*60,L93) -> 0 | M94: =+Inserir_Dados!I87 -> 0 | N94: =+((0.07/(4*PI()*$C$31))*LN((2.25*$C$31*(L94))/((Inserir_Dados!$D$13^2)*$G$31))) -> 
L95: =IF(M95>0,Inserir_Dados!H88*60,L94) -> 0 | M95: =+Inserir_Dados!I88 -> 0 | N95: =+((0.07/(4*PI()*$C$31))*LN((2.25*$C$31*(L95))/((Inserir_Dados!$D$13^2)*$G$31))) -> 
L96: =IF(M96>0,Inserir_Dados!H89*60,L95) -> 0 | M96: =+Inserir_Dados!I89 -> 0 | N96: =+((0.07/(4*PI()*$C$31))*LN((2.25*$C$31*(L96))/((Inserir_Dados!$D$13^2)*$G$31))) -> 
L97: =IF(M97>0,Inserir_Dados!H90*60,L96) -> 0 | M97: =+Inserir_Dados!I90 -> 0 | N97: =+((0.07/(4*PI()*$C$31))*LN((2.25*$C$31*(L97))/((Inserir_Dados!$D$13^2)*$G$31))) -> 
L98: =IF(M98>0,Inserir_Dados!H91*60,L97) -> 0 | M98: =+Inserir_Dados!I91 -> 0 | N98: =+((0.07/(4*PI()*$C$31))*LN((2.25*$C$31*(L98))/((Inserir_Dados!$D$13^2)*$G$31))) -> 
L99: =IF(M99>0,Inserir_Dados!H92*60,L98) -> 0 | M99: =+Inserir_Dados!I92 -> 0 | N99: =+((0.07/(4*PI()*$C$31))*LN((2.25*$C$31*(L99))/((Inserir_Dados!$D$13^2)*$G$31))) -> 
L100: =IF(M100>0,Inserir_Dados!H93*60,L99) -> 0 | M100: =+Inserir_Dados!I93 -> 0 | N100: =+((0.07/(4*PI()*$C$31))*LN((2.25*$C$31*(L100))/((Inserir_Dados!$D$13^2)*$G$31))) -> 
L101: =IF(M101>0,Inserir_Dados!H94*60,L100) -> 0 | M101: =+Inserir_Dados!I94 -> 0 | N101: =+((0.07/(4*PI()*$C$31))*LN((2.25*$C$31*(L101))/((Inserir_Dados!$D$13^2)*$G$31))) -> 
L102: =IF(M102>0,Inserir_Dados!H95*60,L101) -> 0 | M102: =+Inserir_Dados!I95 -> 0 | N102: =+((0.07/(4*PI()*$C$31))*LN((2.25*$C$31*(L102))/((Inserir_Dados!$D$13^2)*$G$31))) -> 
L103: =IF(M103>0,Inserir_Dados!H96*60,L102) -> 0 | M103: =+Inserir_Dados!I96 -> 0 | N103: =+((0.07/(4*PI()*$C$31))*LN((2.25*$C$31*(L103))/((Inserir_Dados!$D$13^2)*$G$31))) -> 
L104: =IF(M104>0,Inserir_Dados!H97*60,L103) -> 0 | M104: =+Inserir_Dados!I97 -> 0 | N104: =+((0.07/(4*PI()*$C$31))*LN((2.25*$C$31*(L104))/((Inserir_Dados!$D$13^2)*$G$31))) -> 
L105: =IF(M105>0,Inserir_Dados!H98*60,L104) -> 0 | M105: =+Inserir_Dados!I98 -> 0 | N105: =+((0.07/(4*PI()*$C$31))*LN((2.25*$C$31*(L105))/((Inserir_Dados!$D$13^2)*$G$31))) -> 
L106: =IF(M106>0,Inserir_Dados!H99*60,L105) -> 0 | M106: =+Inserir_Dados!I99 -> 0 | N106: =+((0.07/(4*PI()*$C$31))*LN((2.25*$C$31*(L106))/((Inserir_Dados!$D$13^2)*$G$31))) -> 
L107: =IF(M107>0,Inserir_Dados!H100*60,L106) -> 0 | M107: =+Inserir_Dados!I100 -> 0 | N107: =+((0.07/(4*PI()*$C$31))*LN((2.25*$C$31*(L107))/((Inserir_Dados!$D$13^2)*$G$31))) -> 
L108: =IF(M108>0,Inserir_Dados!H101*60,L107) -> 0 | M108: =+Inserir_Dados!I101 -> 0 | N108: =+((0.07/(4*PI()*$C$31))*LN((2.25*$C$31*(L108))/((Inserir_Dados!$D$13^2)*$G$31))) -> 
L109: =IF(M109>0,Inserir_Dados!H102*60,L108) -> 0 | M109: =+Inserir_Dados!I102 -> 0 | N109: =+((0.07/(4*PI()*$C$31))*LN((2.25*$C$31*(L109))/((Inserir_Dados!$D$13^2)*$G$31))) -> 
L110: =IF(M110>0,Inserir_Dados!H103*60,L109) -> 0 | M110: =+Inserir_Dados!I103 -> 0 | N110: =+((0.07/(4*PI()*$C$31))*LN((2.25*$C$31*(L110))/((Inserir_Dados!$D$13^2)*$G$31))) -> 
L111: =IF(M111>0,Inserir_Dados!H104*60,L110) -> 0 | M111: =+Inserir_Dados!I104 -> 0 | N111: =+((0.07/(4*PI()*$C$31))*LN((2.25*$C$31*(L111))/((Inserir_Dados!$D$13^2)*$G$31))) -> 
L112: =IF(M112>0,Inserir_Dados!H105*60,L111) -> 0 | M112: =+Inserir_Dados!I105 -> 0 | N112: =+((0.07/(4*PI()*$C$31))*LN((2.25*$C$31*(L112))/((Inserir_Dados!$D$13^2)*$G$31))) -> 
L113: =IF(M113>0,Inserir_Dados!H106*60,L112) -> 0 | M113: =+Inserir_Dados!I106 -> 0 | N113: =+((0.07/(4*PI()*$C$31))*LN((2.25*$C$31*(L113))/((Inserir_Dados!$D$13^2)*$G$31))) -> 
L114: =IF(M114>0,Inserir_Dados!H107*60,L113) -> 0 | M114: =+Inserir_Dados!I107 -> 0 | N114: =+((0.07/(4*PI()*$C$31))*LN((2.25*$C$31*(L114))/((Inserir_Dados!$D$13^2)*$G$31))) -> 
L115: =IF(M115>0,Inserir_Dados!H108*60,L114) -> 0 | M115: =+Inserir_Dados!I108 -> 0 | N115: =+((0.07/(4*PI()*$C$31))*LN((2.25*$C$31*(L115))/((Inserir_Dados!$D$13^2)*$G$31))) -> 
L116: =IF(M116>0,Inserir_Dados!H109*60,L115) -> 0 | M116: =+Inserir_Dados!I109 -> 0 | N116: =+((0.07/(4*PI()*$C$31))*LN((2.25*$C$31*(L116))/((Inserir_Dados!$D$13^2)*$G$31))) -> 
L117: =IF(M117>0,Inserir_Dados!H110*60,L116) -> 0 | M117: =+Inserir_Dados!I110 -> 0 | N117: =+((0.07/(4*PI()*$C$31))*LN((2.25*$C$31*(L117))/((Inserir_Dados!$D$13^2)*$G$31))) -> 
L118: =IF(M118>0,Inserir_Dados!H111*60,L117) -> 0 | M118: =+Inserir_Dados!I111 -> 0 | N118: =+((0.07/(4*PI()*$C$31))*LN((2.25*$C$31*(L118))/((Inserir_Dados!$D$13^2)*$G$31))) -> 
L119: =IF(M119>0,Inserir_Dados!H112*60,L118) -> 0 | M119: =+Inserir_Dados!I112 -> 0 | N119: =+((0.07/(4*PI()*$C$31))*LN((2.25*$C$31*(L119))/((Inserir_Dados!$D$13^2)*$G$31))) -> 
L120: =IF(M120>0,Inserir_Dados!H113*60,L119) -> 0 | M120: =+Inserir_Dados!I113 -> 0 | N120: =+((0.07/(4*PI()*$C$31))*LN((2.25*$C$31*(L120))/((Inserir_Dados!$D$13^2)*$G$31))) -> 
L121: =IF(M121>0,Inserir_Dados!H114*60,L120) -> 0 | M121: =+Inserir_Dados!I114 -> 0 | N121: =+((0.07/(4*PI()*$C$31))*LN((2.25*$C$31*(L121))/((Inserir_Dados!$D$13^2)*$G$31))) -> 
L122: =IF(M122>0,Inserir_Dados!H115*60,L121) -> 0 | M122: =+Inserir_Dados!I115 -> 0 | N122: =+((0.07/(4*PI()*$C$31))*LN((2.25*$C$31*(L122))/((Inserir_Dados!$D$13^2)*$G$31))) -> 
L123: =IF(M123>0,Inserir_Dados!H116*60,L122) -> 0 | M123: =+Inserir_Dados!I116 -> 0 | N123: =+((0.07/(4*PI()*$C$31))*LN((2.25*$C$31*(L123))/((Inserir_Dados!$D$13^2)*$G$31))) -> 
L124: =IF(M124>0,Inserir_Dados!H117*60,L123) -> 0 | M124: =+Inserir_Dados!I117 -> 0 | N124: =+((0.07/(4*PI()*$C$31))*LN((2.25*$C$31*(L124))/((Inserir_Dados!$D$13^2)*$G$31))) -> 
L125: =IF(M125>0,Inserir_Dados!H118*60,L124) -> 0 | M125: =+Inserir_Dados!I118 -> 0 | N125: =+((0.07/(4*PI()*$C$31))*LN((2.25*$C$31*(L125))/((Inserir_Dados!$D$13^2)*$G$31))) -> 
L126: =IF(M126>0,Inserir_Dados!H119*60,L125) -> 0 | M126: =+Inserir_Dados!I119 -> 0 | N126: =+((0.07/(4*PI()*$C$31))*LN((2.25*$C$31*(L126))/((Inserir_Dados!$D$13^2)*$G$31))) -> 
L127: =IF(M127>0,Inserir_Dados!H120*60,L126) -> 0 | M127: =+Inserir_Dados!I120 -> 0 | N127: =+((0.07/(4*PI()*$C$31))*LN((2.25*$C$31*(L127))/((Inserir_Dados!$D$13^2)*$G$31))) -> 
L128: =IF(M128>0,Inserir_Dados!H121*60,L127) -> 0 | M128: =+Inserir_Dados!I121 -> 0 | N128: =+((0.07/(4*PI()*$C$31))*LN((2.25*$C$31*(L128))/((Inserir_Dados!$D$13^2)*$G$31))) -> 
L129: =IF(M129>0,Inserir_Dados!H122*60,L128) -> 0 | M129: =+Inserir_Dados!I122 -> 0 | N129: =+((0.07/(4*PI()*$C$31))*LN((2.25*$C$31*(L129))/((Inserir_Dados!$D$13^2)*$G$31))) -> 
L130: =IF(M130>0,Inserir_Dados!H123*60,L129) -> 0 | M130: =+Inserir_Dados!I123 -> 0 | N130: =+((0.07/(4*PI()*$C$31))*LN((2.25*$C$31*(L130))/((Inserir_Dados!$D$13^2)*$G$31))) -> 
L131: =IF(M131>0,Inserir_Dados!H124*60,L130) -> 0 | M131: =+Inserir_Dados!I124 -> 0 | N131: =+((0.07/(4*PI()*$C$31))*LN((2.25*$C$31*(L131))/((Inserir_Dados!$D$13^2)*$G$31))) -> 
L132: =IF(M132>0,Inserir_Dados!H125*60,L131) -> 0 | M132: =+Inserir_Dados!I125 -> 0 | N132: =+((0.07/(4*PI()*$C$31))*LN((2.25*$C$31*(L132))/((Inserir_Dados!$D$13^2)*$G$31))) -> 
L133: =IF(M133>0,Inserir_Dados!H126*60,L132) -> 0 | M133: =+Inserir_Dados!I126 -> 0 | N133: =+((0.07/(4*PI()*$C$31))*LN((2.25*$C$31*(L133))/((Inserir_Dados!$D$13^2)*$G$31))) -> 
L134: =IF(M134>0,Inserir_Dados!H127*60,L133) -> 0 | M134: =+Inserir_Dados!I127 -> 0 | N134: =+((0.07/(4*PI()*$C$31))*LN((2.25*$C$31*(L134))/((Inserir_Dados!$D$13^2)*$G$31))) -> 
L135: =IF(M135>0,Inserir_Dados!H128*60,L134) -> 0 | M135: =+Inserir_Dados!I128 -> 0 | N135: =+((0.07/(4*PI()*$C$31))*LN((2.25*$C$31*(L135))/((Inserir_Dados!$D$13^2)*$G$31))) -> 
L136: =IF(M136>0,Inserir_Dados!H129*60,L135) -> 0 | M136: =+Inserir_Dados!I129 -> 0 | N136: =+((0.07/(4*PI()*$C$31))*LN((2.25*$C$31*(L136))/((Inserir_Dados!$D$13^2)*$G$31))) -> 
L137: =IF(M137>0,Inserir_Dados!H130*60,L136) -> 0 | M137: =+Inserir_Dados!I130 -> 0 | N137: =+((0.07/(4*PI()*$C$31))*LN((2.25*$C$31*(L137))/((Inserir_Dados!$D$13^2)*$G$31))) -> 
L138: =IF(M138>0,Inserir_Dados!H131*60,L137) -> 0 | M138: =+Inserir_Dados!I131 -> 0 | N138: =+((0.07/(4*PI()*$C$31))*LN((2.25*$C$31*(L138))/((Inserir_Dados!$D$13^2)*$G$31))) -> 
L139: =IF(M139>0,Inserir_Dados!H132*60,L138) -> 0 | M139: =+Inserir_Dados!I132 -> 0 | N139: =+((0.07/(4*PI()*$C$31))*LN((2.25*$C$31*(L139))/((Inserir_Dados!$D$13^2)*$G$31))) -> 
L140: =IF(M140>0,Inserir_Dados!H133*60,L139) -> 0 | M140: =+Inserir_Dados!I133 -> 0 | N140: =+((0.07/(4*PI()*$C$31))*LN((2.25*$C$31*(L140))/((Inserir_Dados!$D$13^2)*$G$31))) -> 
L141: =IF(M141>0,Inserir_Dados!H134*60,L140) -> 0 | M141: =+Inserir_Dados!I134 -> 0 | N141: =+((0.07/(4*PI()*$C$31))*LN((2.25*$C$31*(L141))/((Inserir_Dados!$D$13^2)*$G$31))) -> 
L142: =IF(M142>0,Inserir_Dados!H135*60,L141) -> 0 | M142: =+Inserir_Dados!I135 -> 0 | N142: =+((0.07/(4*PI()*$C$31))*LN((2.25*$C$31*(L142))/((Inserir_Dados!$D$13^2)*$G$31))) -> 
L143: =IF(M143>0,Inserir_Dados!H136*60,L142) -> 0 | M143: =+Inserir_Dados!I136 -> 0 | N143: =+((0.07/(4*PI()*$C$31))*LN((2.25*$C$31*(L143))/((Inserir_Dados!$D$13^2)*$G$31))) -> 
L144: =IF(M144>0,Inserir_Dados!H137*60,L143) -> 0 | M144: =+Inserir_Dados!I137 -> 0 | N144: =+((0.07/(4*PI()*$C$31))*LN((2.25*$C$31*(L144))/((Inserir_Dados!$D$13^2)*$G$31))) -> 
L145: =IF(M145>0,Inserir_Dados!H138*60,L144) -> 0 | M145: =+Inserir_Dados!I138 -> 0 | N145: =+((0.07/(4*PI()*$C$31))*LN((2.25*$C$31*(L145))/((Inserir_Dados!$D$13^2)*$G$31))) -> 
L146: =IF(M146>0,Inserir_Dados!H139*60,L145) -> 0 | M146: =+Inserir_Dados!I139 -> 0 | N146: =+((0.07/(4*PI()*$C$31))*LN((2.25*$C$31*(L146))/((Inserir_Dados!$D$13^2)*$G$31))) -> 
L147: =IF(M147>0,Inserir_Dados!H140*60,L146) -> 0 | M147: =+Inserir_Dados!I140 -> 0 | N147: =+((0.07/(4*PI()*$C$31))*LN((2.25*$C$31*(L147))/((Inserir_Dados!$D$13^2)*$G$31))) -> 
L148: =IF(M148>0,Inserir_Dados!H141*60,L147) -> 0 | M148: =+Inserir_Dados!I141 -> 0 | N148: =+((0.07/(4*PI()*$C$31))*LN((2.25*$C$31*(L148))/((Inserir_Dados!$D$13^2)*$G$31))) -> 
L149: =IF(M149>0,Inserir_Dados!H142*60,L148) -> 0 | M149: =+Inserir_Dados!I142 -> 0 | N149: =+((0.07/(4*PI()*$C$31))*LN((2.25*$C$31*(L149))/((Inserir_Dados!$D$13^2)*$G$31))) -> 
L150: =IF(M150>0,Inserir_Dados!H143*60,L149) -> 0 | M150: =+Inserir_Dados!I143 -> 0 | N150: =+((0.07/(4*PI()*$C$31))*LN((2.25*$C$31*(L150))/((Inserir_Dados!$D$13^2)*$G$31))) -> 
L151: =IF(M151>0,Inserir_Dados!H144*60,L150) -> 0 | M151: =+Inserir_Dados!I144 -> 0 | N151: =+((0.07/(4*PI()*$C$31))*LN((2.25*$C$31*(L151))/((Inserir_Dados!$D$13^2)*$G$31))) -> 
L152: =IF(M152>0,Inserir_Dados!H145*60,L151) -> 0 | M152: =+Inserir_Dados!I145 -> 0 | N152: =+((0.07/(4*PI()*$C$31))*LN((2.25*$C$31*(L152))/((Inserir_Dados!$D$13^2)*$G$31))) -> 
L153: =IF(M153>0,Inserir_Dados!H146*60,L152) -> 0 | M153: =+Inserir_Dados!I146 -> 0 | N153: =+((0.07/(4*PI()*$C$31))*LN((2.25*$C$31*(L153))/((Inserir_Dados!$D$13^2)*$G$31))) -> 
L154: =IF(M154>0,Inserir_Dados!H147*60,L153) -> 0 | M154: =+Inserir_Dados!I147 -> 0 | N154: =+((0.07/(4*PI()*$C$31))*LN((2.25*$C$31*(L154))/((Inserir_Dados!$D$13^2)*$G$31))) -> 
L155: =IF(M155>0,Inserir_Dados!H148*60,L154) -> 0 | M155: =+Inserir_Dados!I148 -> 0 | N155: =+((0.07/(4*PI()*$C$31))*LN((2.25*$C$31*(L155))/((Inserir_Dados!$D$13^2)*$G$31))) -> 
L156: =IF(M156>0,Inserir_Dados!H149*60,L155) -> 0 | M156: =+Inserir_Dados!I149 -> 0 | N156: =+((0.07/(4*PI()*$C$31))*LN((2.25*$C$31*(L156))/((Inserir_Dados!$D$13^2)*$G$31))) -> 
L157: =IF(M157>0,Inserir_Dados!H150*60,L156) -> 0 | M157: =+Inserir_Dados!I150 -> 0 | N157: =+((0.07/(4*PI()*$C$31))*LN((2.25*$C$31*(L157))/((Inserir_Dados!$D$13^2)*$G$31))) -> 
L158: =IF(M158>0,Inserir_Dados!H151*60,L157) -> 0 | M158: =+Inserir_Dados!I151 -> 0 | N158: =+((0.07/(4*PI()*$C$31))*LN((2.25*$C$31*(L158))/((Inserir_Dados!$D$13^2)*$G$31))) -> 
L159: =IF(M159>0,Inserir_Dados!H152*60,L158) -> 0 | M159: =+Inserir_Dados!I152 -> 0 | N159: =+((0.07/(4*PI()*$C$31))*LN((2.25*$C$31*(L159))/((Inserir_Dados!$D$13^2)*$G$31))) -> 
L160: =IF(M160>0,Inserir_Dados!H153*60,L159) -> 0 | M160: =+Inserir_Dados!I153 -> 0 | N160: =+((0.07/(4*PI()*$C$31))*LN((2.25*$C$31*(L160))/((Inserir_Dados!$D$13^2)*$G$31))) -> 
L161: =IF(M161>0,Inserir_Dados!H154*60,L160) -> 0 | M161: =+Inserir_Dados!I154 -> 0 | N161: =+((0.07/(4*PI()*$C$31))*LN((2.25*$C$31*(L161))/((Inserir_Dados!$D$13^2)*$G$31))) -> 
L162: =IF(M162>0,Inserir_Dados!H155*60,L161) -> 0 | M162: =+Inserir_Dados!I155 -> 0 | N162: =+((0.07/(4*PI()*$C$31))*LN((2.25*$C$31*(L162))/((Inserir_Dados!$D$13^2)*$G$31))) -> 
L163: =IF(M163>0,Inserir_Dados!H156*60,L162) -> 0 | M163: =+Inserir_Dados!I156 -> 0 | N163: =+((0.07/(4*PI()*$C$31))*LN((2.25*$C$31*(L163))/((Inserir_Dados!$D$13^2)*$G$31))) -> 
L164: =IF(M164>0,Inserir_Dados!H157*60,L163) -> 0 | M164: =+Inserir_Dados!I157 -> 0 | N164: =+((0.07/(4*PI()*$C$31))*LN((2.25*$C$31*(L164))/((Inserir_Dados!$D$13^2)*$G$31))) -> 
L165: =IF(M165>0,Inserir_Dados!H158*60,L164) -> 0 | M165: =+Inserir_Dados!I158 -> 0 | N165: =+((0.07/(4*PI()*$C$31))*LN((2.25*$C$31*(L165))/((Inserir_Dados!$D$13^2)*$G$31))) -> 
L166: =IF(M166>0,Inserir_Dados!H159*60,L165) -> 0 | M166: =+Inserir_Dados!I159 -> 0 | N166: =+((0.07/(4*PI()*$C$31))*LN((2.25*$C$31*(L166))/((Inserir_Dados!$D$13^2)*$G$31))) -> 
L167: =IF(M167>0,Inserir_Dados!H160*60,L166) -> 0 | M167: =+Inserir_Dados!I160 -> 0 | N167: =+((0.07/(4*PI()*$C$31))*LN((2.25*$C$31*(L167))/((Inserir_Dados!$D$13^2)*$G$31))) -> 
L168: =IF(M168>0,Inserir_Dados!H161*60,L167) -> 0 | M168: =+Inserir_Dados!I161 -> 0 | N168: =+((0.07/(4*PI()*$C$31))*LN((2.25*$C$31*(L168))/((Inserir_Dados!$D$13^2)*$G$31))) -> 
L169: =IF(M169>0,Inserir_Dados!H162*60,L168) -> 0 | M169: =+Inserir_Dados!I162 -> 0 | N169: =+((0.07/(4*PI()*$C$31))*LN((2.25*$C$31*(L169))/((Inserir_Dados!$D$13^2)*$G$31))) -> 
L170: =IF(M170>0,Inserir_Dados!H163*60,L169) -> 0 | M170: =+Inserir_Dados!I163 -> 0 | N170: =+((0.07/(4*PI()*$C$31))*LN((2.25*$C$31*(L170))/((Inserir_Dados!$D$13^2)*$G$31))) -> 
L171: =IF(M171>0,Inserir_Dados!H164*60,L170) -> 0 | M171: =+Inserir_Dados!I164 -> 0 | N171: =+((0.07/(4*PI()*$C$31))*LN((2.25*$C$31*(L171))/((Inserir_Dados!$D$13^2)*$G$31))) -> 
L172: =IF(M172>0,Inserir_Dados!H165*60,L171) -> 0 | M172: =+Inserir_Dados!I165 -> 0 | N172: =+((0.07/(4*PI()*$C$31))*LN((2.25*$C$31*(L172))/((Inserir_Dados!$D$13^2)*$G$31))) -> 
L173: =IF(M173>0,Inserir_Dados!H166*60,L172) -> 0 | M173: =+Inserir_Dados!I166 -> 0 | N173: =+((0.07/(4*PI()*$C$31))*LN((2.25*$C$31*(L173))/((Inserir_Dados!$D$13^2)*$G$31))) -> 
L174: =IF(M174>0,Inserir_Dados!H167*60,L173) -> 0 | M174: =+Inserir_Dados!I167 -> 0 | N174: =+((0.07/(4*PI()*$C$31))*LN((2.25*$C$31*(L174))/((Inserir_Dados!$D$13^2)*$G$31))) -> 
L175: =IF(M175>0,Inserir_Dados!H168*60,L174) -> 0 | M175: =+Inserir_Dados!I168 -> 0 | N175: =+((0.07/(4*PI()*$C$31))*LN((2.25*$C$31*(L175))/((Inserir_Dados!$D$13^2)*$G$31))) -> 
L176: =IF(M176>0,Inserir_Dados!H169*60,L175) -> 0 | M176: =+Inserir_Dados!I169 -> 0 | N176: =+((0.07/(4*PI()*$C$31))*LN((2.25*$C$31*(L176))/((Inserir_Dados!$D$13^2)*$G$31))) -> 
L177: =IF(M177>0,Inserir_Dados!H170*60,L176) -> 0 | M177: =+Inserir_Dados!I170 -> 0 | N177: =+((0.07/(4*PI()*$C$31))*LN((2.25*$C$31*(L177))/((Inserir_Dados!$D$13^2)*$G$31))) -> 
L178: =IF(M178>0,Inserir_Dados!H171*60,L177) -> 0 | M178: =+Inserir_Dados!I171 -> 0 | N178: =+((0.07/(4*PI()*$C$31))*LN((2.25*$C$31*(L178))/((Inserir_Dados!$D$13^2)*$G$31))) -> 
L179: =IF(M179>0,Inserir_Dados!H172*60,L178) -> 0 | M179: =+Inserir_Dados!I172 -> 0 | N179: =+((0.07/(4*PI()*$C$31))*LN((2.25*$C$31*(L179))/((Inserir_Dados!$D$13^2)*$G$31))) -> 
L180: =IF(M180>0,Inserir_Dados!H173*60,L179) -> 0 | M180: =+Inserir_Dados!I173 -> 0 | N180: =+((0.07/(4*PI()*$C$31))*LN((2.25*$C$31*(L180))/((Inserir_Dados!$D$13^2)*$G$31))) -> 
L181: =IF(M181>0,Inserir_Dados!H174*60,L180) -> 0 | M181: =+Inserir_Dados!I174 -> 0 | N181: =+((0.07/(4*PI()*$C$31))*LN((2.25*$C$31*(L181))/((Inserir_Dados!$D$13^2)*$G$31))) -> 
L182: =IF(M182>0,Inserir_Dados!H175*60,L181) -> 0 | M182: =+Inserir_Dados!I175 -> 0 | N182: =+((0.07/(4*PI()*$C$31))*LN((2.25*$C$31*(L182))/((Inserir_Dados!$D$13^2)*$G$31))) -> 
L183: =IF(M183>0,Inserir_Dados!H176*60,L182) -> 0 | M183: =+Inserir_Dados!I176 -> 0 | N183: =+((0.07/(4*PI()*$C$31))*LN((2.25*$C$31*(L183))/((Inserir_Dados!$D$13^2)*$G$31))) -> 
L184: =IF(M184>0,Inserir_Dados!H177*60,L183) -> 0 | M184: =+Inserir_Dados!I177 -> 0 | N184: =+((0.07/(4*PI()*$C$31))*LN((2.25*$C$31*(L184))/((Inserir_Dados!$D$13^2)*$G$31))) -> 
L185: =IF(M185>0,Inserir_Dados!H178*60,L184) -> 0 | M185: =+Inserir_Dados!I178 -> 0 | N185: =+((0.07/(4*PI()*$C$31))*LN((2.25*$C$31*(L185))/((Inserir_Dados!$D$13^2)*$G$31))) -> 
L186: =IF(M186>0,Inserir_Dados!H179*60,L185) -> 0 | M186: =+Inserir_Dados!I179 -> 0 | N186: =+((0.07/(4*PI()*$C$31))*LN((2.25*$C$31*(L186))/((Inserir_Dados!$D$13^2)*$G$31))) -> 
L187: =IF(M187>0,Inserir_Dados!H180*60,L186) -> 0 | M187: =+Inserir_Dados!I180 -> 0 | N187: =+((0.07/(4*PI()*$C$31))*LN((2.25*$C$31*(L187))/((Inserir_Dados!$D$13^2)*$G$31))) -> 
L188: =IF(M188>0,Inserir_Dados!H181*60,L187) -> 0 | M188: =+Inserir_Dados!I181 -> 0 | N188: =+((0.07/(4*PI()*$C$31))*LN((2.25*$C$31*(L188))/((Inserir_Dados!$D$13^2)*$G$31))) -> 
L189: =IF(M189>0,Inserir_Dados!H182*60,L188) -> 0 | M189: =+Inserir_Dados!I182 -> 0 | N189: =+((0.07/(4*PI()*$C$31))*LN((2.25*$C$31*(L189))/((Inserir_Dados!$D$13^2)*$G$31))) -> 
L190: =IF(M190>0,Inserir_Dados!H183*60,L189) -> 0 | M190: =+Inserir_Dados!I183 -> 0 | N190: =+((0.07/(4*PI()*$C$31))*LN((2.25*$C$31*(L190))/((Inserir_Dados!$D$13^2)*$G$31))) -> 
L191: =IF(M191>0,Inserir_Dados!H184*60,L190) -> 0 | M191: =+Inserir_Dados!I184 -> 0 | N191: =+((0.07/(4*PI()*$C$31))*LN((2.25*$C$31*(L191))/((Inserir_Dados!$D$13^2)*$G$31))) -> 
L192: =IF(M192>0,Inserir_Dados!H185*60,L191) -> 0 | M192: =+Inserir_Dados!I185 -> 0 | N192: =+((0.07/(4*PI()*$C$31))*LN((2.25*$C$31*(L192))/((Inserir_Dados!$D$13^2)*$G$31))) -> 
L193: =IF(M193>0,Inserir_Dados!H186*60,L192) -> 0 | M193: =+Inserir_Dados!I186 -> 0 | N193: =+((0.07/(4*PI()*$C$31))*LN((2.25*$C$31*(L193))/((Inserir_Dados!$D$13^2)*$G$31))) -> 
L194: =IF(M194>0,Inserir_Dados!H187*60,L193) -> 0 | M194: =+Inserir_Dados!I187 -> 0 | N194: =+((0.07/(4*PI()*$C$31))*LN((2.25*$C$31*(L194))/((Inserir_Dados!$D$13^2)*$G$31))) -> 
L195: =IF(M195>0,Inserir_Dados!H188*60,L194) -> 0 | M195: =+Inserir_Dados!I188 -> 0 | N195: =+((0.07/(4*PI()*$C$31))*LN((2.25*$C$31*(L195))/((Inserir_Dados!$D$13^2)*$G$31))) -> 
L196: =IF(M196>0,Inserir_Dados!H189*60,L195) -> 0 | M196: =+Inserir_Dados!I189 -> 0 | N196: =+((0.07/(4*PI()*$C$31))*LN((2.25*$C$31*(L196))/((Inserir_Dados!$D$13^2)*$G$31))) -> 
L197: =IF(M197>0,Inserir_Dados!H190*60,L196) -> 0 | M197: =+Inserir_Dados!I190 -> 0 | N197: =+((0.07/(4*PI()*$C$31))*LN((2.25*$C$31*(L197))/((Inserir_Dados!$D$13^2)*$G$31))) -> 
L198: =IF(M198>0,Inserir_Dados!H191*60,L197) -> 0 | M198: =+Inserir_Dados!I191 -> 0 | N198: =+((0.07/(4*PI()*$C$31))*LN((2.25*$C$31*(L198))/((Inserir_Dados!$D$13^2)*$G$31))) -> 
L199: =IF(M199>0,Inserir_Dados!H192*60,L198) -> 0 | M199: =+Inserir_Dados!I192 -> 0 | N199: =+((0.07/(4*PI()*$C$31))*LN((2.25*$C$31*(L199))/((Inserir_Dados!$D$13^2)*$G$31))) -> 
L200: =IF(M200>0,Inserir_Dados!H193*60,L199) -> 0 | M200: =+Inserir_Dados!I193 -> 0 | N200: =+((0.07/(4*PI()*$C$31))*LN((2.25*$C$31*(L200))/((Inserir_Dados!$D$13^2)*$G$31))) -> 
L201: =IF(M201>0,Inserir_Dados!H194*60,L200) -> 0 | M201: =+Inserir_Dados!I194 -> 0 | N201: =+((0.07/(4*PI()*$C$31))*LN((2.25*$C$31*(L201))/((Inserir_Dados!$D$13^2)*$G$31))) -> 
L202: =IF(M202>0,Inserir_Dados!H195*60,L201) -> 0 | M202: =+Inserir_Dados!I195 -> 0 | N202: =+((0.07/(4*PI()*$C$31))*LN((2.25*$C$31*(L202))/((Inserir_Dados!$D$13^2)*$G$31))) -> 
L203: =IF(M203>0,Inserir_Dados!H196*60,L202) -> 0 | M203: =+Inserir_Dados!I196 -> 0 | N203: =+((0.07/(4*PI()*$C$31))*LN((2.25*$C$31*(L203))/((Inserir_Dados!$D$13^2)*$G$31))) -> 
L204: =IF(M204>0,Inserir_Dados!H197*60,L203) -> 0 | M204: =+Inserir_Dados!I197 -> 0 | N204: =+((0.07/(4*PI()*$C$31))*LN((2.25*$C$31*(L204))/((Inserir_Dados!$D$13^2)*$G$31))) -> 
L205: =IF(M205>0,Inserir_Dados!H198*60,L204) -> 0 | M205: =+Inserir_Dados!I198 -> 0 | N205: =+((0.07/(4*PI()*$C$31))*LN((2.25*$C$31*(L205))/((Inserir_Dados!$D$13^2)*$G$31))) -> 
L206: =IF(M206>0,Inserir_Dados!H199*60,L205) -> 0 | M206: =+Inserir_Dados!I199 -> 0 | N206: =+((0.07/(4*PI()*$C$31))*LN((2.25*$C$31*(L206))/((Inserir_Dados!$D$13^2)*$G$31))) -> 
L207: =IF(M207>0,Inserir_Dados!H200*60,L206) -> 0 | M207: =+Inserir_Dados!I200 -> 0 | N207: =+((0.07/(4*PI()*$C$31))*LN((2.25*$C$31*(L207))/((Inserir_Dados!$D$13^2)*$G$31))) -> 
L208: =IF(M208>0,Inserir_Dados!H201*60,L207) -> 0 | M208: =+Inserir_Dados!I201 -> 0 | N208: =+((0.07/(4*PI()*$C$31))*LN((2.25*$C$31*(L208))/((Inserir_Dados!$D$13^2)*$G$31))) -> 
L209: =IF(M209>0,Inserir_Dados!H202*60,L208) -> 0 | M209: =+Inserir_Dados!I202 -> 0 | N209: =+((0.07/(4*PI()*$C$31))*LN((2.25*$C$31*(L209))/((Inserir_Dados!$D$13^2)*$G$31))) -> 
L210: =IF(M210>0,Inserir_Dados!H203*60,L209) -> 0 | M210: =+Inserir_Dados!I203 -> 0 | N210: =+((0.07/(4*PI()*$C$31))*LN((2.25*$C$31*(L210))/((Inserir_Dados!$D$13^2)*$G$31))) -> 
L211: =IF(M211>0,Inserir_Dados!H204*60,L210) -> 0 | M211: =+Inserir_Dados!I204 -> 0 | N211: =+((0.07/(4*PI()*$C$31))*LN((2.25*$C$31*(L211))/((Inserir_Dados!$D$13^2)*$G$31))) -> 
... 6 more rows

Sheet Theis
C9: Determinação da Transmissividade e do Coeficiente | L9: Estas colunas realizam os cálculos da planilha, não as utilize
D10: de Armazenamento Pelo Método de Theis | L10: se não souber o que está fazendo
D13: IDENTIFICAÇÃO DO POÇO: | E13: =Inserir_Dados!D7 -> Poço de Bombeamento XXXXXXXXX | L13: t/r² | M13: Rebaixamento | N13: W(u) | O13: U
M14: (m)
B15: INSERIR DADOS DO POÇO E DO AQUÍFERO | F15: Localização: | G15: =Inserir_Dados!D8 -> %%%%%%%% | L15: =(Inserir_Dados!H10*60)/(Inserir_Dados!$D$13^2) -> 0 | M15: =+Inserir_Dados!I10 -> 0 | N15: =((Inserir_Dados!$D$12/3600)/4/PI()/$C$31)*expint1($G$31/4/$C$31/O15) -> 0.001310614343 | O15: 0.001
B16: Detalhes da Construção: | F16: Data: | G16: =Inserir_Dados!D9 -> &&&&&&& | L16: =IF(M16>0,(Inserir_Dados!H11*60)/(Inserir_Dados!$D$13^2),L15) -> 0 | M16: =+Inserir_Dados!I11 -> 0 | N16: =((Inserir_Dados!$D$12/3600)/4/PI()/$C$31)*expint1($G$31/4/$C$31/O16) -> 0.003090855294 | O16: =O15*1.2 -> 0.0012
B17: Diâmetro do Revestimento: | C17: =Inserir_Dados!D19 -> 10 | D17: Polegadas | F17: Coordenadas: | G17: =Inserir_Dados!D10 -> 0 | H17: Lat. | L17: =IF(M17>0,(Inserir_Dados!H12*60)/(Inserir_Dados!$D$13^2),L16) -> 0 | M17: =+Inserir_Dados!I12 -> 0 | N17: =((Inserir_Dados!$D$12/3600)/4/PI()/$C$31)*expint1($G$31/4/$C$31/O17) -> 0.006459041628 | O17: =O16*1.2 -> 0.00144
B18: Diâmetro de Perfuração: | C18: =Inserir_Dados!D20 -> 14 | D18: Polegadas | G18: =Inserir_Dados!D11 -> 0 | H18: Long. | L18: =IF(M18>0,(Inserir_Dados!H13*60)/(Inserir_Dados!$D$13^2),L17) -> 0 | M18: =+Inserir_Dados!I13 -> 0 | N18: =((Inserir_Dados!$D$12/3600)/4/PI()/$C$31)*expint1($G$31/4/$C$31/O18) -> 0.01219396174 | O18: 0.001728
B19: Profundidade do Poço: | C19: =Inserir_Dados!D21 -> 260 | D19: metros | L19: =IF(M19>0,(Inserir_Dados!H14*60)/(Inserir_Dados!$D$13^2),L18) -> 0 | M19: =+Inserir_Dados!I14 -> 0 | N19: =((Inserir_Dados!$D$12/3600)/4/PI()/$C$31)*expint1($G$31/4/$C$31/O19) -> 0.02113509076 | O19: 0.0020736
B20: Profundidades: | G20: RESULTADOS | L20: =IF(M20>0,(Inserir_Dados!H15*60)/(Inserir_Dados!$D$13^2),L19) -> 0 | M20: =+Inserir_Dados!I15 -> 0 | N20: =((Inserir_Dados!$D$12/3600)/4/PI()/$C$31)*expint1($G$31/4/$C$31/O20) -> 0.03408572207 | O20: 0.00248832
B21: Nível Estático: | C21: =Inserir_Dados!D16 -> 23.5 | D21: metros | F21: B (espessura aqüífero) = | G21: =+C23-C22 -> 326.5 | H21: m | L21: =IF(M21>0,(Inserir_Dados!H16*60)/(Inserir_Dados!$D$13^2),L20) -> 0 | M21: =+Inserir_Dados!I16 -> 0 | N21: =((Inserir_Dados!$D$12/3600)/4/PI()/$C$31)*expint1($G$31/4/$C$31/O21) -> 0.05172564124 | O21: 0.002985984
B22: Topo do Aquifero: | C22: =Inserir_Dados!D17 -> 23.5 | D22: metros | F22: Q (vazão) = | G22: =+Inserir_Dados!D12 -> 250 | H22: m³/h | L22: =IF(M22>0,(Inserir_Dados!H17*60)/(Inserir_Dados!$D$13^2),L21) -> 0 | M22: =+Inserir_Dados!I17 -> 0 | N22: =((Inserir_Dados!$D$12/3600)/4/PI()/$C$31)*expint1($G$31/4/$C$31/O22) -> 0.07455114736 | O22: 0.0035831808
B23: Base do Aquifero: | C23: =Inserir_Dados!D18 -> 350 | D23: metros | F23: R (dist. do piezômetro) = | G23: =+Inserir_Dados!D13 -> 20 | H23: m | L23: =IF(M23>0,(Inserir_Dados!H18*60)/(Inserir_Dados!$D$13^2),L22) -> 0 | M23: =+Inserir_Dados!I18 -> 0 | N23: =((Inserir_Dados!$D$12/3600)/4/PI()/$C$31)*expint1($G$31/4/$C$31/O23) -> 0.102837697 | O23: 0.00429981696
B24: Espaço Anular: | F24: T (Transmissividade) = | G24: =+C31*3600 -> 43.68199862 | H24: m²/h | L24: =IF(M24>0,(Inserir_Dados!H19*60)/(Inserir_Dados!$D$13^2),L23) -> 0 | M24: =+Inserir_Dados!I19 -> 0 | N24: =((Inserir_Dados!$D$12/3600)/4/PI()/$C$31)*expint1($G$31/4/$C$31/O24) -> 0.1366872401 | O24: 0.005159780352
B25: Material do Pré-Filtro: | F25: k (permeabilidade) = | G25: =+G24/(C23-C22) -> 0.1337886635 | H25: m/h | L25: =IF(M25>0,(Inserir_Dados!H20*60)/(Inserir_Dados!$D$13^2),L24) -> 0 | M25: =+Inserir_Dados!I20 -> 0 | N25: =((Inserir_Dados!$D$12/3600)/4/PI()/$C$31)*expint1($G$31/4/$C$31/O25) -> 0.1759912613 | O25: 0.006191736422
B26: Selo do Poço: | F26: S (coef. de armazenamento) = | G26: =+G31 -> 0.0002051162179 | L26: =IF(M26>0,(Inserir_Dados!H21*60)/(Inserir_Dados!$D$13^2),L25) -> 0 | M26: =+Inserir_Dados!I21 -> 0 | N26: =((Inserir_Dados!$D$12/3600)/4/PI()/$C$31)*expint1($G$31/4/$C$31/O26) -> 0.2205085088 | O26: 0.007430083707
B27: Material da Formação: | L27: =IF(M27>0,(Inserir_Dados!H22*60)/(Inserir_Dados!$D$13^2),L26) -> 0 | M27: =+Inserir_Dados!I22 -> 0 | N27: =((Inserir_Dados!$D$12/3600)/4/PI()/$C$31)*expint1($G$31/4/$C$31/O27) -> 0.269896247 | O27: 0.008916100448
B28: Vazão de Bombeamento: | C28: =Inserir_Dados!D12 -> 250 | D28: m³/s | L28: =IF(M28>0,(Inserir_Dados!H23*60)/(Inserir_Dados!$D$13^2),L27) -> 0 | M28: =+Inserir_Dados!I23 -> 0 | N28: =((Inserir_Dados!$D$12/3600)/4/PI()/$C$31)*expint1($G$31/4/$C$31/O28) -> 0.3237485826 | O28: 0.01069932054
L29: =IF(M29>0,(Inserir_Dados!H24*60)/(Inserir_Dados!$D$13^2),L28) -> 0 | M29: =+Inserir_Dados!I24 -> 0 | N29: =((Inserir_Dados!$D$12/3600)/4/PI()/$C$31)*expint1($G$31/4/$C$31/O29) -> 0.3816290949 | O29: 0.01283918465
L30: =IF(M30>0,(Inserir_Dados!H25*60)/(Inserir_Dados!$D$13^2),L29) -> 0 | M30: =+Inserir_Dados!I25 -> 0 | N30: =((Inserir_Dados!$D$12/3600)/4/PI()/$C$31)*expint1($G$31/4/$C$31/O30) -> 0.4430963148 | O30: 0.01540702157
B31: T | C31: =10^((D31/1000)-10) -> 0.0121338885 | D31: 8084 | F31: S | G31: =10^((I31/1000)-10) -> 0.0002051162179 | I31: 6312 | L31: =IF(M31>0,(Inserir_Dados!H26*60)/(Inserir_Dados!$D$13^2),L30) -> 0 | M31: =+Inserir_Dados!I26 -> 0 | N31: =((Inserir_Dados!$D$12/3600)/4/PI()/$C$31)*expint1($G$31/4/$C$31/O31) -> 0.5077221597 | O31: 0.01848842589
L32: =IF(M32>0,(Inserir_Dados!H27*60)/(Inserir_Dados!$D$13^2),L31) -> 0 | M32: =+Inserir_Dados!I27 -> 0 | N32: =((Inserir_Dados!$D$12/3600)/4/PI()/$C$31)*expint1($G$31/4/$C$31/O32) -> 0.5751041971 | O32: 0.02218611107
L33: =IF(M33>0,(Inserir_Dados!H28*60)/(Inserir_Dados!$D$13^2),L32) -> 0 | M33: =+Inserir_Dados!I28 -> 0 | N33: =((Inserir_Dados!$D$12/3600)/4/PI()/$C$31)*expint1($G$31/4/$C$31/O33) -> 0.6448729096 | O33: 0.02662333328
L34: =IF(M34>0,(Inserir_Dados!H29*60)/(Inserir_Dados!$D$13^2),L33) -> 0 | M34: =+Inserir_Dados!I29 -> 0 | N34: =((Inserir_Dados!$D$12/3600)/4/PI()/$C$31)*expint1($G$31/4/$C$31/O34) -> 0.7166951583 | O34: 0.03194799994
L35: =IF(M35>0,(Inserir_Dados!H30*60)/(Inserir_Dados!$D$13^2),L34) -> 0 | M35: =+Inserir_Dados!I30 -> 0 | N35: =((Inserir_Dados!$D$12/3600)/4/PI()/$C$31)*expint1($G$31/4/$C$31/O35) -> 0.7902749185 | O35: 0.03833759992
L36: =IF(M36>0,(Inserir_Dados!H31*60)/(Inserir_Dados!$D$13^2),L35) -> 0 | M36: =+Inserir_Dados!I31 -> 0 | N36: =((Inserir_Dados!$D$12/3600)/4/PI()/$C$31)*expint1($G$31/4/$C$31/O36) -> 0.865352174 | O36: 0.04600511991
L37: =IF(M37>0,(Inserir_Dados!H32*60)/(Inserir_Dados!$D$13^2),L36) -> 0 | M37: =+Inserir_Dados!I32 -> 0 | N37: =((Inserir_Dados!$D$12/3600)/4/PI()/$C$31)*expint1($G$31/4/$C$31/O37) -> 0.9417006633 | O37: 0.05520614389
L38: =IF(M38>0,(Inserir_Dados!H33*60)/(Inserir_Dados!$D$13^2),L37) -> 0 | M38: =+Inserir_Dados!I33 -> 0 | N38: =((Inserir_Dados!$D$12/3600)/4/PI()/$C$31)*expint1($G$31/4/$C$31/O38) -> 1.019124987 | O38: 0.06624737267
L39: =IF(M39>0,(Inserir_Dados!H34*60)/(Inserir_Dados!$D$13^2),L38) -> 0 | M39: =+Inserir_Dados!I34 -> 0 | N39: =((Inserir_Dados!$D$12/3600)/4/PI()/$C$31)*expint1($G$31/4/$C$31/O39) -> 1.097457443 | O39: 0.0794968472
L40: =IF(M40>0,(Inserir_Dados!H35*60)/(Inserir_Dados!$D$13^2),L39) -> 0 | M40: =+Inserir_Dados!I35 -> 0 | N40: =((Inserir_Dados!$D$12/3600)/4/PI()/$C$31)*expint1($G$31/4/$C$31/O40) -> 1.176554829 | O40: 0.09539621664
L41: =IF(M41>0,(Inserir_Dados!H36*60)/(Inserir_Dados!$D$13^2),L40) -> 0 | M41: =+Inserir_Dados!I36 -> 0 | N41: =((Inserir_Dados!$D$12/3600)/4/PI()/$C$31)*expint1($G$31/4/$C$31/O41) -> 1.256295374 | O41: 0.11447546
L42: =IF(M42>0,(Inserir_Dados!H37*60)/(Inserir_Dados!$D$13^2),L41) -> 0 | M42: =+Inserir_Dados!I37 -> 0 | N42: =((Inserir_Dados!$D$12/3600)/4/PI()/$C$31)*expint1($G$31/4/$C$31/O42) -> 1.33657589 | O42: 0.137370552
L43: =IF(M43>0,(Inserir_Dados!H38*60)/(Inserir_Dados!$D$13^2),L42) -> 0 | M43: =+Inserir_Dados!I38 -> 0 | N43: =((Inserir_Dados!$D$12/3600)/4/PI()/$C$31)*expint1($G$31/4/$C$31/O43) -> 1.41730918 | O43: 0.1648446624
L44: =IF(M44>0,(Inserir_Dados!H39*60)/(Inserir_Dados!$D$13^2),L43) -> 0 | M44: =+Inserir_Dados!I39 -> 0 | N44: =((Inserir_Dados!$D$12/3600)/4/PI()/$C$31)*expint1($G$31/4/$C$31/O44) -> 1.498421737 | O44: 0.1978135948
L45: =IF(M45>0,(Inserir_Dados!H40*60)/(Inserir_Dados!$D$13^2),L44) -> 0 | M45: =+Inserir_Dados!I40 -> 0 | N45: =((Inserir_Dados!$D$12/3600)/4/PI()/$C$31)*expint1($G$31/4/$C$31/O45) -> 1.579851715 | O45: 0.2373763138
L46: =IF(M46>0,(Inserir_Dados!H41*60)/(Inserir_Dados!$D$13^2),L45) -> 0 | M46: =+Inserir_Dados!I41 -> 0 | N46: =((Inserir_Dados!$D$12/3600)/4/PI()/$C$31)*expint1($G$31/4/$C$31/O46) -> 1.66154716 | O46: 0.2848515766
L47: =IF(M47>0,(Inserir_Dados!H42*60)/(Inserir_Dados!$D$13^2),L46) -> 0 | M47: =+Inserir_Dados!I42 -> 0 | N47: =((Inserir_Dados!$D$12/3600)/4/PI()/$C$31)*expint1($G$31/4/$C$31/O47) -> 1.743464491 | O47: 0.3418218919
L48: =IF(M48>0,(Inserir_Dados!H43*60)/(Inserir_Dados!$D$13^2),L47) -> 0 | M48: =+Inserir_Dados!I43 -> 0 | N48: =((Inserir_Dados!$D$12/3600)/4/PI()/$C$31)*expint1($G$31/4/$C$31/O48) -> 1.825567189 | O48: 0.4101862702
L49: =IF(M49>0,(Inserir_Dados!H44*60)/(Inserir_Dados!$D$13^2),L48) -> 0 | M49: =+Inserir_Dados!I44 -> 0 | N49: =((Inserir_Dados!$D$12/3600)/4/PI()/$C$31)*expint1($G$31/4/$C$31/O49) -> 1.907824679 | O49: 0.4922235243
L50: =IF(M50>0,(Inserir_Dados!H45*60)/(Inserir_Dados!$D$13^2),L49) -> 0 | M50: =+Inserir_Dados!I45 -> 0 | N50: =((Inserir_Dados!$D$12/3600)/4/PI()/$C$31)*expint1($G$31/4/$C$31/O50) -> 1.990211388 | O50: 0.5906682292
L51: =IF(M51>0,(Inserir_Dados!H46*60)/(Inserir_Dados!$D$13^2),L50) -> 0 | M51: =+Inserir_Dados!I46 -> 0 | N51: =((Inserir_Dados!$D$12/3600)/4/PI()/$C$31)*expint1($G$31/4/$C$31/O51) -> 2.072705933 | O51: 0.708801875
L52: =IF(M52>0,(Inserir_Dados!H47*60)/(Inserir_Dados!$D$13^2),L51) -> 0 | M52: =+Inserir_Dados!I47 -> 0 | N52: =((Inserir_Dados!$D$12/3600)/4/PI()/$C$31)*expint1($G$31/4/$C$31/O52) -> 2.15529045 | O52: 0.85056225
L53: =IF(M53>0,(Inserir_Dados!H48*60)/(Inserir_Dados!$D$13^2),L52) -> 0 | M53: =+Inserir_Dados!I48 -> 0 | N53: =((Inserir_Dados!$D$12/3600)/4/PI()/$C$31)*expint1($G$31/4/$C$31/O53) -> 2.237950019 | O53: 1.0206747
L54: =IF(M54>0,(Inserir_Dados!H49*60)/(Inserir_Dados!$D$13^2),L53) -> 0 | M54: =+Inserir_Dados!I49 -> 0 | N54: =((Inserir_Dados!$D$12/3600)/4/PI()/$C$31)*expint1($G$31/4/$C$31/O54) -> 2.320672183 | O54: 1.22480964
L55: =IF(M55>0,(Inserir_Dados!H50*60)/(Inserir_Dados!$D$13^2),L54) -> 0 | M55: =+Inserir_Dados!I50 -> 0 | N55: =((Inserir_Dados!$D$12/3600)/4/PI()/$C$31)*expint1($G$31/4/$C$31/O55) -> 2.403446547 | O55: 1.469771568
L56: =IF(M56>0,(Inserir_Dados!H51*60)/(Inserir_Dados!$D$13^2),L55) -> 0 | M56: =+Inserir_Dados!I51 -> 0 | N56: =((Inserir_Dados!$D$12/3600)/4/PI()/$C$31)*expint1($G$31/4/$C$31/O56) -> 2.486264436 | O56: 1.763725882
L57: =IF(M57>0,(Inserir_Dados!H52*60)/(Inserir_Dados!$D$13^2),L56) -> 0 | M57: =+Inserir_Dados!I52 -> 0 | N57: =((Inserir_Dados!$D$12/3600)/4/PI()/$C$31)*expint1($G$31/4/$C$31/O57) -> 2.569118612 | O57: 2.116471058
L58: =IF(M58>0,(Inserir_Dados!H53*60)/(Inserir_Dados!$D$13^2),L57) -> 0 | M58: =+Inserir_Dados!I53 -> 0 | N58: =((Inserir_Dados!$D$12/3600)/4/PI()/$C$31)*expint1($G$31/4/$C$31/O58) -> 2.65200304 | O58: 2.539765269
L59: =IF(M59>0,(Inserir_Dados!H54*60)/(Inserir_Dados!$D$13^2),L58) -> 0 | M59: =+Inserir_Dados!I54 -> 0 | N59: =((Inserir_Dados!$D$12/3600)/4/PI()/$C$31)*expint1($G$31/4/$C$31/O59) -> 2.734912688 | O59: 3.047718323
L60: =IF(M60>0,(Inserir_Dados!H55*60)/(Inserir_Dados!$D$13^2),L59) -> 0 | M60: =+Inserir_Dados!I55 -> 0 | N60: =((Inserir_Dados!$D$12/3600)/4/PI()/$C$31)*expint1($G$31/4/$C$31/O60) -> 2.817843356 | O60: 3.657261988
L61: =IF(M61>0,(Inserir_Dados!H56*60)/(Inserir_Dados!$D$13^2),L60) -> 0 | M61: =+Inserir_Dados!I56 -> 0 | N61: =((Inserir_Dados!$D$12/3600)/4/PI()/$C$31)*expint1($G$31/4/$C$31/O61) -> 2.900791546 | O61: 4.388714386
L62: =IF(M62>0,(Inserir_Dados!H57*60)/(Inserir_Dados!$D$13^2),L61) -> 0 | M62: =+Inserir_Dados!I57 -> 0 | N62: =((Inserir_Dados!$D$12/3600)/4/PI()/$C$31)*expint1($G$31/4/$C$31/O62) -> 2.983754341 | O62: 5.266457263
L63: =IF(M63>0,(Inserir_Dados!H58*60)/(Inserir_Dados!$D$13^2),L62) -> 0 | M63: =+Inserir_Dados!I58 -> 0 | N63: =((Inserir_Dados!$D$12/3600)/4/PI()/$C$31)*expint1($G$31/4/$C$31/O63) -> 3.066729308 | O63: 6.319748715
L64: =IF(M64>0,(Inserir_Dados!H59*60)/(Inserir_Dados!$D$13^2),L63) -> 0 | M64: =+Inserir_Dados!I59 -> 0 | N64: =((Inserir_Dados!$D$12/3600)/4/PI()/$C$31)*expint1($G$31/4/$C$31/O64) -> 3.14971442 | O64: 7.583698458
L65: =IF(M65>0,(Inserir_Dados!H60*60)/(Inserir_Dados!$D$13^2),L64) -> 0 | M65: =+Inserir_Dados!I60 -> 0 | N65: =((Inserir_Dados!$D$12/3600)/4/PI()/$C$31)*expint1($G$31/4/$C$31/O65) -> 3.232707987 | O65: 9.10043815
L66: =IF(M66>0,(Inserir_Dados!H61*60)/(Inserir_Dados!$D$13^2),L65) -> 0 | M66: =+Inserir_Dados!I61 -> 0 | N66: =((Inserir_Dados!$D$12/3600)/4/PI()/$C$31)*expint1($G$31/4/$C$31/O66) -> 3.315708601 | O66: 10.92052578
L67: =IF(M67>0,(Inserir_Dados!H62*60)/(Inserir_Dados!$D$13^2),L66) -> 0 | M67: =+Inserir_Dados!I62 -> 0 | N67: =((Inserir_Dados!$D$12/3600)/4/PI()/$C$31)*expint1($G$31/4/$C$31/O67) -> 3.398715087 | O67: 13.10463094
L68: =IF(M68>0,(Inserir_Dados!H63*60)/(Inserir_Dados!$D$13^2),L67) -> 0 | M68: =+Inserir_Dados!I63 -> 0 | N68: =((Inserir_Dados!$D$12/3600)/4/PI()/$C$31)*expint1($G$31/4/$C$31/O68) -> 3.481726468 | O68: 15.72555712
L69: =IF(M69>0,(Inserir_Dados!H64*60)/(Inserir_Dados!$D$13^2),L68) -> 0 | M69: =+Inserir_Dados!I64 -> 0 | N69: =((Inserir_Dados!$D$12/3600)/4/PI()/$C$31)*expint1($G$31/4/$C$31/O69) -> 3.564741927 | O69: 18.87066855
L70: =IF(M70>0,(Inserir_Dados!H65*60)/(Inserir_Dados!$D$13^2),L69) -> 0 | M70: =+Inserir_Dados!I65 -> 0 | N70: =((Inserir_Dados!$D$12/3600)/4/PI()/$C$31)*expint1($G$31/4/$C$31/O70) -> 3.647760785 | O70: 22.64480226
L71: =IF(M71>0,(Inserir_Dados!H66*60)/(Inserir_Dados!$D$13^2),L70) -> 0 | M71: =+Inserir_Dados!I66 -> 0 | N71: =((Inserir_Dados!$D$12/3600)/4/PI()/$C$31)*expint1($G$31/4/$C$31/O71) -> 3.730782476 | O71: 27.17376271
L72: =IF(M72>0,(Inserir_Dados!H67*60)/(Inserir_Dados!$D$13^2),L71) -> 0 | M72: =+Inserir_Dados!I67 -> 0 | N72: =((Inserir_Dados!$D$12/3600)/4/PI()/$C$31)*expint1($G$31/4/$C$31/O72) -> 3.813806527 | O72: 32.60851525
L73: =IF(M73>0,(Inserir_Dados!H68*60)/(Inserir_Dados!$D$13^2),L72) -> 0 | M73: =+Inserir_Dados!I68 -> 0 | N73: =((Inserir_Dados!$D$12/3600)/4/PI()/$C$31)*expint1($G$31/4/$C$31/O73) -> 3.896832546 | O73: 39.1302183
L74: =IF(M74>0,(Inserir_Dados!H69*60)/(Inserir_Dados!$D$13^2),L73) -> 0 | M74: =+Inserir_Dados!I69 -> 0 | N74: =((Inserir_Dados!$D$12/3600)/4/PI()/$C$31)*expint1($G$31/4/$C$31/O74) -> 3.979860204 | O74: 46.95626196
L75: =IF(M75>0,(Inserir_Dados!H70*60)/(Inserir_Dados!$D$13^2),L74) -> 0 | M75: =+Inserir_Dados!I70 -> 0 | N75: =((Inserir_Dados!$D$12/3600)/4/PI()/$C$31)*expint1($G$31/4/$C$31/O75) -> 4.062889228 | O75: 56.34751435
L76: =IF(M76>0,(Inserir_Dados!H71*60)/(Inserir_Dados!$D$13^2),L75) -> 0 | M76: =+Inserir_Dados!I71 -> 0 | N76: =((Inserir_Dados!$D$12/3600)/4/PI()/$C$31)*expint1($G$31/4/$C$31/O76) -> 4.145919391 | O76: 67.61701722
L77: =IF(M77>0,(Inserir_Dados!H72*60)/(Inserir_Dados!$D$13^2),L76) -> 0 | M77: =+Inserir_Dados!I72 -> 0 | N77: =((Inserir_Dados!$D$12/3600)/4/PI()/$C$31)*expint1($G$31/4/$C$31/O77) -> 4.228950502 | O77: 81.14042067
L78: =IF(M78>0,(Inserir_Dados!H73*60)/(Inserir_Dados!$D$13^2),L77) -> 0 | M78: =+Inserir_Dados!I73 -> 0 | N78: =((Inserir_Dados!$D$12/3600)/4/PI()/$C$31)*expint1($G$31/4/$C$31/O78) -> 4.311982404 | O78: 97.3685048
L79: =IF(M79>0,(Inserir_Dados!H74*60)/(Inserir_Dados!$D$13^2),L78) -> 0 | M79: =+Inserir_Dados!I74 -> 0 | N79: =((Inserir_Dados!$D$12/3600)/4/PI()/$C$31)*expint1($G$31/4/$C$31/O79) -> 4.395014965 | O79: 116.8422058
L80: =IF(M80>0,(Inserir_Dados!H75*60)/(Inserir_Dados!$D$13^2),L79) -> 0 | M80: =+Inserir_Dados!I75 -> 0 | N80: =((Inserir_Dados!$D$12/3600)/4/PI()/$C$31)*expint1($G$31/4/$C$31/O80) -> 4.478048075 | O80: 140.2106469
L81: =IF(M81>0,(Inserir_Dados!H76*60)/(Inserir_Dados!$D$13^2),L80) -> 0 | M81: =+Inserir_Dados!I76 -> 0 | N81: =((Inserir_Dados!$D$12/3600)/4/PI()/$C$31)*expint1($G$31/4/$C$31/O81) -> 4.561081643 | O81: =O80*1.2 -> 168.2527763
L82: =IF(M82>0,(Inserir_Dados!H77*60)/(Inserir_Dados!$D$13^2),L81) -> 0 | M82: =+Inserir_Dados!I77 -> 0 | N82: =((Inserir_Dados!$D$12/3600)/4/PI()/$C$31)*expint1($G$31/4/$C$31/O82) -> 4.644115592 | O82: 201.9033316
L83: =IF(M83>0,(Inserir_Dados!H78*60)/(Inserir_Dados!$D$13^2),L82) -> 0 | M83: =+Inserir_Dados!I78 -> 0 | N83: =((Inserir_Dados!$D$12/3600)/4/PI()/$C$31)*expint1($G$31/4/$C$31/O83) -> 4.727149859 | O83: 242.2839979
L84: =IF(M84>0,(Inserir_Dados!H79*60)/(Inserir_Dados!$D$13^2),L83) -> 0 | M84: =+Inserir_Dados!I79 -> 0 | N84: =((Inserir_Dados!$D$12/3600)/4/PI()/$C$31)*expint1($G$31/4/$C$31/O84) -> 4.81018439 | O84: 290.7407974
L85: =IF(M85>0,(Inserir_Dados!H80*60)/(Inserir_Dados!$D$13^2),L84) -> 0 | M85: =+Inserir_Dados!I80 -> 0 | N85: =((Inserir_Dados!$D$12/3600)/4/PI()/$C$31)*expint1($G$31/4/$C$31/O85) -> 4.893219142 | O85: 348.8889569
L86: =IF(M86>0,(Inserir_Dados!H81*60)/(Inserir_Dados!$D$13^2),L85) -> 0 | M86: =+Inserir_Dados!I81 -> 0 | N86: =((Inserir_Dados!$D$12/3600)/4/PI()/$C$31)*expint1($G$31/4/$C$31/O86) -> 4.976254078 | O86: 418.6667483
L87: =IF(M87>0,(Inserir_Dados!H82*60)/(Inserir_Dados!$D$13^2),L86) -> 0 | M87: =+Inserir_Dados!I82 -> 0 | N87: =((Inserir_Dados!$D$12/3600)/4/PI()/$C$31)*expint1($G$31/4/$C$31/O87) -> 5.059289168 | O87: 502.400098
L88: =IF(M88>0,(Inserir_Dados!H83*60)/(Inserir_Dados!$D$13^2),L87) -> 0 | M88: =+Inserir_Dados!I83 -> 0 | N88: =((Inserir_Dados!$D$12/3600)/4/PI()/$C$31)*expint1($G$31/4/$C$31/O88) -> 5.142324385 | O88: 602.8801176
L89: =IF(M89>0,(Inserir_Dados!H84*60)/(Inserir_Dados!$D$13^2),L88) -> 0 | M89: =+Inserir_Dados!I84 -> 0 | N89: =((Inserir_Dados!$D$12/3600)/4/PI()/$C$31)*expint1($G$31/4/$C$31/O89) -> 5.225359708 | O89: 723.4561411
L90: =IF(M90>0,(Inserir_Dados!H85*60)/(Inserir_Dados!$D$13^2),L89) -> 0 | M90: =+Inserir_Dados!I85 -> 0 | N90: =((Inserir_Dados!$D$12/3600)/4/PI()/$C$31)*expint1($G$31/4/$C$31/O90) -> 5.30839512 | O90: 868.1473693
L91: =IF(M91>0,(Inserir_Dados!H86*60)/(Inserir_Dados!$D$13^2),L90) -> 0 | M91: =+Inserir_Dados!I86 -> 0 | N91: =((Inserir_Dados!$D$12/3600)/4/PI()/$C$31)*expint1($G$31/4/$C$31/O91) -> 5.391430606 | O91: 1041.776843
L92: =IF(M92>0,(Inserir_Dados!H87*60)/(Inserir_Dados!$D$13^2),L91) -> 0 | M92: =+Inserir_Dados!I87 -> 0 | N92: =((Inserir_Dados!$D$12/3600)/4/PI()/$C$31)*expint1($G$31/4/$C$31/O92) -> 5.474466154 | O92: 1250.132212
L93: =IF(M93>0,(Inserir_Dados!H88*60)/(Inserir_Dados!$D$13^2),L92) -> 0 | M93: =+Inserir_Dados!I88 -> 0 | N93: =((Inserir_Dados!$D$12/3600)/4/PI()/$C$31)*expint1($G$31/4/$C$31/O93) -> 5.557501753 | O93: 1500.158654
L94: =IF(M94>0,(Inserir_Dados!H89*60)/(Inserir_Dados!$D$13^2),L93) -> 0 | M94: =+Inserir_Dados!I89 -> 0 | N94: =((Inserir_Dados!$D$12/3600)/4/PI()/$C$31)*expint1($G$31/4/$C$31/O94) -> 5.640537394 | O94: 1800.190385
L95: =IF(M95>0,(Inserir_Dados!H90*60)/(Inserir_Dados!$D$13^2),L94) -> 0 | M95: =+Inserir_Dados!I90 -> 0 | N95: =((Inserir_Dados!$D$12/3600)/4/PI()/$C$31)*expint1($G$31/4/$C$31/O95) -> 5.723573072 | O95: 2160.228462
L96: =IF(M96>0,(Inserir_Dados!H91*60)/(Inserir_Dados!$D$13^2),L95) -> 0 | M96: =+Inserir_Dados!I91 -> 0 | N96: =((Inserir_Dados!$D$12/3600)/4/PI()/$C$31)*expint1($G$31/4/$C$31/O96) -> 5.806608779 | O96: 2592.274154
L97: =IF(M97>0,(Inserir_Dados!H92*60)/(Inserir_Dados!$D$13^2),L96) -> 0 | M97: =+Inserir_Dados!I92 -> 0 | N97: =((Inserir_Dados!$D$12/3600)/4/PI()/$C$31)*expint1($G$31/4/$C$31/O97) -> 5.88964451 | O97: 3110.728985
L98: =IF(M98>0,(Inserir_Dados!H93*60)/(Inserir_Dados!$D$13^2),L97) -> 0 | M98: =+Inserir_Dados!I93 -> 0 | N98: =((Inserir_Dados!$D$12/3600)/4/PI()/$C$31)*expint1($G$31/4/$C$31/O98) -> 5.972680263 | O98: 3732.874782
L99: =IF(M99>0,(Inserir_Dados!H94*60)/(Inserir_Dados!$D$13^2),L98) -> 0 | M99: =+Inserir_Dados!I94 -> 0 | N99: =((Inserir_Dados!$D$12/3600)/4/PI()/$C$31)*expint1($G$31/4/$C$31/O99) -> 6.055716032 | O99: 4479.449739
L100: =IF(M100>0,(Inserir_Dados!H95*60)/(Inserir_Dados!$D$13^2),L99) -> 0 | M100: =+Inserir_Dados!I95 -> 0 | N100: =((Inserir_Dados!$D$12/3600)/4/PI()/$C$31)*expint1($G$31/4/$C$31/O100) -> 6.138751816 | O100: 5375.339687
L101: =IF(M101>0,(Inserir_Dados!H96*60)/(Inserir_Dados!$D$13^2),L100) -> 0 | M101: =+Inserir_Dados!I96 -> 0 | N101: =((Inserir_Dados!$D$12/3600)/4/PI()/$C$31)*expint1($G$31/4/$C$31/O101) -> 6.221787612 | O101: 6450.407624
L102: =IF(M102>0,(Inserir_Dados!H97*60)/(Inserir_Dados!$D$13^2),L101) -> 0 | M102: =+Inserir_Dados!I97 -> 0 | N102: =((Inserir_Dados!$D$12/3600)/4/PI()/$C$31)*expint1($G$31/4/$C$31/O102) -> 6.304823418 | O102: 7740.489149
L103: =IF(M103>0,(Inserir_Dados!H98*60)/(Inserir_Dados!$D$13^2),L102) -> 0 | M103: =+Inserir_Dados!I98 -> 0 | N103: =((Inserir_Dados!$D$12/3600)/4/PI()/$C$31)*expint1($G$31/4/$C$31/O103) -> 6.387859232 | O103: 9288.586978

Sheet Theis_Dupuit
C10: Determinação da Transmissividade e do Coeficiente | O10: Estas colunas realizam os cálculos da planilha, não as utilize
C11: de Armazenamento - Método de Theis/Dupuit | O11: se não souber o que está fazendo
D14: IDENTIFICAÇÃO DO POÇO: | E14: =[1]Inserir_Dados!E6 -> Poço de Bombeamento da Faz. Campinas | O14: t/r² | P14: Rebaixamento | Q14: W(u) | R14: U
P15: (m)
B16: INSERIR DADOS DO POÇO E DO AQUÍFERO | F16: Localização: | G16: =[1]Inserir_Dados!E7 -> São Desidério | O16: =([1]Inserir_Dados!I9*60)/([1]Inserir_Dados!$E$12^2) -> 0.15 | P16: =IF((([1]Inserir_Dados!J9)/([1]Inserir_Dados!$E$21))<0.02,[1]Inserir_Dados!J9,IF(([1]Inserir_Dados!J9)/([1]Inserir_Dados!$E$21)<0.25,([1]Inserir_Dados!J9)-(([1]Inserir_Dados!J9^2)/(2*[1]Inserir_Dados!$E$21)))) -> 1.4 | Q16: =(([1]Inserir_Dados!$E$11/3600)/4/PI()/$C$32)*expint1($G$32/4/$C$32/R16) -> 4.11450745e-05 | R16: 0.001
B17: Detalhes da Construção: | F17: Data: | G17: =[1]Inserir_Dados!E8 -> 2002-04-04 | O17: =IF(P17>0,([1]Inserir_Dados!I10*60)/([1]Inserir_Dados!$E$12^2),O16) -> 0.3 | P17: =IF((([1]Inserir_Dados!J10)/([1]Inserir_Dados!$E$21))<0.02,[1]Inserir_Dados!J10,IF(([1]Inserir_Dados!J10)/([1]Inserir_Dados!$E$21)<0.25,([1]Inserir_Dados!J10)-(([1]Inserir_Dados!J10^2)/(2*[1]Inserir_Dados!$E$21)))) -> 1.7 | Q17: =(([1]Inserir_Dados!$E$11/3600)/4/PI()/$C$32)*expint1($G$32/4/$C$32/R17) -> 0.0001637323099 | R17: =R16*1.2 -> 0.0012
B18: Diâmetro do Revestimento: | C18: =[1]Inserir_Dados!E18 -> 4 | D18: Polegadas | F18: Coordenadas: | G18: =[1]Inserir_Dados!E9 -> 0 | H18: Lat. | O18: =IF(P18>0,([1]Inserir_Dados!I11*60)/([1]Inserir_Dados!$E$12^2),O17) -> 0.6 | P18: =IF((([1]Inserir_Dados!J11)/([1]Inserir_Dados!$E$21))<0.02,[1]Inserir_Dados!J11,IF(([1]Inserir_Dados!J11)/([1]Inserir_Dados!$E$21)<0.25,([1]Inserir_Dados!J11)-(([1]Inserir_Dados!J11^2)/(2*[1]Inserir_Dados!$E$21)))) -> 1.9 | Q18: =(([1]Inserir_Dados!$E$11/3600)/4/PI()/$C$32)*expint1($G$32/4/$C$32/R18) -> 0.0005303367102 | R18: 0.00144
B19: Diâmetro de Perfuração: | C19: =[1]Inserir_Dados!E19 -> 10 | D19: Polegadas | G19: =[1]Inserir_Dados!E10 -> 0 | H19: Long. | O19: =IF(P19>0,([1]Inserir_Dados!I12*60)/([1]Inserir_Dados!$E$12^2),O18) -> 0.9 | P19: =IF((([1]Inserir_Dados!J12)/([1]Inserir_Dados!$E$21))<0.02,[1]Inserir_Dados!J12,IF(([1]Inserir_Dados!J12)/([1]Inserir_Dados!$E$21)<0.25,([1]Inserir_Dados!J12)-(([1]Inserir_Dados!J12^2)/(2*[1]Inserir_Dados!$E$21)))) -> 2.15 | Q19: =(([1]Inserir_Dados!$E$11/3600)/4/PI()/$C$32)*expint1($G$32/4/$C$32/R19) -> 0.001445962608 | R19: 0.001728
B20: Profundidade do Poço: | C20: =[1]Inserir_Dados!E20 -> 260 | D20: metros | O20: =IF(P20>0,([1]Inserir_Dados!I13*60)/([1]Inserir_Dados!$E$12^2),O19) -> 1.5 | P20: =IF((([1]Inserir_Dados!J13)/([1]Inserir_Dados!$E$21))<0.02,[1]Inserir_Dados!J13,IF(([1]Inserir_Dados!J13)/([1]Inserir_Dados!$E$21)<0.25,([1]Inserir_Dados!J13)-(([1]Inserir_Dados!J13^2)/(2*[1]Inserir_Dados!$E$21)))) -> 2.35 | Q20: =(([1]Inserir_Dados!$E$11/3600)/4/PI()/$C$32)*expint1($G$32/4/$C$32/R20) -> 0.003412643246 | R20: 0.0020736
B21: Profundidades: | G21: RESULTADOS | O21: =IF(P21>0,([1]Inserir_Dados!I14*60)/([1]Inserir_Dados!$E$12^2),O20) -> 2.25 | P21: =IF((([1]Inserir_Dados!J14)/([1]Inserir_Dados!$E$21))<0.02,[1]Inserir_Dados!J14,IF(([1]Inserir_Dados!J14)/([1]Inserir_Dados!$E$21)<0.25,([1]Inserir_Dados!J14)-(([1]Inserir_Dados!J14^2)/(2*[1]Inserir_Dados!$E$21)))) -> 2.6 | Q21: =(([1]Inserir_Dados!$E$11/3600)/4/PI()/$C$32)*expint1($G$32/4/$C$32/R21) -> 0.007136041324 | R21: 0.00248832
B22: Nível Estático: | C22: =[1]Inserir_Dados!E15 -> 23.5 | D22: metros | F22: B (espessura aqüífero) = | G22: =+C24-C23 -> 326.5 | H22: m | O22: =IF(P22>0,([1]Inserir_Dados!I15*60)/([1]Inserir_Dados!$E$12^2),O21) -> 3 | P22: =IF((([1]Inserir_Dados!J15)/([1]Inserir_Dados!$E$21))<0.02,[1]Inserir_Dados!J15,IF(([1]Inserir_Dados!J15)/([1]Inserir_Dados!$E$21)<0.25,([1]Inserir_Dados!J15)-(([1]Inserir_Dados!J15^2)/(2*[1]Inserir_Dados!$E$21)))) -> 2.73 | Q22: =(([1]Inserir_Dados!$E$11/3600)/4/PI()/$C$32)*expint1($G$32/4/$C$32/R22) -> 0.01347929016 | R22: 0.002985984
B23: Topo do Aquifero: | C23: =[1]Inserir_Dados!E16 -> 23.5 | D23: metros | F23: Q (vazão) = | G23: =+[1]Inserir_Dados!E11 -> 250 | H23: m³/h | O23: =IF(P23>0,([1]Inserir_Dados!I16*60)/([1]Inserir_Dados!$E$12^2),O22) -> 3.75 | P23: =IF((([1]Inserir_Dados!J16)/([1]Inserir_Dados!$E$21))<0.02,[1]Inserir_Dados!J16,IF(([1]Inserir_Dados!J16)/([1]Inserir_Dados!$E$21)<0.25,([1]Inserir_Dados!J16)-(([1]Inserir_Dados!J16^2)/(2*[1]Inserir_Dados!$E$21)))) -> 2.82 | Q23: =(([1]Inserir_Dados!$E$11/3600)/4/PI()/$C$32)*expint1($G$32/4/$C$32/R23) -> 0.02337343171 | R23: 0.0035831808
B24: Base do Aquifero: | C24: =[1]Inserir_Dados!E17 -> 350 | D24: metros | F24: R (dist. do piezômetro) = | G24: =+[1]Inserir_Dados!E12 -> 20 | H24: m | O24: =IF(P24>0,([1]Inserir_Dados!I17*60)/([1]Inserir_Dados!$E$12^2),O23) -> 4.5 | P24: =IF((([1]Inserir_Dados!J17)/([1]Inserir_Dados!$E$21))<0.02,[1]Inserir_Dados!J17,IF(([1]Inserir_Dados!J17)/([1]Inserir_Dados!$E$21)<0.25,([1]Inserir_Dados!J17)-(([1]Inserir_Dados!J17^2)/(2*[1]Inserir_Dados!$E$21)))) -> 2.9 | Q24: =(([1]Inserir_Dados!$E$11/3600)/4/PI()/$C$32)*expint1($G$32/4/$C$32/R24) -> 0.03770998943 | R24: 0.00429981696
B25: Espaço Anular: | F25: T (Transmissividade) = | G25: =+C32*3600 -> 39.38242919 | H25: m²/h | O25: =IF(P25>0,([1]Inserir_Dados!I18*60)/([1]Inserir_Dados!$E$12^2),O24) -> 5.25 | P25: =IF((([1]Inserir_Dados!J18)/([1]Inserir_Dados!$E$21))<0.02,[1]Inserir_Dados!J18,IF(([1]Inserir_Dados!J18)/([1]Inserir_Dados!$E$21)<0.25,([1]Inserir_Dados!J18)-(([1]Inserir_Dados!J18^2)/(2*[1]Inserir_Dados!$E$21)))) -> 2.96 | Q25: =(([1]Inserir_Dados!$E$11/3600)/4/PI()/$C$32)*expint1($G$32/4/$C$32/R25) -> 0.05724397924 | R25: 0.005159780352
B26: Material do Pré-Filtro: | F26: k (permeabilidade) = | G26: =+G25/(C24-C23) -> 0.1206199975 | H26: m/h | O26: =IF(P26>0,([1]Inserir_Dados!I19*60)/([1]Inserir_Dados!$E$12^2),O25) -> 6 | P26: =IF((([1]Inserir_Dados!J19)/([1]Inserir_Dados!$E$21))<0.02,[1]Inserir_Dados!J19,IF(([1]Inserir_Dados!J19)/([1]Inserir_Dados!$E$21)<0.25,([1]Inserir_Dados!J19)-(([1]Inserir_Dados!J19^2)/(2*[1]Inserir_Dados!$E$21)))) -> 3.01 | Q26: =(([1]Inserir_Dados!$E$11/3600)/4/PI()/$C$32)*expint1($G$32/4/$C$32/R26) -> 0.08252717559 | R26: 0.006191736422
B27: Selo do Poço: | F27: S (coef. de armazenamento) = | G27: =+G32 -> 0.000319889511 | O27: =IF(P27>0,([1]Inserir_Dados!I20*60)/([1]Inserir_Dados!$E$12^2),O26) -> 6.75 | P27: =IF((([1]Inserir_Dados!J20)/([1]Inserir_Dados!$E$21))<0.02,[1]Inserir_Dados!J20,IF(([1]Inserir_Dados!J20)/([1]Inserir_Dados!$E$21)<0.25,([1]Inserir_Dados!J20)-(([1]Inserir_Dados!J20^2)/(2*[1]Inserir_Dados!$E$21)))) -> 3.04 | Q27: =(([1]Inserir_Dados!$E$11/3600)/4/PI()/$C$32)*expint1($G$32/4/$C$32/R27) -> 0.1138664733 | R27: 0.007430083707
B28: Material da Formação: | O28: =IF(P28>0,([1]Inserir_Dados!I21*60)/([1]Inserir_Dados!$E$12^2),O27) -> 9 | P28: =IF((([1]Inserir_Dados!J21)/([1]Inserir_Dados!$E$21))<0.02,[1]Inserir_Dados!J21,IF(([1]Inserir_Dados!J21)/([1]Inserir_Dados!$E$21)<0.25,([1]Inserir_Dados!J21)-(([1]Inserir_Dados!J21^2)/(2*[1]Inserir_Dados!$E$21)))) -> 3.14 | Q28: =(([1]Inserir_Dados!$E$11/3600)/4/PI()/$C$32)*expint1($G$32/4/$C$32/R28) -> 0.1513761804 | R28: 0.008916100448
B29: Vazão de Bombeamento: | C29: =[1]Inserir_Dados!E11 -> 250 | D29: m³/s | O29: =IF(P29>0,([1]Inserir_Dados!I22*60)/([1]Inserir_Dados!$E$12^2),O28) -> 10.5 | P29: =IF((([1]Inserir_Dados!J22)/([1]Inserir_Dados!$E$21))<0.02,[1]Inserir_Dados!J22,IF(([1]Inserir_Dados!J22)/([1]Inserir_Dados!$E$21)<0.25,([1]Inserir_Dados!J22)-(([1]Inserir_Dados!J22^2)/(2*[1]Inserir_Dados!$E$21)))) -> 3.18 | Q29: =(([1]Inserir_Dados!$E$11/3600)/4/PI()/$C$32)*expint1($G$32/4/$C$32/R29) -> 0.1949369862 | R29: 0.01069932054
O30: =IF(P30>0,([1]Inserir_Dados!I23*60)/([1]Inserir_Dados!$E$12^2),O29) -> 12 | P30: =IF((([1]Inserir_Dados!J23)/([1]Inserir_Dados!$E$21))<0.02,[1]Inserir_Dados!J23,IF(([1]Inserir_Dados!J23)/([1]Inserir_Dados!$E$21)<0.25,([1]Inserir_Dados!J23)-(([1]Inserir_Dados!J23^2)/(2*[1]Inserir_Dados!$E$21)))) -> 3.22 | Q30: =(([1]Inserir_Dados!$E$11/3600)/4/PI()/$C$32)*expint1($G$32/4/$C$32/R30) -> 0.2442820786 | R30: 0.01283918465
O31: =IF(P31>0,([1]Inserir_Dados!I24*60)/([1]Inserir_Dados!$E$12^2),O30) -> 13.5 | P31: =IF((([1]Inserir_Dados!J24)/([1]Inserir_Dados!$E$21))<0.02,[1]Inserir_Dados!J24,IF(([1]Inserir_Dados!J24)/([1]Inserir_Dados!$E$21)<0.25,([1]Inserir_Dados!J24)-(([1]Inserir_Dados!J24^2)/(2*[1]Inserir_Dados!$E$21)))) -> 3.25 | Q31: =(([1]Inserir_Dados!$E$11/3600)/4/PI()/$C$32)*expint1($G$32/4/$C$32/R31) -> 0.2990318262 | R31: 0.01540702157
B32: T | C32: =10^((D32/1000)-10) -> 0.01093956366 | D32: 8039 | F32: S | G32: =10^((I32/1000)-10) -> 0.000319889511 | I32: 6505 | O32: =IF(P32>0,([1]Inserir_Dados!I25*60)/([1]Inserir_Dados!$E$12^2),O31) -> 15 | P32: =IF((([1]Inserir_Dados!J25)/([1]Inserir_Dados!$E$21))<0.02,[1]Inserir_Dados!J25,IF(([1]Inserir_Dados!J25)/([1]Inserir_Dados!$E$21)<0.25,([1]Inserir_Dados!J25)-(([1]Inserir_Dados!J25^2)/(2*[1]Inserir_Dados!$E$21)))) -> 3.28 | Q32: =(([1]Inserir_Dados!$E$11/3600)/4/PI()/$C$32)*expint1($G$32/4/$C$32/R32) -> 0.3587363151 | R32: 0.01848842589
O33: =IF(P33>0,([1]Inserir_Dados!I26*60)/([1]Inserir_Dados!$E$12^2),O32) -> 18 | P33: =IF((([1]Inserir_Dados!J26)/([1]Inserir_Dados!$E$21))<0.02,[1]Inserir_Dados!J26,IF(([1]Inserir_Dados!J26)/([1]Inserir_Dados!$E$21)<0.25,([1]Inserir_Dados!J26)-(([1]Inserir_Dados!J26^2)/(2*[1]Inserir_Dados!$E$21)))) -> 3.31 | Q33: =(([1]Inserir_Dados!$E$11/3600)/4/PI()/$C$32)*expint1($G$32/4/$C$32/R33) -> 0.4229115847 | R33: 0.02218611107
O34: =IF(P34>0,([1]Inserir_Dados!I27*60)/([1]Inserir_Dados!$E$12^2),O33) -> 21 | P34: =IF((([1]Inserir_Dados!J27)/([1]Inserir_Dados!$E$21))<0.02,[1]Inserir_Dados!J27,IF(([1]Inserir_Dados!J27)/([1]Inserir_Dados!$E$21)<0.25,([1]Inserir_Dados!J27)-(([1]Inserir_Dados!J27^2)/(2*[1]Inserir_Dados!$E$21)))) -> 3.34 | Q34: =(([1]Inserir_Dados!$E$11/3600)/4/PI()/$C$32)*expint1($G$32/4/$C$32/R34) -> 0.4910679351 | R34: 0.02662333328
O35: =IF(P35>0,([1]Inserir_Dados!I28*60)/([1]Inserir_Dados!$E$12^2),O34) -> 24 | P35: =IF((([1]Inserir_Dados!J28)/([1]Inserir_Dados!$E$21))<0.02,[1]Inserir_Dados!J28,IF(([1]Inserir_Dados!J28)/([1]Inserir_Dados!$E$21)<0.25,([1]Inserir_Dados!J28)-(([1]Inserir_Dados!J28^2)/(2*[1]Inserir_Dados!$E$21)))) -> 3.37 | Q35: =(([1]Inserir_Dados!$E$11/3600)/4/PI()/$C$32)*expint1($G$32/4/$C$32/R35) -> 0.5627304176 | R35: 0.03194799994
O36: =IF(P36>0,([1]Inserir_Dados!I29*60)/([1]Inserir_Dados!$E$12^2),O35) -> 27 | P36: =IF((([1]Inserir_Dados!J29)/([1]Inserir_Dados!$E$21))<0.02,[1]Inserir_Dados!J29,IF(([1]Inserir_Dados!J29)/([1]Inserir_Dados!$E$21)<0.25,([1]Inserir_Dados!J29)-(([1]Inserir_Dados!J29^2)/(2*[1]Inserir_Dados!$E$21)))) -> 3.38 | Q36: =(([1]Inserir_Dados!$E$11/3600)/4/PI()/$C$32)*expint1($G$32/4/$C$32/R36) -> 0.6374524723 | R36: 0.03833759992
O37: =IF(P37>0,([1]Inserir_Dados!I30*60)/([1]Inserir_Dados!$E$12^2),O36) -> 30 | P37: =IF((([1]Inserir_Dados!J30)/([1]Inserir_Dados!$E$21))<0.02,[1]Inserir_Dados!J30,IF(([1]Inserir_Dados!J30)/([1]Inserir_Dados!$E$21)<0.25,([1]Inserir_Dados!J30)-(([1]Inserir_Dados!J30^2)/(2*[1]Inserir_Dados!$E$21)))) -> 3.4 | Q37: =(([1]Inserir_Dados!$E$11/3600)/4/PI()/$C$32)*expint1($G$32/4/$C$32/R37) -> 0.7148240152 | R37: 0.04600511991
O38: =IF(P38>0,([1]Inserir_Dados!I31*60)/([1]Inserir_Dados!$E$12^2),O37) -> 36 | P38: =IF((([1]Inserir_Dados!J31)/([1]Inserir_Dados!$E$21))<0.02,[1]Inserir_Dados!J31,IF(([1]Inserir_Dados!J31)/([1]Inserir_Dados!$E$21)<0.25,([1]Inserir_Dados!J31)-(([1]Inserir_Dados!J31^2)/(2*[1]Inserir_Dados!$E$21)))) -> 3.42 | Q38: =(([1]Inserir_Dados!$E$11/3600)/4/PI()/$C$32)*expint1($G$32/4/$C$32/R38) -> 0.7944752997 | R38: 0.05520614389
O39: =IF(P39>0,([1]Inserir_Dados!I32*60)/([1]Inserir_Dados!$E$12^2),O38) -> 42 | P39: =IF((([1]Inserir_Dados!J32)/([1]Inserir_Dados!$E$21))<0.02,[1]Inserir_Dados!J32,IF(([1]Inserir_Dados!J32)/([1]Inserir_Dados!$E$21)<0.25,([1]Inserir_Dados!J32)-(([1]Inserir_Dados!J32^2)/(2*[1]Inserir_Dados!$E$21)))) -> 3.44 | Q39: =(([1]Inserir_Dados!$E$11/3600)/4/PI()/$C$32)*expint1($G$32/4/$C$32/R39) -> 0.8760777471 | R39: 0.06624737267
O40: =IF(P40>0,([1]Inserir_Dados!I33*60)/([1]Inserir_Dados!$E$12^2),O39) -> 45 | P40: =IF((([1]Inserir_Dados!J33)/([1]Inserir_Dados!$E$21))<0.02,[1]Inserir_Dados!J33,IF(([1]Inserir_Dados!J33)/([1]Inserir_Dados!$E$21)<0.25,([1]Inserir_Dados!J33)-(([1]Inserir_Dados!J33^2)/(2*[1]Inserir_Dados!$E$21)))) -> 3.45 | Q40: =(([1]Inserir_Dados!$E$11/3600)/4/PI()/$C$32)*expint1($G$32/4/$C$32/R40) -> 0.9593427306 | R40: 0.0794968472
O41: =IF(P41>0,([1]Inserir_Dados!I34*60)/([1]Inserir_Dados!$E$12^2),O40) -> 52.5 | P41: =IF((([1]Inserir_Dados!J34)/([1]Inserir_Dados!$E$21))<0.02,[1]Inserir_Dados!J34,IF(([1]Inserir_Dados!J34)/([1]Inserir_Dados!$E$21)<0.25,([1]Inserir_Dados!J34)-(([1]Inserir_Dados!J34^2)/(2*[1]Inserir_Dados!$E$21)))) -> 3.47 | Q41: =(([1]Inserir_Dados!$E$11/3600)/4/PI()/$C$32)*expint1($G$32/4/$C$32/R41) -> 1.044019079 | R41: 0.09539621664
O42: =IF(P42>0,([1]Inserir_Dados!I35*60)/([1]Inserir_Dados!$E$12^2),O41) -> 60 | P42: =IF((([1]Inserir_Dados!J35)/([1]Inserir_Dados!$E$21))<0.02,[1]Inserir_Dados!J35,IF(([1]Inserir_Dados!J35)/([1]Inserir_Dados!$E$21)<0.25,([1]Inserir_Dados!J35)-(([1]Inserir_Dados!J35^2)/(2*[1]Inserir_Dados!$E$21)))) -> 3.48 | Q42: =(([1]Inserir_Dados!$E$11/3600)/4/PI()/$C$32)*expint1($G$32/4/$C$32/R42) -> 1.129889874 | R42: 0.11447546
O43: =IF(P43>0,([1]Inserir_Dados!I36*60)/([1]Inserir_Dados!$E$12^2),O42) -> 67.5 | P43: =IF((([1]Inserir_Dados!J36)/([1]Inserir_Dados!$E$21))<0.02,[1]Inserir_Dados!J36,IF(([1]Inserir_Dados!J36)/([1]Inserir_Dados!$E$21)<0.25,([1]Inserir_Dados!J36)-(([1]Inserir_Dados!J36^2)/(2*[1]Inserir_Dados!$E$21)))) -> 3.49 | Q43: =(([1]Inserir_Dados!$E$11/3600)/4/PI()/$C$32)*expint1($G$32/4/$C$32/R43) -> 1.216768936 | R43: 0.137370552
O44: =IF(P44>0,([1]Inserir_Dados!I37*60)/([1]Inserir_Dados!$E$12^2),O43) -> 75 | P44: =IF((([1]Inserir_Dados!J37)/([1]Inserir_Dados!$E$21))<0.02,[1]Inserir_Dados!J37,IF(([1]Inserir_Dados!J37)/([1]Inserir_Dados!$E$21)<0.25,([1]Inserir_Dados!J37)-(([1]Inserir_Dados!J37^2)/(2*[1]Inserir_Dados!$E$21)))) -> 3.5 | Q44: =(([1]Inserir_Dados!$E$11/3600)/4/PI()/$C$32)*expint1($G$32/4/$C$32/R44) -> 1.304497284 | R44: 0.1648446624
O45: =IF(P45>0,([1]Inserir_Dados!I38*60)/([1]Inserir_Dados!$E$12^2),O44) -> 82.5 | P45: =IF((([1]Inserir_Dados!J38)/([1]Inserir_Dados!$E$21))<0.02,[1]Inserir_Dados!J38,IF(([1]Inserir_Dados!J38)/([1]Inserir_Dados!$E$21)<0.25,([1]Inserir_Dados!J38)-(([1]Inserir_Dados!J38^2)/(2*[1]Inserir_Dados!$E$21)))) -> 3.51 | Q45: =(([1]Inserir_Dados!$E$11/3600)/4/PI()/$C$32)*expint1($G$32/4/$C$32/R45) -> 1.392939724 | R45: 0.1978135948
O46: =IF(P46>0,([1]Inserir_Dados!I39*60)/([1]Inserir_Dados!$E$12^2),O45) -> 90 | P46: =IF((([1]Inserir_Dados!J39)/([1]Inserir_Dados!$E$21))<0.02,[1]Inserir_Dados!J39,IF(([1]Inserir_Dados!J39)/([1]Inserir_Dados!$E$21)<0.25,([1]Inserir_Dados!J39)-(([1]Inserir_Dados!J39^2)/(2*[1]Inserir_Dados!$E$21)))) -> 3.51 | Q46: =(([1]Inserir_Dados!$E$11/3600)/4/PI()/$C$32)*expint1($G$32/4/$C$32/R46) -> 1.481981692 | R46: 0.2373763138
O47: =IF(P47>0,([1]Inserir_Dados!I40*60)/([1]Inserir_Dados!$E$12^2),O46) -> 97.5 | P47: =IF((([1]Inserir_Dados!J40)/([1]Inserir_Dados!$E$21))<0.02,[1]Inserir_Dados!J40,IF(([1]Inserir_Dados!J40)/([1]Inserir_Dados!$E$21)<0.25,([1]Inserir_Dados!J40)-(([1]Inserir_Dados!J40^2)/(2*[1]Inserir_Dados!$E$21)))) -> 3.51 | Q47: =(([1]Inserir_Dados!$E$11/3600)/4/PI()/$C$32)*expint1($G$32/4/$C$32/R47) -> 1.571526378 | R47: 0.2848515766
O48: =IF(P48>0,([1]Inserir_Dados!I41*60)/([1]Inserir_Dados!$E$12^2),O47) -> 105 | P48: =IF((([1]Inserir_Dados!J41)/([1]Inserir_Dados!$E$21))<0.02,[1]Inserir_Dados!J41,IF(([1]Inserir_Dados!J41)/([1]Inserir_Dados!$E$21)<0.25,([1]Inserir_Dados!J41)-(([1]Inserir_Dados!J41^2)/(2*[1]Inserir_Dados!$E$21)))) -> 3.51 | Q48: =(([1]Inserir_Dados!$E$11/3600)/4/PI()/$C$32)*expint1($G$32/4/$C$32/R48) -> 1.661492167 | R48: 0.3418218919
O49: =IF(P49>0,([1]Inserir_Dados!I42*60)/([1]Inserir_Dados!$E$12^2),O48) -> 112.5 | P49: =IF((([1]Inserir_Dados!J42)/([1]Inserir_Dados!$E$21))<0.02,[1]Inserir_Dados!J42,IF(([1]Inserir_Dados!J42)/([1]Inserir_Dados!$E$21)<0.25,([1]Inserir_Dados!J42)-(([1]Inserir_Dados!J42^2)/(2*[1]Inserir_Dados!$E$21)))) -> 3.51 | Q49: =(([1]Inserir_Dados!$E$11/3600)/4/PI()/$C$32)*expint1($G$32/4/$C$32/R49) -> 1.751810393 | R49: =R48*1.2 -> 0.4101862702
O50: =IF(P50>0,([1]Inserir_Dados!I43*60)/([1]Inserir_Dados!$E$12^2),O49) -> 120 | P50: =IF((([1]Inserir_Dados!J43)/([1]Inserir_Dados!$E$21))<0.02,[1]Inserir_Dados!J43,IF(([1]Inserir_Dados!J43)/([1]Inserir_Dados!$E$21)<0.25,([1]Inserir_Dados!J43)-(([1]Inserir_Dados!J43^2)/(2*[1]Inserir_Dados!$E$21)))) -> 3.51 | Q50: =(([1]Inserir_Dados!$E$11/3600)/4/PI()/$C$32)*expint1($G$32/4/$C$32/R50) -> 1.842423374 | R50: 0.4922235243
O51: =IF(P51>0,([1]Inserir_Dados!I44*60)/([1]Inserir_Dados!$E$12^2),O50) -> 127.5 | P51: =IF((([1]Inserir_Dados!J44)/([1]Inserir_Dados!$E$21))<0.02,[1]Inserir_Dados!J44,IF(([1]Inserir_Dados!J44)/([1]Inserir_Dados!$E$21)<0.25,([1]Inserir_Dados!J44)-(([1]Inserir_Dados!J44^2)/(2*[1]Inserir_Dados!$E$21)))) -> 3.51 | Q51: =(([1]Inserir_Dados!$E$11/3600)/4/PI()/$C$32)*expint1($G$32/4/$C$32/R51) -> 1.933282719 | R51: 0.5906682292
O52: =IF(P52>0,([1]Inserir_Dados!I45*60)/([1]Inserir_Dados!$E$12^2),O51) -> 135 | P52: =IF((([1]Inserir_Dados!J45)/([1]Inserir_Dados!$E$21))<0.02,[1]Inserir_Dados!J45,IF(([1]Inserir_Dados!J45)/([1]Inserir_Dados!$E$21)<0.25,([1]Inserir_Dados!J45)-(([1]Inserir_Dados!J45^2)/(2*[1]Inserir_Dados!$E$21)))) -> 3.51 | Q52: =(([1]Inserir_Dados!$E$11/3600)/4/PI()/$C$32)*expint1($G$32/4/$C$32/R52) -> 2.024347882 | R52: 0.708801875
O53: =IF(P53>0,([1]Inserir_Dados!I46*60)/([1]Inserir_Dados!$E$12^2),O52) -> 142.5 | P53: =IF((([1]Inserir_Dados!J46)/([1]Inserir_Dados!$E$21))<0.02,[1]Inserir_Dados!J46,IF(([1]Inserir_Dados!J46)/([1]Inserir_Dados!$E$21)<0.25,([1]Inserir_Dados!J46)-(([1]Inserir_Dados!J46^2)/(2*[1]Inserir_Dados!$E$21)))) -> 3.51 | Q53: =(([1]Inserir_Dados!$E$11/3600)/4/PI()/$C$32)*expint1($G$32/4/$C$32/R53) -> 2.115584915 | R53: 0.85056225
O54: =IF(P54>0,([1]Inserir_Dados!I47*60)/([1]Inserir_Dados!$E$12^2),O53) -> 150 | P54: =IF((([1]Inserir_Dados!J47)/([1]Inserir_Dados!$E$21))<0.02,[1]Inserir_Dados!J47,IF(([1]Inserir_Dados!J47)/([1]Inserir_Dados!$E$21)<0.25,([1]Inserir_Dados!J47)-(([1]Inserir_Dados!J47^2)/(2*[1]Inserir_Dados!$E$21)))) -> 3.51 | Q54: =(([1]Inserir_Dados!$E$11/3600)/4/PI()/$C$32)*expint1($G$32/4/$C$32/R54) -> 2.206965423 | R54: 1.0206747
O55: =IF(P55>0,([1]Inserir_Dados!I48*60)/([1]Inserir_Dados!$E$12^2),O54) -> 180 | P55: =IF((([1]Inserir_Dados!J48)/([1]Inserir_Dados!$E$21))<0.02,[1]Inserir_Dados!J48,IF(([1]Inserir_Dados!J48)/([1]Inserir_Dados!$E$21)<0.25,([1]Inserir_Dados!J48)-(([1]Inserir_Dados!J48^2)/(2*[1]Inserir_Dados!$E$21)))) -> 3.53 | Q55: =(([1]Inserir_Dados!$E$11/3600)/4/PI()/$C$32)*expint1($G$32/4/$C$32/R55) -> 2.298465666 | R55: 1.22480964
O56: =IF(P56>0,([1]Inserir_Dados!I49*60)/([1]Inserir_Dados!$E$12^2),O55) -> 195 | P56: =IF((([1]Inserir_Dados!J49)/([1]Inserir_Dados!$E$21))<0.02,[1]Inserir_Dados!J49,IF(([1]Inserir_Dados!J49)/([1]Inserir_Dados!$E$21)<0.25,([1]Inserir_Dados!J49)-(([1]Inserir_Dados!J49^2)/(2*[1]Inserir_Dados!$E$21)))) -> 3.54 | Q56: =(([1]Inserir_Dados!$E$11/3600)/4/PI()/$C$32)*expint1($G$32/4/$C$32/R56) -> 2.390065808 | R56: 1.469771568
O57: =IF(P57>0,([1]Inserir_Dados!I50*60)/([1]Inserir_Dados!$E$12^2),O56) -> 210 | P57: =IF((([1]Inserir_Dados!J50)/([1]Inserir_Dados!$E$21))<0.02,[1]Inserir_Dados!J50,IF(([1]Inserir_Dados!J50)/([1]Inserir_Dados!$E$21)<0.25,([1]Inserir_Dados!J50)-(([1]Inserir_Dados!J50^2)/(2*[1]Inserir_Dados!$E$21)))) -> 3.54 | Q57: =(([1]Inserir_Dados!$E$11/3600)/4/PI()/$C$32)*expint1($G$32/4/$C$32/R57) -> 2.481749282 | R57: 1.763725882
O58: =IF(P58>0,([1]Inserir_Dados!I51*60)/([1]Inserir_Dados!$E$12^2),O57) -> 240 | P58: =IF((([1]Inserir_Dados!J51)/([1]Inserir_Dados!$E$21))<0.02,[1]Inserir_Dados!J51,IF(([1]Inserir_Dados!J51)/([1]Inserir_Dados!$E$21)<0.25,([1]Inserir_Dados!J51)-(([1]Inserir_Dados!J51^2)/(2*[1]Inserir_Dados!$E$21)))) -> 3.51 | Q58: =(([1]Inserir_Dados!$E$11/3600)/4/PI()/$C$32)*expint1($G$32/4/$C$32/R58) -> 2.573502259 | R58: 2.116471058
O59: =IF(P59>0,([1]Inserir_Dados!I52*60)/([1]Inserir_Dados!$E$12^2),O58) -> 255 | P59: =IF((([1]Inserir_Dados!J52)/([1]Inserir_Dados!$E$21))<0.02,[1]Inserir_Dados!J52,IF(([1]Inserir_Dados!J52)/([1]Inserir_Dados!$E$21)<0.25,([1]Inserir_Dados!J52)-(([1]Inserir_Dados!J52^2)/(2*[1]Inserir_Dados!$E$21)))) -> 3.51 | Q59: =(([1]Inserir_Dados!$E$11/3600)/4/PI()/$C$32)*expint1($G$32/4/$C$32/R59) -> 2.665313194 | R59: 2.539765269
O60: =IF(P60>0,([1]Inserir_Dados!I53*60)/([1]Inserir_Dados!$E$12^2),O59) -> 270 | P60: =IF((([1]Inserir_Dados!J53)/([1]Inserir_Dados!$E$21))<0.02,[1]Inserir_Dados!J53,IF(([1]Inserir_Dados!J53)/([1]Inserir_Dados!$E$21)<0.25,([1]Inserir_Dados!J53)-(([1]Inserir_Dados!J53^2)/(2*[1]Inserir_Dados!$E$21)))) -> 3.52 | Q60: =(([1]Inserir_Dados!$E$11/3600)/4/PI()/$C$32)*expint1($G$32/4/$C$32/R60) -> 2.757172457 | R60: 3.047718323
O61: =IF(P61>0,([1]Inserir_Dados!I54*60)/([1]Inserir_Dados!$E$12^2),O60) -> 285 | P61: =IF((([1]Inserir_Dados!J54)/([1]Inserir_Dados!$E$21))<0.02,[1]Inserir_Dados!J54,IF(([1]Inserir_Dados!J54)/([1]Inserir_Dados!$E$21)<0.25,([1]Inserir_Dados!J54)-(([1]Inserir_Dados!J54^2)/(2*[1]Inserir_Dados!$E$21)))) -> 3.53 | Q61: =(([1]Inserir_Dados!$E$11/3600)/4/PI()/$C$32)*expint1($G$32/4/$C$32/R61) -> 2.849072011 | R61: 3.657261988
O62: =IF(P62>0,([1]Inserir_Dados!I55*60)/([1]Inserir_Dados!$E$12^2),O61) -> 300 | P62: =IF((([1]Inserir_Dados!J55)/([1]Inserir_Dados!$E$21))<0.02,[1]Inserir_Dados!J55,IF(([1]Inserir_Dados!J55)/([1]Inserir_Dados!$E$21)<0.25,([1]Inserir_Dados!J55)-(([1]Inserir_Dados!J55^2)/(2*[1]Inserir_Dados!$E$21)))) -> 3.54 | Q62: =(([1]Inserir_Dados!$E$11/3600)/4/PI()/$C$32)*expint1($G$32/4/$C$32/R62) -> 2.941005155 | R62: 4.388714386
O63: =IF(P63>0,([1]Inserir_Dados!I56*60)/([1]Inserir_Dados!$E$12^2),O62) -> 375 | P63: =IF((([1]Inserir_Dados!J56)/([1]Inserir_Dados!$E$21))<0.02,[1]Inserir_Dados!J56,IF(([1]Inserir_Dados!J56)/([1]Inserir_Dados!$E$21)<0.25,([1]Inserir_Dados!J56)-(([1]Inserir_Dados!J56^2)/(2*[1]Inserir_Dados!$E$21)))) -> 3.53 | Q63: =(([1]Inserir_Dados!$E$11/3600)/4/PI()/$C$32)*expint1($G$32/4/$C$32/R63) -> 3.0329663 | R63: 5.266457263
O64: =IF(P64>0,([1]Inserir_Dados!I57*60)/([1]Inserir_Dados!$E$12^2),O63) -> 405 | P64: =IF((([1]Inserir_Dados!J57)/([1]Inserir_Dados!$E$21))<0.02,[1]Inserir_Dados!J57,IF(([1]Inserir_Dados!J57)/([1]Inserir_Dados!$E$21)<0.25,([1]Inserir_Dados!J57)-(([1]Inserir_Dados!J57^2)/(2*[1]Inserir_Dados!$E$21)))) -> 3.55 | Q64: =(([1]Inserir_Dados!$E$11/3600)/4/PI()/$C$32)*expint1($G$32/4/$C$32/R64) -> 3.124950787 | R64: 6.319748715
O65: =IF(P65>0,([1]Inserir_Dados!I58*60)/([1]Inserir_Dados!$E$12^2),O64) -> 450 | P65: =IF((([1]Inserir_Dados!J58)/([1]Inserir_Dados!$E$21))<0.02,[1]Inserir_Dados!J58,IF(([1]Inserir_Dados!J58)/([1]Inserir_Dados!$E$21)<0.25,([1]Inserir_Dados!J58)-(([1]Inserir_Dados!J58^2)/(2*[1]Inserir_Dados!$E$21)))) -> 3.53 | Q65: =(([1]Inserir_Dados!$E$11/3600)/4/PI()/$C$32)*expint1($G$32/4/$C$32/R65) -> 3.216954728 | R65: 7.583698458
O66: =IF(P66>0,([1]Inserir_Dados!I59*60)/([1]Inserir_Dados!$E$12^2),O65) -> 472.5 | P66: =IF((([1]Inserir_Dados!J59)/([1]Inserir_Dados!$E$21))<0.02,[1]Inserir_Dados!J59,IF(([1]Inserir_Dados!J59)/([1]Inserir_Dados!$E$21)<0.25,([1]Inserir_Dados!J59)-(([1]Inserir_Dados!J59^2)/(2*[1]Inserir_Dados!$E$21)))) -> 3.53 | Q66: =(([1]Inserir_Dados!$E$11/3600)/4/PI()/$C$32)*expint1($G$32/4/$C$32/R66) -> 3.308974886 | R66: 9.10043815
O67: =IF(P67>0,([1]Inserir_Dados!I60*60)/([1]Inserir_Dados!$E$12^2),O66) -> 525 | P67: =IF((([1]Inserir_Dados!J60)/([1]Inserir_Dados!$E$21))<0.02,[1]Inserir_Dados!J60,IF(([1]Inserir_Dados!J60)/([1]Inserir_Dados!$E$21)<0.25,([1]Inserir_Dados!J60)-(([1]Inserir_Dados!J60^2)/(2*[1]Inserir_Dados!$E$21)))) -> 3.55 | Q67: =(([1]Inserir_Dados!$E$11/3600)/4/PI()/$C$32)*expint1($G$32/4/$C$32/R67) -> 3.401008559 | R67: 10.92052578
O68: =IF(P68>0,([1]Inserir_Dados!I61*60)/([1]Inserir_Dados!$E$12^2),O67) -> 600 | P68: =IF((([1]Inserir_Dados!J61)/([1]Inserir_Dados!$E$21))<0.02,[1]Inserir_Dados!J61,IF(([1]Inserir_Dados!J61)/([1]Inserir_Dados!$E$21)<0.25,([1]Inserir_Dados!J61)-(([1]Inserir_Dados!J61^2)/(2*[1]Inserir_Dados!$E$21)))) -> 3.55 | Q68: =(([1]Inserir_Dados!$E$11/3600)/4/PI()/$C$32)*expint1($G$32/4/$C$32/R68) -> 3.493053496 | R68: 13.10463094
O69: =IF(P69>0,([1]Inserir_Dados!I62*60)/([1]Inserir_Dados!$E$12^2),O68) -> 621 | P69: =IF((([1]Inserir_Dados!J62)/([1]Inserir_Dados!$E$21))<0.02,[1]Inserir_Dados!J62,IF(([1]Inserir_Dados!J62)/([1]Inserir_Dados!$E$21)<0.25,([1]Inserir_Dados!J62)-(([1]Inserir_Dados!J62^2)/(2*[1]Inserir_Dados!$E$21)))) -> 3.55 | Q69: =(([1]Inserir_Dados!$E$11/3600)/4/PI()/$C$32)*expint1($G$32/4/$C$32/R69) -> 3.585107821 | R69: 15.72555712
O70: =IF(P70>0,([1]Inserir_Dados!I63*60)/([1]Inserir_Dados!$E$12^2),O69) -> 621 | P70: =IF((([1]Inserir_Dados!J63)/([1]Inserir_Dados!$E$21))<0.02,[1]Inserir_Dados!J63,IF(([1]Inserir_Dados!J63)/([1]Inserir_Dados!$E$21)<0.25,([1]Inserir_Dados!J63)-(([1]Inserir_Dados!J63^2)/(2*[1]Inserir_Dados!$E$21)))) -> 0 | Q70: =(([1]Inserir_Dados!$E$11/3600)/4/PI()/$C$32)*expint1($G$32/4/$C$32/R70) -> 3.67716997 | R70: 18.87066855
O71: =IF(P71>0,([1]Inserir_Dados!I64*60)/([1]Inserir_Dados!$E$12^2),O70) -> 621 | P71: =IF((([1]Inserir_Dados!J64)/([1]Inserir_Dados!$E$21))<0.02,[1]Inserir_Dados!J64,IF(([1]Inserir_Dados!J64)/([1]Inserir_Dados!$E$21)<0.25,([1]Inserir_Dados!J64)-(([1]Inserir_Dados!J64^2)/(2*[1]Inserir_Dados!$E$21)))) -> 0 | Q71: =(([1]Inserir_Dados!$E$11/3600)/4/PI()/$C$32)*expint1($G$32/4/$C$32/R71) -> 3.76923864 | R71: 22.64480226
O72: =IF(P72>0,([1]Inserir_Dados!I65*60)/([1]Inserir_Dados!$E$12^2),O71) -> 621 | P72: =IF((([1]Inserir_Dados!J65)/([1]Inserir_Dados!$E$21))<0.02,[1]Inserir_Dados!J65,IF(([1]Inserir_Dados!J65)/([1]Inserir_Dados!$E$21)<0.25,([1]Inserir_Dados!J65)-(([1]Inserir_Dados!J65^2)/(2*[1]Inserir_Dados!$E$21)))) -> 0 | Q72: =(([1]Inserir_Dados!$E$11/3600)/4/PI()/$C$32)*expint1($G$32/4/$C$32/R72) -> 3.861312744 | R72: 27.17376271
O73: =IF(P73>0,([1]Inserir_Dados!I66*60)/([1]Inserir_Dados!$E$12^2),O72) -> 621 | P73: =IF((([1]Inserir_Dados!J66)/([1]Inserir_Dados!$E$21))<0.02,[1]Inserir_Dados!J66,IF(([1]Inserir_Dados!J66)/([1]Inserir_Dados!$E$21)<0.25,([1]Inserir_Dados!J66)-(([1]Inserir_Dados!J66^2)/(2*[1]Inserir_Dados!$E$21)))) -> 0 | Q73: =(([1]Inserir_Dados!$E$11/3600)/4/PI()/$C$32)*expint1($G$32/4/$C$32/R73) -> 3.953391377 | R73: 32.60851525
O74: =IF(P74>0,([1]Inserir_Dados!I67*60)/([1]Inserir_Dados!$E$12^2),O73) -> 621 | P74: =IF((([1]Inserir_Dados!J67)/([1]Inserir_Dados!$E$21))<0.02,[1]Inserir_Dados!J67,IF(([1]Inserir_Dados!J67)/([1]Inserir_Dados!$E$21)<0.25,([1]Inserir_Dados!J67)-(([1]Inserir_Dados!J67^2)/(2*[1]Inserir_Dados!$E$21)))) -> 0 | Q74: =(([1]Inserir_Dados!$E$11/3600)/4/PI()/$C$32)*expint1($G$32/4/$C$32/R74) -> 4.045473784 | R74: 39.1302183
O75: =IF(P75>0,([1]Inserir_Dados!I68*60)/([1]Inserir_Dados!$E$12^2),O74) -> 621 | P75: =IF((([1]Inserir_Dados!J68)/([1]Inserir_Dados!$E$21))<0.02,[1]Inserir_Dados!J68,IF(([1]Inserir_Dados!J68)/([1]Inserir_Dados!$E$21)<0.25,([1]Inserir_Dados!J68)-(([1]Inserir_Dados!J68^2)/(2*[1]Inserir_Dados!$E$21)))) -> 0 | Q75: =(([1]Inserir_Dados!$E$11/3600)/4/PI()/$C$32)*expint1($G$32/4/$C$32/R75) -> 4.137559336 | R75: 46.95626196
O76: =IF(P76>0,([1]Inserir_Dados!I69*60)/([1]Inserir_Dados!$E$12^2),O75) -> 621 | P76: =IF((([1]Inserir_Dados!J69)/([1]Inserir_Dados!$E$21))<0.02,[1]Inserir_Dados!J69,IF(([1]Inserir_Dados!J69)/([1]Inserir_Dados!$E$21)<0.25,([1]Inserir_Dados!J69)-(([1]Inserir_Dados!J69^2)/(2*[1]Inserir_Dados!$E$21)))) -> 0 | Q76: =(([1]Inserir_Dados!$E$11/3600)/4/PI()/$C$32)*expint1($G$32/4/$C$32/R76) -> 4.229647509 | R76: 56.34751435
O77: =IF(P77>0,([1]Inserir_Dados!I70*60)/([1]Inserir_Dados!$E$12^2),O76) -> 621 | P77: =IF((([1]Inserir_Dados!J70)/([1]Inserir_Dados!$E$21))<0.02,[1]Inserir_Dados!J70,IF(([1]Inserir_Dados!J70)/([1]Inserir_Dados!$E$21)<0.25,([1]Inserir_Dados!J70)-(([1]Inserir_Dados!J70^2)/(2*[1]Inserir_Dados!$E$21)))) -> 0 | Q77: =(([1]Inserir_Dados!$E$11/3600)/4/PI()/$C$32)*expint1($G$32/4/$C$32/R77) -> 4.321737866 | R77: 67.61701722
O78: =IF(P78>0,([1]Inserir_Dados!I71*60)/([1]Inserir_Dados!$E$12^2),O77) -> 621 | P78: =IF((([1]Inserir_Dados!J71)/([1]Inserir_Dados!$E$21))<0.02,[1]Inserir_Dados!J71,IF(([1]Inserir_Dados!J71)/([1]Inserir_Dados!$E$21)<0.25,([1]Inserir_Dados!J71)-(([1]Inserir_Dados!J71^2)/(2*[1]Inserir_Dados!$E$21)))) -> 0 | Q78: =(([1]Inserir_Dados!$E$11/3600)/4/PI()/$C$32)*expint1($G$32/4/$C$32/R78) -> 4.413830044 | R78: 81.14042067
O79: =IF(P79>0,([1]Inserir_Dados!I72*60)/([1]Inserir_Dados!$E$12^2),O78) -> 621 | P79: =IF((([1]Inserir_Dados!J72)/([1]Inserir_Dados!$E$21))<0.02,[1]Inserir_Dados!J72,IF(([1]Inserir_Dados!J72)/([1]Inserir_Dados!$E$21)<0.25,([1]Inserir_Dados!J72)-(([1]Inserir_Dados!J72^2)/(2*[1]Inserir_Dados!$E$21)))) -> 0 | Q79: =(([1]Inserir_Dados!$E$11/3600)/4/PI()/$C$32)*expint1($G$32/4/$C$32/R79) -> 4.505923738 | R79: 97.3685048
O80: =IF(P80>0,([1]Inserir_Dados!I73*60)/([1]Inserir_Dados!$E$12^2),O79) -> 621 | P80: =IF((([1]Inserir_Dados!J73)/([1]Inserir_Dados!$E$21))<0.02,[1]Inserir_Dados!J73,IF(([1]Inserir_Dados!J73)/([1]Inserir_Dados!$E$21)<0.25,([1]Inserir_Dados!J73)-(([1]Inserir_Dados!J73^2)/(2*[1]Inserir_Dados!$E$21)))) -> 0 | Q80: =(([1]Inserir_Dados!$E$11/3600)/4/PI()/$C$32)*expint1($G$32/4/$C$32/R80) -> 4.598018697 | R80: 116.8422058
O81: =IF(P81>0,([1]Inserir_Dados!I74*60)/([1]Inserir_Dados!$E$12^2),O80) -> 621 | P81: =IF((([1]Inserir_Dados!J74)/([1]Inserir_Dados!$E$21))<0.02,[1]Inserir_Dados!J74,IF(([1]Inserir_Dados!J74)/([1]Inserir_Dados!$E$21)<0.25,([1]Inserir_Dados!J74)-(([1]Inserir_Dados!J74^2)/(2*[1]Inserir_Dados!$E$21)))) -> 0 | Q81: =(([1]Inserir_Dados!$E$11/3600)/4/PI()/$C$32)*expint1($G$32/4/$C$32/R81) -> 4.690114709 | R81: =R80*1.2 -> 140.2106469
O82: =IF(P82>0,([1]Inserir_Dados!I75*60)/([1]Inserir_Dados!$E$12^2),O81) -> 621 | P82: =IF((([1]Inserir_Dados!J75)/([1]Inserir_Dados!$E$21))<0.02,[1]Inserir_Dados!J75,IF(([1]Inserir_Dados!J75)/([1]Inserir_Dados!$E$21)<0.25,([1]Inserir_Dados!J75)-(([1]Inserir_Dados!J75^2)/(2*[1]Inserir_Dados!$E$21)))) -> 0 | Q82: =(([1]Inserir_Dados!$E$11/3600)/4/PI()/$C$32)*expint1($G$32/4/$C$32/R82) -> 4.782211599 | R82: 168.2527763
O83: =IF(P83>0,([1]Inserir_Dados!I76*60)/([1]Inserir_Dados!$E$12^2),O82) -> 621 | P83: =IF((([1]Inserir_Dados!J76)/([1]Inserir_Dados!$E$21))<0.02,[1]Inserir_Dados!J76,IF(([1]Inserir_Dados!J76)/([1]Inserir_Dados!$E$21)<0.25,([1]Inserir_Dados!J76)-(([1]Inserir_Dados!J76^2)/(2*[1]Inserir_Dados!$E$21)))) -> 0 | Q83: =(([1]Inserir_Dados!$E$11/3600)/4/PI()/$C$32)*expint1($G$32/4/$C$32/R83) -> 4.874309221 | R83: 201.9033316
O84: =IF(P84>0,([1]Inserir_Dados!I77*60)/([1]Inserir_Dados!$E$12^2),O83) -> 621 | P84: =IF((([1]Inserir_Dados!J77)/([1]Inserir_Dados!$E$21))<0.02,[1]Inserir_Dados!J77,IF(([1]Inserir_Dados!J77)/([1]Inserir_Dados!$E$21)<0.25,([1]Inserir_Dados!J77)-(([1]Inserir_Dados!J77^2)/(2*[1]Inserir_Dados!$E$21)))) -> 0 | Q84: =(([1]Inserir_Dados!$E$11/3600)/4/PI()/$C$32)*expint1($G$32/4/$C$32/R84) -> 4.966407453 | R84: 242.2839979
O85: =IF(P85>0,([1]Inserir_Dados!I78*60)/([1]Inserir_Dados!$E$12^2),O84) -> 621 | P85: =IF((([1]Inserir_Dados!J78)/([1]Inserir_Dados!$E$21))<0.02,[1]Inserir_Dados!J78,IF(([1]Inserir_Dados!J78)/([1]Inserir_Dados!$E$21)<0.25,([1]Inserir_Dados!J78)-(([1]Inserir_Dados!J78^2)/(2*[1]Inserir_Dados!$E$21)))) -> 0 | Q85: =(([1]Inserir_Dados!$E$11/3600)/4/PI()/$C$32)*expint1($G$32/4/$C$32/R85) -> 5.058506192 | R85: 290.7407974
O86: =IF(P86>0,([1]Inserir_Dados!I79*60)/([1]Inserir_Dados!$E$12^2),O85) -> 621 | P86: =IF((([1]Inserir_Dados!J79)/([1]Inserir_Dados!$E$21))<0.02,[1]Inserir_Dados!J79,IF(([1]Inserir_Dados!J79)/([1]Inserir_Dados!$E$21)<0.25,([1]Inserir_Dados!J79)-(([1]Inserir_Dados!J79^2)/(2*[1]Inserir_Dados!$E$21)))) -> 0 | Q86: =(([1]Inserir_Dados!$E$11/3600)/4/PI()/$C$32)*expint1($G$32/4/$C$32/R86) -> 5.150605355 | R86: 348.8889569
O87: =IF(P87>0,([1]Inserir_Dados!I80*60)/([1]Inserir_Dados!$E$12^2),O86) -> 621 | P87: =IF((([1]Inserir_Dados!J80)/([1]Inserir_Dados!$E$21))<0.02,[1]Inserir_Dados!J80,IF(([1]Inserir_Dados!J80)/([1]Inserir_Dados!$E$21)<0.25,([1]Inserir_Dados!J80)-(([1]Inserir_Dados!J80^2)/(2*[1]Inserir_Dados!$E$21)))) -> 0 | Q87: =(([1]Inserir_Dados!$E$11/3600)/4/PI()/$C$32)*expint1($G$32/4/$C$32/R87) -> 5.24270487 | R87: 418.6667483
O88: =IF(P88>0,([1]Inserir_Dados!I81*60)/([1]Inserir_Dados!$E$12^2),O87) -> 621 | P88: =IF((([1]Inserir_Dados!J81)/([1]Inserir_Dados!$E$21))<0.02,[1]Inserir_Dados!J81,IF(([1]Inserir_Dados!J81)/([1]Inserir_Dados!$E$21)<0.25,([1]Inserir_Dados!J81)-(([1]Inserir_Dados!J81^2)/(2*[1]Inserir_Dados!$E$21)))) -> 0 | Q88: =(([1]Inserir_Dados!$E$11/3600)/4/PI()/$C$32)*expint1($G$32/4/$C$32/R88) -> 5.33480468 | R88: 502.400098
O89: =IF(P89>0,([1]Inserir_Dados!I82*60)/([1]Inserir_Dados!$E$12^2),O88) -> 621 | P89: =IF((([1]Inserir_Dados!J82)/([1]Inserir_Dados!$E$21))<0.02,[1]Inserir_Dados!J82,IF(([1]Inserir_Dados!J82)/([1]Inserir_Dados!$E$21)<0.25,([1]Inserir_Dados!J82)-(([1]Inserir_Dados!J82^2)/(2*[1]Inserir_Dados!$E$21)))) -> 0 | Q89: =(([1]Inserir_Dados!$E$11/3600)/4/PI()/$C$32)*expint1($G$32/4/$C$32/R89) -> 5.426904734 | R89: 602.8801176
O90: =IF(P90>0,([1]Inserir_Dados!I83*60)/([1]Inserir_Dados!$E$12^2),O89) -> 621 | P90: =IF((([1]Inserir_Dados!J83)/([1]Inserir_Dados!$E$21))<0.02,[1]Inserir_Dados!J83,IF(([1]Inserir_Dados!J83)/([1]Inserir_Dados!$E$21)<0.25,([1]Inserir_Dados!J83)-(([1]Inserir_Dados!J83^2)/(2*[1]Inserir_Dados!$E$21)))) -> 0 | Q90: =(([1]Inserir_Dados!$E$11/3600)/4/PI()/$C$32)*expint1($G$32/4/$C$32/R90) -> 5.519004993 | R90: 723.4561411
O91: =IF(P91>0,([1]Inserir_Dados!I84*60)/([1]Inserir_Dados!$E$12^2),O90) -> 621 | P91: =IF((([1]Inserir_Dados!J84)/([1]Inserir_Dados!$E$21))<0.02,[1]Inserir_Dados!J84,IF(([1]Inserir_Dados!J84)/([1]Inserir_Dados!$E$21)<0.25,([1]Inserir_Dados!J84)-(([1]Inserir_Dados!J84^2)/(2*[1]Inserir_Dados!$E$21)))) -> 0 | Q91: =(([1]Inserir_Dados!$E$11/3600)/4/PI()/$C$32)*expint1($G$32/4/$C$32/R91) -> 5.611105422 | R91: 868.1473693
O92: =IF(P92>0,([1]Inserir_Dados!I85*60)/([1]Inserir_Dados!$E$12^2),O91) -> 621 | P92: =IF((([1]Inserir_Dados!J85)/([1]Inserir_Dados!$E$21))<0.02,[1]Inserir_Dados!J85,IF(([1]Inserir_Dados!J85)/([1]Inserir_Dados!$E$21)<0.25,([1]Inserir_Dados!J85)-(([1]Inserir_Dados!J85^2)/(2*[1]Inserir_Dados!$E$21)))) -> 0 | Q92: =(([1]Inserir_Dados!$E$11/3600)/4/PI()/$C$32)*expint1($G$32/4/$C$32/R92) -> 5.703205993 | R92: 1041.776843
O93: =IF(P93>0,([1]Inserir_Dados!I86*60)/([1]Inserir_Dados!$E$12^2),O92) -> 621 | P93: =IF((([1]Inserir_Dados!J86)/([1]Inserir_Dados!$E$21))<0.02,[1]Inserir_Dados!J86,IF(([1]Inserir_Dados!J86)/([1]Inserir_Dados!$E$21)<0.25,([1]Inserir_Dados!J86)-(([1]Inserir_Dados!J86^2)/(2*[1]Inserir_Dados!$E$21)))) -> 0 | Q93: =(([1]Inserir_Dados!$E$11/3600)/4/PI()/$C$32)*expint1($G$32/4/$C$32/R93) -> 5.795306682 | R93: 1250.132212
O94: =IF(P94>0,([1]Inserir_Dados!I87*60)/([1]Inserir_Dados!$E$12^2),O93) -> 621 | P94: =IF((([1]Inserir_Dados!J87)/([1]Inserir_Dados!$E$21))<0.02,[1]Inserir_Dados!J87,IF(([1]Inserir_Dados!J87)/([1]Inserir_Dados!$E$21)<0.25,([1]Inserir_Dados!J87)-(([1]Inserir_Dados!J87^2)/(2*[1]Inserir_Dados!$E$21)))) -> 0 | Q94: =(([1]Inserir_Dados!$E$11/3600)/4/PI()/$C$32)*expint1($G$32/4/$C$32/R94) -> 5.887407469 | R94: 1500.158654
O95: =IF(P95>0,([1]Inserir_Dados!I88*60)/([1]Inserir_Dados!$E$12^2),O94) -> 621 | P95: =IF((([1]Inserir_Dados!J88)/([1]Inserir_Dados!$E$21))<0.02,[1]Inserir_Dados!J88,IF(([1]Inserir_Dados!J88)/([1]Inserir_Dados!$E$21)<0.25,([1]Inserir_Dados!J88)-(([1]Inserir_Dados!J88^2)/(2*[1]Inserir_Dados!$E$21)))) -> 0 | Q95: =(([1]Inserir_Dados!$E$11/3600)/4/PI()/$C$32)*expint1($G$32/4/$C$32/R95) -> 5.979508338 | R95: 1800.190385
O96: =IF(P96>0,([1]Inserir_Dados!I89*60)/([1]Inserir_Dados!$E$12^2),O95) -> 621 | P96: =IF((([1]Inserir_Dados!J89)/([1]Inserir_Dados!$E$21))<0.02,[1]Inserir_Dados!J89,IF(([1]Inserir_Dados!J89)/([1]Inserir_Dados!$E$21)<0.25,([1]Inserir_Dados!J89)-(([1]Inserir_Dados!J89^2)/(2*[1]Inserir_Dados!$E$21)))) -> 0 | Q96: =(([1]Inserir_Dados!$E$11/3600)/4/PI()/$C$32)*expint1($G$32/4/$C$32/R96) -> 6.071609276 | R96: 2160.228462
O97: =IF(P97>0,([1]Inserir_Dados!I90*60)/([1]Inserir_Dados!$E$12^2),O96) -> 621 | P97: =IF((([1]Inserir_Dados!J90)/([1]Inserir_Dados!$E$21))<0.02,[1]Inserir_Dados!J90,IF(([1]Inserir_Dados!J90)/([1]Inserir_Dados!$E$21)<0.25,([1]Inserir_Dados!J90)-(([1]Inserir_Dados!J90^2)/(2*[1]Inserir_Dados!$E$21)))) -> 0 | Q97: =(([1]Inserir_Dados!$E$11/3600)/4/PI()/$C$32)*expint1($G$32/4/$C$32/R97) -> 6.163710271 | R97: 2592.274154
O98: =IF(P98>0,([1]Inserir_Dados!I91*60)/([1]Inserir_Dados!$E$12^2),O97) -> 621 | P98: =IF((([1]Inserir_Dados!J91)/([1]Inserir_Dados!$E$21))<0.02,[1]Inserir_Dados!J91,IF(([1]Inserir_Dados!J91)/([1]Inserir_Dados!$E$21)<0.25,([1]Inserir_Dados!J91)-(([1]Inserir_Dados!J91^2)/(2*[1]Inserir_Dados!$E$21)))) -> 0 | Q98: =(([1]Inserir_Dados!$E$11/3600)/4/PI()/$C$32)*expint1($G$32/4/$C$32/R98) -> 6.255811313 | R98: 3110.728985
O99: =IF(P99>0,([1]Inserir_Dados!I92*60)/([1]Inserir_Dados!$E$12^2),O98) -> 621 | P99: =IF((([1]Inserir_Dados!J92)/([1]Inserir_Dados!$E$21))<0.02,[1]Inserir_Dados!J92,IF(([1]Inserir_Dados!J92)/([1]Inserir_Dados!$E$21)<0.25,([1]Inserir_Dados!J92)-(([1]Inserir_Dados!J92^2)/(2*[1]Inserir_Dados!$E$21)))) -> 0 | Q99: =(([1]Inserir_Dados!$E$11/3600)/4/PI()/$C$32)*expint1($G$32/4/$C$32/R99) -> 6.347912395 | R99: 3732.874782
O100: =IF(P100>0,([1]Inserir_Dados!I93*60)/([1]Inserir_Dados!$E$12^2),O99) -> 621 | P100: =IF((([1]Inserir_Dados!J93)/([1]Inserir_Dados!$E$21))<0.02,[1]Inserir_Dados!J93,IF(([1]Inserir_Dados!J93)/([1]Inserir_Dados!$E$21)<0.25,([1]Inserir_Dados!J93)-(([1]Inserir_Dados!J93^2)/(2*[1]Inserir_Dados!$E$21)))) -> 0 | Q100: =(([1]Inserir_Dados!$E$11/3600)/4/PI()/$C$32)*expint1($G$32/4/$C$32/R100) -> 6.44001351 | R100: 4479.449739
O101: =IF(P101>0,([1]Inserir_Dados!I94*60)/([1]Inserir_Dados!$E$12^2),O100) -> 621 | P101: =IF((([1]Inserir_Dados!J94)/([1]Inserir_Dados!$E$21))<0.02,[1]Inserir_Dados!J94,IF(([1]Inserir_Dados!J94)/([1]Inserir_Dados!$E$21)<0.25,([1]Inserir_Dados!J94)-(([1]Inserir_Dados!J94^2)/(2*[1]Inserir_Dados!$E$21)))) -> 0 | Q101: =(([1]Inserir_Dados!$E$11/3600)/4/PI()/$C$32)*expint1($G$32/4/$C$32/R101) -> 6.532114652 | R101: 5375.339687
O102: =IF(P102>0,([1]Inserir_Dados!I95*60)/([1]Inserir_Dados!$E$12^2),O101) -> 621 | P102: =IF((([1]Inserir_Dados!J95)/([1]Inserir_Dados!$E$21))<0.02,[1]Inserir_Dados!J95,IF(([1]Inserir_Dados!J95)/([1]Inserir_Dados!$E$21)<0.25,([1]Inserir_Dados!J95)-(([1]Inserir_Dados!J95^2)/(2*[1]Inserir_Dados!$E$21)))) -> 0 | Q102: =(([1]Inserir_Dados!$E$11/3600)/4/PI()/$C$32)*expint1($G$32/4/$C$32/R102) -> 6.624215817 | R102: 6450.407624
O103: =IF(P103>0,([1]Inserir_Dados!I96*60)/([1]Inserir_Dados!$E$12^2),O102) -> 621 | P103: =IF((([1]Inserir_Dados!J96)/([1]Inserir_Dados!$E$21))<0.02,[1]Inserir_Dados!J96,IF(([1]Inserir_Dados!J96)/([1]Inserir_Dados!$E$21)<0.25,([1]Inserir_Dados!J96)-(([1]Inserir_Dados!J96^2)/(2*[1]Inserir_Dados!$E$21)))) -> 0 | Q103: =(([1]Inserir_Dados!$E$11/3600)/4/PI()/$C$32)*expint1($G$32/4/$C$32/R103) -> 6.716317002 | R103: 7740.489149
O104: =IF(P104>0,([1]Inserir_Dados!I97*60)/([1]Inserir_Dados!$E$12^2),O103) -> 621 | P104: =IF((([1]Inserir_Dados!J97)/([1]Inserir_Dados!$E$21))<0.02,[1]Inserir_Dados!J97,IF(([1]Inserir_Dados!J97)/([1]Inserir_Dados!$E$21)<0.25,([1]Inserir_Dados!J97)-(([1]Inserir_Dados!J97^2)/(2*[1]Inserir_Dados!$E$21)))) -> 0 | Q104: =(([1]Inserir_Dados!$E$11/3600)/4/PI()/$C$32)*expint1($G$32/4/$C$32/R104) -> 6.808418202 | R104: 9288.586978
O105: =IF(P105>0,([1]Inserir_Dados!I98*60)/([1]Inserir_Dados!$E$12^2),O104) -> 621 | P105: =IF((([1]Inserir_Dados!J98)/([1]Inserir_Dados!$E$21))<0.02,[1]Inserir_Dados!J98,IF(([1]Inserir_Dados!J98)/([1]Inserir_Dados!$E$21)<0.25,([1]Inserir_Dados!J98)-(([1]Inserir_Dados!J98^2)/(2*[1]Inserir_Dados!$E$21)))) -> 0 | Q105: =(([1]Inserir_Dados!$E$11/3600)/4/PI()/$C$32)*expint1($G$32/4/$C$32/R105) -> 6.900519415 | R105: 11146.30437
O106: =IF(P106>0,([1]Inserir_Dados!I99*60)/([1]Inserir_Dados!$E$12^2),O105) -> 621 | P106: =IF((([1]Inserir_Dados!J99)/([1]Inserir_Dados!$E$21))<0.02,[1]Inserir_Dados!J99,IF(([1]Inserir_Dados!J99)/([1]Inserir_Dados!$E$21)<0.25,([1]Inserir_Dados!J99)-(([1]Inserir_Dados!J99^2)/(2*[1]Inserir_Dados!$E$21)))) -> 0 | Q106: =(([1]Inserir_Dados!$E$11/3600)/4/PI()/$C$32)*expint1($G$32/4/$C$32/R106) -> 6.99262064 | R106: 13375.56525
O107: =IF(P107>0,([1]Inserir_Dados!I100*60)/([1]Inserir_Dados!$E$12^2),O106) -> 621 | P107: =IF((([1]Inserir_Dados!J100)/([1]Inserir_Dados!$E$21))<0.02,[1]Inserir_Dados!J100,IF(([1]Inserir_Dados!J100)/([1]Inserir_Dados!$E$21)<0.25,([1]Inserir_Dados!J100)-(([1]Inserir_Dados!J100^2)/(2*[1]Inserir_Dados!$E$21)))) -> 0 | Q107: =(([1]Inserir_Dados!$E$11/3600)/4/PI()/$C$32)*expint1($G$32/4/$C$32/R107) -> 7.084721873 | R107: 16050.6783
O108: =IF(P108>0,([1]Inserir_Dados!I101*60)/([1]Inserir_Dados!$E$12^2),O107) -> 621 | P108: =IF((([1]Inserir_Dados!J101)/([1]Inserir_Dados!$E$21))<0.02,[1]Inserir_Dados!J101,IF(([1]Inserir_Dados!J101)/([1]Inserir_Dados!$E$21)<0.25,([1]Inserir_Dados!J101)-(([1]Inserir_Dados!J101^2)/(2*[1]Inserir_Dados!$E$21)))) -> 0 | Q108: =(([1]Inserir_Dados!$E$11/3600)/4/PI()/$C$32)*expint1($G$32/4/$C$32/R108) -> 7.176823115 | R108: 19260.81396
O109: =IF(P109>0,([1]Inserir_Dados!I102*60)/([1]Inserir_Dados!$E$12^2),O108) -> 621 | P109: =IF((([1]Inserir_Dados!J102)/([1]Inserir_Dados!$E$21))<0.02,[1]Inserir_Dados!J102,IF(([1]Inserir_Dados!J102)/([1]Inserir_Dados!$E$21)<0.25,([1]Inserir_Dados!J102)-(([1]Inserir_Dados!J102^2)/(2*[1]Inserir_Dados!$E$21)))) -> 0 | Q109: =(([1]Inserir_Dados!$E$11/3600)/4/PI()/$C$32)*expint1($G$32/4/$C$32/R109) -> 7.268924362 | R109: 23112.97675
O110: =IF(P110>0,([1]Inserir_Dados!I103*60)/([1]Inserir_Dados!$E$12^2),O109) -> 621 | P110: =IF((([1]Inserir_Dados!J103)/([1]Inserir_Dados!$E$21))<0.02,[1]Inserir_Dados!J103,IF(([1]Inserir_Dados!J103)/([1]Inserir_Dados!$E$21)<0.25,([1]Inserir_Dados!J103)-(([1]Inserir_Dados!J103^2)/(2*[1]Inserir_Dados!$E$21)))) -> 0 | Q110: =(([1]Inserir_Dados!$E$11/3600)/4/PI()/$C$32)*expint1($G$32/4/$C$32/R110) -> 7.361025615 | R110: 27735.5721
O111: =IF(P111>0,([1]Inserir_Dados!I104*60)/([1]Inserir_Dados!$E$12^2),O110) -> 621 | P111: =IF((([1]Inserir_Dados!J104)/([1]Inserir_Dados!$E$21))<0.02,[1]Inserir_Dados!J104,IF(([1]Inserir_Dados!J104)/([1]Inserir_Dados!$E$21)<0.25,([1]Inserir_Dados!J104)-(([1]Inserir_Dados!J104^2)/(2*[1]Inserir_Dados!$E$21)))) -> 0 | Q111: =(([1]Inserir_Dados!$E$11/3600)/4/PI()/$C$32)*expint1($G$32/4/$C$32/R111) -> 7.453126873 | R111: 33282.68652
O112: =IF(P112>0,([1]Inserir_Dados!I105*60)/([1]Inserir_Dados!$E$12^2),O111) -> 621 | P112: =IF((([1]Inserir_Dados!J105)/([1]Inserir_Dados!$E$21))<0.02,[1]Inserir_Dados!J105,IF(([1]Inserir_Dados!J105)/([1]Inserir_Dados!$E$21)<0.25,([1]Inserir_Dados!J105)-(([1]Inserir_Dados!J105^2)/(2*[1]Inserir_Dados!$E$21)))) -> 0 | Q112: =(([1]Inserir_Dados!$E$11/3600)/4/PI()/$C$32)*expint1($G$32/4/$C$32/R112) -> 7.545228134 | R112: 39939.22382
O113: =IF(P113>0,([1]Inserir_Dados!I106*60)/([1]Inserir_Dados!$E$12^2),O112) -> 621 | P113: =IF((([1]Inserir_Dados!J106)/([1]Inserir_Dados!$E$21))<0.02,[1]Inserir_Dados!J106,IF(([1]Inserir_Dados!J106)/([1]Inserir_Dados!$E$21)<0.25,([1]Inserir_Dados!J106)-(([1]Inserir_Dados!J106^2)/(2*[1]Inserir_Dados!$E$21)))) -> 0 | Q113: =(([1]Inserir_Dados!$E$11/3600)/4/PI()/$C$32)*expint1($G$32/4/$C$32/R113) -> 7.637329398 | R113: 47927.06859
O114: =IF(P114>0,([1]Inserir_Dados!I107*60)/([1]Inserir_Dados!$E$12^2),O113) -> 621 | P114: =IF((([1]Inserir_Dados!J107)/([1]Inserir_Dados!$E$21))<0.02,[1]Inserir_Dados!J107,IF(([1]Inserir_Dados!J107)/([1]Inserir_Dados!$E$21)<0.25,([1]Inserir_Dados!J107)-(([1]Inserir_Dados!J107^2)/(2*[1]Inserir_Dados!$E$21)))) -> 0 | Q114: =(([1]Inserir_Dados!$E$11/3600)/4/PI()/$C$32)*expint1($G$32/4/$C$32/R114) -> 7.729430665 | R114: 57512.48231
O115: =IF(P115>0,([1]Inserir_Dados!I108*60)/([1]Inserir_Dados!$E$12^2),O114) -> 621 | P115: =IF((([1]Inserir_Dados!J108)/([1]Inserir_Dados!$E$21))<0.02,[1]Inserir_Dados!J108,IF(([1]Inserir_Dados!J108)/([1]Inserir_Dados!$E$21)<0.25,([1]Inserir_Dados!J108)-(([1]Inserir_Dados!J108^2)/(2*[1]Inserir_Dados!$E$21)))) -> 0 | Q115: =(([1]Inserir_Dados!$E$11/3600)/4/PI()/$C$32)*expint1($G$32/4/$C$32/R115) -> 7.821531934 | R115: 69014.97877
O116: =IF(P116>0,([1]Inserir_Dados!I109*60)/([1]Inserir_Dados!$E$12^2),O115) -> 621 | P116: =IF((([1]Inserir_Dados!J109)/([1]Inserir_Dados!$E$21))<0.02,[1]Inserir_Dados!J109,IF(([1]Inserir_Dados!J109)/([1]Inserir_Dados!$E$21)<0.25,([1]Inserir_Dados!J109)-(([1]Inserir_Dados!J109^2)/(2*[1]Inserir_Dados!$E$21)))) -> 0 | Q116: =(([1]Inserir_Dados!$E$11/3600)/4/PI()/$C$32)*expint1($G$32/4/$C$32/R116) -> 7.913633205 | R116: 82817.97452

Sheet Hantush
C11: Determinação da Transmissividade e do Coeficiente | M11: Estas colunas realizam os cálculos da planilha, não as utilize
D12: de Armazenamento Pelo Método de Hantush | M12: se não souber o que está fazendo
D15: IDENTIFICAÇÃO DO POÇO: | E15: =Inserir_Dados!D7 -> Poço de Bombeamento XXXXXXXXX | M15: Q = | N15: =+Inserir_Dados!D12/60 -> 4.166666667
M16: si = | N16: =(MAX(N24:N224))/2 -> 0
B17: INSERIR DADOS DO POÇO E DO AQUÍFERO | F17: Localização: | G17: =Inserir_Dados!D8 -> %%%%%%%% | M17: r = | N17: =+Inserir_Dados!D13 -> 20
B18: Detalhes da Construção: | F18: Data: | G18: =Inserir_Dados!D9 -> &&&&&&& | M18: tp = | N18: =+G33 -> 4
B19: Diâmetro do Revestimento: | C19: =Inserir_Dados!D19 -> 10 | D19: Polegadas | F19: Coordenadas: | G19: =Inserir_Dados!D10 -> 0 | H19: Lat. | M19: b' = | N19: =Inserir_Dados!D14 -> 90
B20: Diâmetro de Perfuração: | C20: =Inserir_Dados!D20 -> 14 | D20: Polegadas | G20: =Inserir_Dados!D11 -> 0 | H20: Long.
B21: Profundidade do Poço: | C21: =Inserir_Dados!D21 -> 260 | D21: metros
B22: Profundidades: | G22: RESULTADOS | M22: Tempo | N22: Rebaixamento | O22: Rebaixamento
B23: Nível Estático: | C23: =Inserir_Dados!D16 -> 23.5 | D23: metros | F23: B (espessura aqüífero) = | G23: =+C25-C24 -> 326.5 | H23: m | M23: (min) | N23: Aqüífero - s (m) | O23: Aqüífero - s' (m)
B24: Topo do Aquifero: | C24: =Inserir_Dados!D17 -> 23.5 | D24: metros | F24: Q (vazão) = | G24: =+Inserir_Dados!D12 -> 250 | H24: m³/h | M24: =+Inserir_Dados!H10 -> 0 | N24: =+Inserir_Dados!I10 -> 0 | O24: =($N$15/(4*PI()*$D$35))*w_2($G$35*($N$17^2)/(4*$D$35*P24),$N$17/$G$29) -> 2.482626071e-08 | P24: 0.001
B25: Base do Aquifero: | C25: =Inserir_Dados!D18 -> 350 | D25: metros | F25: R (dist. do piezômetro) = | G25: =+Inserir_Dados!D13 -> 20 | H25: m | M25: =IF(N25>0,Inserir_Dados!H11,M24) -> 0 | N25: =+Inserir_Dados!I11 -> 0 | O25: 2.99932262e-07 | P25: =+P24*1.2 -> 0.0012
B26: Espaço Anular: | F26: T (Transmissividade) = | G26: =+C35*3600 -> 48.22836075 | H26: m²/h | M26: =IF(N26>0,Inserir_Dados!H12,M25) -> 0 | N26: =+Inserir_Dados!I12 -> 0 | O26: 2.456408384e-06 | P26: =+P25*1.2 -> 0.00144
B27: Material do Pré-Filtro: | F27: k (permeabilidade) = | G27: =+G26/(C25-C24) -> 0.1477132029 | H27: m/h | M27: =IF(N27>0,Inserir_Dados!H13,M26) -> 0 | N27: =+Inserir_Dados!I13 -> 0 | O27: 1.454259246e-05 | P27: 0.001728
B28: Selo do Poço: | F28: S (coef. de armazenamento) = | G28: =+G35 -> 0.0001119437883 | M28: =IF(N28>0,Inserir_Dados!H14,M27) -> 0 | N28: =+Inserir_Dados!I14 -> 0 | O28: 6.565590631e-05 | P28: 0.0020736
B29: Material da Formação: | F29: B (fator de drenança) = | G29: =2*D35*N18/(N17*G35) -> 2872.177275 | H29: m | M29: =IF(N29>0,Inserir_Dados!H15,M28) -> 0 | N29: =+Inserir_Dados!I15 -> 0 | O29: 0.0002363367857 | P29: 0.00248832
B30: Vazão de Bombeamento: | C30: =Inserir_Dados!D12 -> 250 | D30: m³/s | F30: b' (espessura do aquitarde) = | G30: =N19 -> 90 | H30: m | M30: =IF(N30>0,Inserir_Dados!H16,M29) -> 0 | N30: =+Inserir_Dados!I16 -> 0 | O30: 0.0007038943987 | P30: 0.002985984
F31: k' (permeab. Aqüitarde) = | G31: =N19/(G29^2/C35) -> 1.461571366e-07 | H31: m/s | M31: =IF(N31>0,Inserir_Dados!H17,M30) -> 0 | N31: =+Inserir_Dados!I17 -> 0 | O31: 0.001788941484 | P31: 0.0035831808
M32: =IF(N32>0,Inserir_Dados!H18,M31) -> 0 | N32: =+Inserir_Dados!I18 -> 0 | O32: 0.003980560069 | P32: =+P31*1.2 -> 0.00429981696
F33: Inserir Ti (tempo correspondente ao ponto de inflexão) = | G33: 4 | M33: =IF(N33>0,Inserir_Dados!H19,M32) -> 0 | N33: =+Inserir_Dados!I19 -> 0 | O33: 0.007921899476 | P33: =+P32*1.2 -> 0.005159780352
M34: =IF(N34>0,Inserir_Dados!H20,M33) -> 0 | N34: =+Inserir_Dados!I20 -> 0 | O34: 0.01435406118 | P34: =+P33*1.2 -> 0.006191736422
B35: T = | C35: =+D35/60 -> 0.01339676687 | D35: =10^(($E$35/1000)-10)*60 -> 0.8038060125 | E35: 8127 | F35: S = | G35: =10^((I35/1000)-10) -> 0.0001119437883 | I35: 6049 | M35: =IF(N35>0,Inserir_Dados!H21,M34) -> 0 | N35: =+Inserir_Dados!I21 -> 0 | O35: 0.02403321292 | P35: =+P34*1.2 -> 0.007430083707
M36: =IF(N36>0,Inserir_Dados!H22,M35) -> 0 | N36: =+Inserir_Dados!I22 -> 0 | O36: 0.03764423112 | P36: =+P35*1.2 -> 0.008916100448
M37: =IF(N37>0,Inserir_Dados!H23,M36) -> 0 | N37: =+Inserir_Dados!I23 -> 0 | O37: 0.05573157915 | P37: =+P36*1.2 -> 0.01069932054
M38: =IF(N38>0,Inserir_Dados!H24,M37) -> 0 | N38: =+Inserir_Dados!I24 -> 0 | O38: 0.07865885345 | P38: 0.01283918465
M39: =IF(N39>0,Inserir_Dados!H25,M38) -> 0 | N39: =+Inserir_Dados!I25 -> 0 | O39: 0.1065983476 | P39: 0.01540702157
M40: =IF(N40>0,Inserir_Dados!H26,M39) -> 0 | N40: =+Inserir_Dados!I26 -> 0 | O40: 0.1395448646 | P40: 0.01848842589
M41: =IF(N41>0,Inserir_Dados!H27,M40) -> 0 | N41: =+Inserir_Dados!I27 -> 0 | O41: 0.1773449048 | P41: 0.02218611107
M42: =IF(N42>0,Inserir_Dados!H28,M41) -> 0 | N42: =+Inserir_Dados!I28 -> 0 | O42: 0.2197331823 | P42: 0.02662333328
M43: =IF(N43>0,Inserir_Dados!H29,M42) -> 0 | N43: =+Inserir_Dados!I29 -> 0 | O43: 0.2663688921 | P43: 0.03194799994
M44: =IF(N44>0,Inserir_Dados!H30,M43) -> 0 | N44: =+Inserir_Dados!I30 -> 0 | O44: 0.3168683508 | P44: 0.03833759992
M45: =IF(N45>0,Inserir_Dados!H31,M44) -> 0 | N45: =+Inserir_Dados!I31 -> 0 | O45: 0.370831631 | P45: 0.04600511991
M46: =IF(N46>0,Inserir_Dados!H32,M45) -> 0 | N46: =+Inserir_Dados!I32 -> 0 | O46: 0.4278626399 | P46: 0.05520614389
M47: =IF(N47>0,Inserir_Dados!H33,M46) -> 0 | N47: =+Inserir_Dados!I33 -> 0 | O47: 0.4875831243 | P47: 0.06624737267
M48: =IF(N48>0,Inserir_Dados!H34,M47) -> 0 | N48: =+Inserir_Dados!I34 -> 0 | O48: 0.5496415585 | P48: 0.0794968472
M49: =IF(N49>0,Inserir_Dados!H35,M48) -> 0 | N49: =+Inserir_Dados!I35 -> 0 | O49: 0.6137180084 | P49: 0.09539621664
M50: =IF(N50>0,Inserir_Dados!H36,M49) -> 0 | N50: =+Inserir_Dados!I36 -> 0 | O50: 0.679526018 | P50: 0.11447546
M51: =IF(N51>0,Inserir_Dados!H37,M50) -> 0 | N51: =+Inserir_Dados!I37 -> 0 | O51: 0.746812414 | P51: 0.137370552
M52: =IF(N52>0,Inserir_Dados!H38,M51) -> 0 | N52: =+Inserir_Dados!I38 -> 0 | O52: 0.8153557525 | P52: 0.1648446624
M53: =IF(N53>0,Inserir_Dados!H39,M52) -> 0 | N53: =+Inserir_Dados!I39 -> 0 | O53: 0.8849639535 | P53: 0.1978135948
M54: =IF(N54>0,Inserir_Dados!H40,M53) -> 0 | N54: =+Inserir_Dados!I40 -> 0 | O54: 0.9554715232 | P54: 0.2373763138
E55: 5000 | M55: =IF(N55>0,Inserir_Dados!H41,M54) -> 0 | N55: =+Inserir_Dados!I41 -> 0 | O55: 1.026736639 | P55: 0.2848515766
M56: =IF(N56>0,Inserir_Dados!H42,M55) -> 0 | N56: =+Inserir_Dados!I42 -> 0 | O56: =($N$15/(4*PI()*$D$35))*w_2($G$35*($N$17^2)/(4*$D$35*P56),$N$17/$G$29) -> 1.098638277 | P56: 0.3418218919
M57: =IF(N57>0,Inserir_Dados!H43,M56) -> 0 | N57: =+Inserir_Dados!I43 -> 0 | O57: 1.1710735 | P57: 0.4101862702
M58: =IF(N58>0,Inserir_Dados!H44,M57) -> 0 | N58: =+Inserir_Dados!I44 -> 0 | O58: 1.243954954 | P58: 0.4922235243
M59: =IF(N59>0,Inserir_Dados!H45,M58) -> 0 | N59: =+Inserir_Dados!I45 -> 0 | O59: 1.317208619 | P59: 0.5906682292
M60: =IF(N60>0,Inserir_Dados!H46,M59) -> 0 | N60: =+Inserir_Dados!I46 -> 0 | O60: 1.390771803 | P60: 0.708801875
M61: =IF(N61>0,Inserir_Dados!H47,M60) -> 0 | N61: =+Inserir_Dados!I47 -> 0 | O61: 1.464591376 | P61: 0.85056225
M62: =IF(N62>0,Inserir_Dados!H48,M61) -> 0 | N62: =+Inserir_Dados!I48 -> 0 | O62: 1.538622229 | P62: 1.0206747
M63: =IF(N63>0,Inserir_Dados!H49,M62) -> 0 | N63: =+Inserir_Dados!I49 -> 0 | O63: 1.612825929 | P63: 1.22480964
M64: =IF(N64>0,Inserir_Dados!H50,M63) -> 0 | N64: =+Inserir_Dados!I50 -> 0 | O64: 1.687169549 | P64: 1.469771568
M65: =IF(N65>0,Inserir_Dados!H51,M64) -> 0 | N65: =+Inserir_Dados!I51 -> 0 | O65: 1.761624651 | P65: 1.763725882
M66: =IF(N66>0,Inserir_Dados!H52,M65) -> 0 | N66: =+Inserir_Dados!I52 -> 0 | O66: 1.836166389 | P66: 2.116471058
M67: =IF(N67>0,Inserir_Dados!H53,M66) -> 0 | N67: =+Inserir_Dados!I53 -> 0 | O67: 1.910772723 | P67: 2.539765269
M68: =IF(N68>0,Inserir_Dados!H54,M67) -> 0 | N68: =+Inserir_Dados!I54 -> 0 | O68: 1.985423711 | P68: 3.047718323
M69: =IF(N69>0,Inserir_Dados!H55,M68) -> 0 | N69: =+Inserir_Dados!I55 -> 0 | O69: 2.060100862 | P69: 3.657261988
M70: =IF(N70>0,Inserir_Dados!H56,M69) -> 0 | N70: =+Inserir_Dados!I56 -> 0 | O70: 2.134786563 | P70: 4.388714386
M71: =IF(N71>0,Inserir_Dados!H57,M70) -> 0 | N71: =+Inserir_Dados!I57 -> 0 | O71: 2.209463412 | P71: 5.266457263
M72: =IF(N72>0,Inserir_Dados!H58,M71) -> 0 | N72: =+Inserir_Dados!I58 -> 0 | O72: 2.284113786 | P72: 6.319748715
M73: =IF(N73>0,Inserir_Dados!H59,M72) -> 0 | N73: =+Inserir_Dados!I59 -> 0 | O73: 2.358719175 | P73: 7.583698458
B74: Figura 1 - Exemplo de localização do ponto de inflexão em uma curva de rebaixamento | M74: =IF(N74>0,Inserir_Dados!H60,M73) -> 0 | N74: =+Inserir_Dados!I60 -> 0 | O74: 2.433259605 | P74: 9.10043815
M75: =IF(N75>0,Inserir_Dados!H61,M74) -> 0 | N75: =+Inserir_Dados!I61 -> 0 | O75: 2.507712994 | P75: 10.92052578
M76: =IF(N76>0,Inserir_Dados!H62,M75) -> 0 | N76: =+Inserir_Dados!I62 -> 0 | O76: 2.582054442 | P76: 13.10463094
M77: =IF(N77>0,Inserir_Dados!H63,M76) -> 0 | N77: =+Inserir_Dados!I63 -> 0 | O77: 2.656255439 | P77: 15.72555712
M78: =IF(N78>0,Inserir_Dados!H64,M77) -> 0 | N78: =+Inserir_Dados!I64 -> 0 | O78: 2.730282972 | P78: 18.87066855
M79: =IF(N79>0,Inserir_Dados!H65,M78) -> 0 | N79: =+Inserir_Dados!I65 -> 0 | O79: 2.804098503 | P79: 22.64480226
M80: =IF(N80>0,Inserir_Dados!H66,M79) -> 0 | N80: =+Inserir_Dados!I66 -> 0 | O80: 2.877656796 | P80: 27.17376271
M81: =IF(N81>0,Inserir_Dados!H67,M80) -> 0 | N81: =+Inserir_Dados!I67 -> 0 | O81: 2.95090457 | P81: 32.60851525
M82: =IF(N82>0,Inserir_Dados!H68,M81) -> 0 | N82: =+Inserir_Dados!I68 -> 0 | O82: 3.02377895 | P82: 39.1302183
M83: =IF(N83>0,Inserir_Dados!H69,M82) -> 0 | N83: =+Inserir_Dados!I69 -> 0 | O83: 3.096205704 | P83: 46.95626196
M84: =IF(N84>0,Inserir_Dados!H70,M83) -> 0 | N84: =+Inserir_Dados!I70 -> 0 | O84: 3.168097228 | P84: 56.34751435
M85: =IF(N85>0,Inserir_Dados!H71,M84) -> 0 | N85: =+Inserir_Dados!I71 -> 0 | O85: 3.239350291 | P85: 67.61701722
M86: =IF(N86>0,Inserir_Dados!H72,M85) -> 0 | N86: =+Inserir_Dados!I72 -> 0 | O86: 3.309843534 | P86: 81.14042067
M87: =IF(N87>0,Inserir_Dados!H73,M86) -> 0 | N87: =+Inserir_Dados!I73 -> 0 | O87: 3.379434748 | P87: 97.3685048
M88: =IF(N88>0,Inserir_Dados!H74,M87) -> 0 | N88: =+Inserir_Dados!I74 -> 0 | O88: =($N$15/(4*PI()*$D$35))*w_2($G$35*($N$17^2)/(4*$D$35*P88),$N$17/$G$29) -> 3.447958003 | P88: 116.8422058
M89: =IF(N89>0,Inserir_Dados!H75,M88) -> 0 | N89: =+Inserir_Dados!I75 -> 0 | O89: 3.515220732 | P89: 140.2106469
M90: =IF(N90>0,Inserir_Dados!H76,M89) -> 0 | N90: =+Inserir_Dados!I76 -> 0 | O90: 3.581000959 | P90: 168.2527763
M91: =IF(N91>0,Inserir_Dados!H77,M90) -> 0 | N91: =+Inserir_Dados!I77 -> 0 | O91: 3.645044945 | P91: 201.9033316
M92: =IF(N92>0,Inserir_Dados!H78,M91) -> 0 | N92: =+Inserir_Dados!I78 -> 0 | O92: 3.707065649 | P92: 242.2839979
M93: =IF(N93>0,Inserir_Dados!H79,M92) -> 0 | N93: =+Inserir_Dados!I79 -> 0 | O93: 3.766742566 | P93: 290.7407974
M94: =IF(N94>0,Inserir_Dados!H80,M93) -> 0 | N94: =+Inserir_Dados!I80 -> 0 | O94: 3.823723656 | P94: 348.8889569
M95: =IF(N95>0,Inserir_Dados!H81,M94) -> 0 | N95: =+Inserir_Dados!I81 -> 0 | O95: 3.877630265 | P95: 418.6667483
M96: =IF(N96>0,Inserir_Dados!H82,M95) -> 0 | N96: =+Inserir_Dados!I82 -> 0 | O96: 3.928066101 | P96: 502.400098
M97: =IF(N97>0,Inserir_Dados!H83,M96) -> 0 | N97: =+Inserir_Dados!I83 -> 0 | O97: 3.974631326 | P97: 602.8801176
M98: =IF(N98>0,Inserir_Dados!H84,M97) -> 0 | N98: =+Inserir_Dados!I84 -> 0 | O98: 4.016942756 | P98: 723.4561411
M99: =IF(N99>0,Inserir_Dados!H85,M98) -> 0 | N99: =+Inserir_Dados!I85 -> 0 | O99: 4.054660602 | P99: 868.1473693
M100: =IF(N100>0,Inserir_Dados!H86,M99) -> 0 | N100: =+Inserir_Dados!I86 -> 0 | O100: 4.087521203 | P100: 1041.776843
M101: =IF(N101>0,Inserir_Dados!H87,M100) -> 0 | N101: =+Inserir_Dados!I87 -> 0 | O101: 4.115373326 | P101: =+P100*1.2 -> 1250.132212
M102: =IF(N102>0,Inserir_Dados!H88,M101) -> 0 | N102: =+Inserir_Dados!I88 -> 0 | O102: 4.138214638 | P102: 1500.158654
M103: =IF(N103>0,Inserir_Dados!H89,M102) -> 0 | N103: =+Inserir_Dados!I89 -> 0 | O103: 4.156220691 | P103: 1800.190385
M104: =IF(N104>0,Inserir_Dados!H90,M103) -> 0 | N104: =+Inserir_Dados!I90 -> 0 | O104: 4.169758389 | P104: 2160.228462
M105: =IF(N105>0,Inserir_Dados!H91,M104) -> 0 | N105: =+Inserir_Dados!I91 -> 0 | O105: 4.179375065 | P105: 2592.274154
M106: =IF(N106>0,Inserir_Dados!H92,M105) -> 0 | N106: =+Inserir_Dados!I92 -> 0 | O106: 4.185757494 | P106: 3110.728985
M107: =IF(N107>0,Inserir_Dados!H93,M106) -> 0 | N107: =+Inserir_Dados!I93 -> 0 | O107: 4.189662342 | P107: 3732.874782
M108: =IF(N108>0,Inserir_Dados!H94,M107) -> 0 | N108: =+Inserir_Dados!I94 -> 0 | O108: 4.191829672 | P108: 4479.449739
M109: =IF(N109>0,Inserir_Dados!H95,M108) -> 0 | N109: =+Inserir_Dados!I95 -> 0 | O109: 4.192900333 | P109: 5375.339687
M110: =IF(N110>0,Inserir_Dados!H96,M109) -> 0 | N110: =+Inserir_Dados!I96 -> 0 | O110: 4.193360478 | P110: 6450.407624
M111: =IF(N111>0,Inserir_Dados!H97,M110) -> 0 | N111: =+Inserir_Dados!I97 -> 0 | O111: 4.193527926 | P111: 7740.489149
M112: =IF(N112>0,Inserir_Dados!H98,M111) -> 0 | N112: =+Inserir_Dados!I98 -> 0 | O112: 4.193577883 | P112: 9288.586978

Sheet Boulton
C11: Determinação da Transmissividade e do Coeficiente | M11: Estas colunas realizam os cálculos da planilha, não as utilize
D12: de Armazenamento Pelo Método de Boulton | M12: se não souber o que está fazendo
D15: IDENTIFICAÇÃO DO POÇO: | E15: =Inserir_Dados!D7 -> Poço de Bombeamento XXXXXXXXX | M15: b' = | N15: =+Inserir_Dados!D14 -> 90
M16: Q = | N16: =+Inserir_Dados!D12/60 -> 4.166666667
B17: INSERIR DADOS DO POÇO E DO AQUÍFERO | F17: Localização: | G17: =Inserir_Dados!D8 -> %%%%%%%% | M17: si = | N17: =MAX(N23:N223)/2 -> 0
B18: Detalhes da Construção: | F18: Data: | G18: =Inserir_Dados!D9 -> &&&&&&& | M18: r = | N18: =+Inserir_Dados!D13 -> 20
B19: Diâmetro do Revestimento: | C19: =Inserir_Dados!D19 -> 10 | D19: Polegadas | F19: Coordenadas: | G19: =Inserir_Dados!D10 -> 0 | H19: Lat. | M19: tp = | N19: =+G33 -> 1.8
B20: Diâmetro de Perfuração: | C20: =Inserir_Dados!D20 -> 14 | D20: Polegadas | G20: =Inserir_Dados!D11 -> 0 | H20: Long.
B21: Profundidade do Poço: | C21: =Inserir_Dados!D21 -> 260 | D21: metros | M21: Tempo | N21: Rebaixamento | O21: Rebaixamento | P21: Rebaixamento
B22: Profundidades: | G22: RESULTADOS | M22: (min) | N22: Medido (m) | O22: Aqüífero - s' (m) | P22: Aquitarde - s'' (m)
B23: Nível Estático: | C23: =Inserir_Dados!D16 -> 23.5 | D23: metros | F23: B (espessura aqüífero) = | G23: =+C25-C24 -> 326.5 | H23: m | M23: =+Inserir_Dados!H10 -> 0 | N23: =+Inserir_Dados!I10 -> 0 | O23: =+($N$16/$C$35)*W_3(($N$18/$G$29), ((Q23*$C$35)/($H$35*$G$29^2)), ($H$35/$H$37), ((($C$37/$N$15)*$G$29^2)/$C$35)) -> 1.858869043e-12 | P23: =+($N$16/$C$35)*Eta_3(($N$18/$G$29), ((Q23*$C$35)/($H$35*$G$29^2)), ($H$35/$H$37), ((($C$37/$N$15)*$G$29^2)/$C$35)) -> -1.343220173e-15 | Q23: 0.001
B24: Topo do Aquifero: | C24: =Inserir_Dados!D17 -> 23.5 | D24: metros | F24: Q (vazão) = | G24: =+Inserir_Dados!D12 -> 250 | H24: m³/h | M24: =IF(N24>0,Inserir_Dados!H11,M23) -> 0 | N24: =+Inserir_Dados!I11 -> 0 | O24: =+($N$16/$C$35)*W_3(($N$18/$G$29), ((Q24*$C$35)/($H$35*$G$29^2)), ($H$35/$H$37), ((($C$37/$N$15)*$G$29^2)/$C$35)) -> 1.033261987e-10 | P24: =+($N$16/$C$35)*Eta_3(($N$18/$G$29), ((Q24*$C$35)/($H$35*$G$29^2)), ($H$35/$H$37), ((($C$37/$N$15)*$G$29^2)/$C$35)) -> -5.201948764e-14 | Q24: =+Q23*1.2 -> 0.0012
B25: Base do Aquifero: | C25: =Inserir_Dados!D18 -> 350 | D25: metros | F25: R (dist. do piezômetro) = | G25: =+Inserir_Dados!D13 -> 20 | H25: m | M25: =IF(N25>0,Inserir_Dados!H12,M24) -> 0 | N25: =+Inserir_Dados!I12 -> 0 | O25: 3.022829547e-09 | P25: -1.060702982e-12 | Q25: =+Q24*1.2 -> 0.00144
B26: Espaço Anular: | F26: T (Transmissividade) = | G26: =+C35*60 -> 43.08265913 | H26: m²/h | M26: =IF(N26>0,Inserir_Dados!H13,M25) -> 0 | N26: =+Inserir_Dados!I13 -> 0 | O26: 5.177712981e-08 | P26: -1.266794968e-11 | Q26: 0.001728
B27: Material do Pré-Filtro: | F27: Ss (coef. de armazen. elástico) = | G27: =+H35 -> 0.0001655769963 | M27: =IF(N27>0,Inserir_Dados!H14,M26) -> 0 | N27: =+Inserir_Dados!I14 -> 0 | O27: 5.674507381e-07 | P27: -9.683613686e-11 | Q27: 0.0020736
B28: Selo do Poço: | F28: Sy (porosidade eficaz) = | G28: =+H37 -> 0.0197696964 | M28: =IF(N28>0,Inserir_Dados!H15,M27) -> 0 | N28: =+Inserir_Dados!I15 -> 0 | O28: 4.284328859e-06 | P28: -5.101165201e-10 | Q28: 0.00248832
B29: Material da Formação: | F29: L (função do aqüitarde) = | G29: =(2*$C$35*$N$19)/($N$18*$H$35) -> 780.5913879 | H29: m/h | M29: =IF(N29>0,Inserir_Dados!H16,M28) -> 0 | N29: =+Inserir_Dados!I16 -> 0 | O29: 2.36989189e-05 | P29: -1.969250992e-09 | Q29: 0.002985984
B30: Vazão de Bombeamento: | C30: =Inserir_Dados!D12 -> 250 | D30: m³/h | F30: b' (espessura aqüítarde) = | G30: =N15 -> 90 | H30: m | M30: =IF(N30>0,Inserir_Dados!H17,M29) -> 0 | N30: =+Inserir_Dados!I17 -> 0 | O30: 0.0001010918052 | P30: -5.862870856e-09 | Q30: 0.0035831808
F31: k' (permeab. Aqüitarde) = | G31: =+C37*60 -> 0.006363521258 | H31: m/h | M31: =IF(N31>0,Inserir_Dados!H18,M30) -> 0 | N31: =+Inserir_Dados!I18 -> 0 | O31: 0.0003470297173 | P31: -1.40417532e-08 | Q31: 0.00429981696
M32: =IF(N32>0,Inserir_Dados!H19,M31) -> 0 | N32: =+Inserir_Dados!I19 -> 0 | O32: 0.0009933368056 | P32: -2.800429905e-08 | Q32: 0.005159780352
F33: Inserir Ti (tempo correspondente ao ponto de inflexão) = | G33: 1.8 | M33: =IF(N33>0,Inserir_Dados!H20,M32) -> 0 | N33: =+Inserir_Dados!I20 -> 0 | O33: 0.002441942885 | P33: -4.782766173e-08 | Q33: 0.006191736422
M34: =IF(N34>0,Inserir_Dados!H21,M33) -> 0 | N34: =+Inserir_Dados!I21 -> 0 | O34: 0.005283982766 | P34: -7.157262411e-08 | Q34: 0.007430083707
B35: T = | C35: =(10^((D35/1000)-10))*60 -> 0.7180443188 | D35: 8078 | G35: Ss = | H35: =10^((I35/1000)-10) -> 0.0001655769963 | I35: 6219 | M35: =IF(N35>0,Inserir_Dados!H22,M34) -> 0 | N35: =+Inserir_Dados!I22 -> 0 | O35: 0.01027215672 | P35: -9.56767529e-08 | Q35: 0.008916100448
M36: =IF(N36>0,Inserir_Dados!H23,M35) -> 0 | N36: =+Inserir_Dados!I23 -> 0 | O36: 0.0182488305 | P36: -1.159474562e-07 | Q36: 0.01069932054
B37: k' = | C37: =($C$35*$N$15)/(G29^2) -> 0.0001060586876 | G37: Sy = | H37: =10^((I37/1000)-10) -> 0.0197696964 | I37: 8296 | M37: =IF(N37>0,Inserir_Dados!H24,M36) -> 0 | N37: =+Inserir_Dados!I24 -> 0 | O37: 0.03004991737 | P37: -1.278749969e-07 | Q37: 0.01283918465
M38: =IF(N38>0,Inserir_Dados!H25,M37) -> 0 | N38: =+Inserir_Dados!I25 -> 0 | O38: 0.04641094999 | P38: -1.264887261e-07 | Q38: 0.01540702157
M39: =IF(N39>0,Inserir_Dados!H26,M38) -> 0 | N39: =+Inserir_Dados!I26 -> 0 | O39: 0.06789650832 | P39: -1.100372219e-07 | Q39: 0.01848842589
M40: =IF(N40>0,Inserir_Dados!H27,M39) -> 0 | N40: =+Inserir_Dados!I27 -> 0 | O40: 0.09486302796 | P40: -8.059342222e-08 | Q40: 0.02218611107
M41: =IF(N41>0,Inserir_Dados!H28,M40) -> 0 | N41: =+Inserir_Dados!I28 -> 0 | O41: 0.1274542547 | P41: -1.486024253e-08 | Q41: 0.02662333328
M42: =IF(N42>0,Inserir_Dados!H29,M41) -> 0 | N42: =+Inserir_Dados!I29 -> 0 | O42: 0.1656215936 | P42: 5.693109215e-08 | Q42: 0.03194799994
M43: =IF(N43>0,Inserir_Dados!H30,M42) -> 0 | N43: =+Inserir_Dados!I30 -> 0 | O43: 0.2091595836 | P43: 1.14010364e-07 | Q43: 0.03833759992
M44: =IF(N44>0,Inserir_Dados!H31,M43) -> 0 | N44: =+Inserir_Dados!I31 -> 0 | O44: 0.2577471978 | P44: 2.517226104e-07 | Q44: 0.04600511991
M45: =IF(N45>0,Inserir_Dados!H32,M44) -> 0 | N45: =+Inserir_Dados!I32 -> 0 | O45: 0.3109878007 | P45: 4.734087657e-07 | Q45: 0.05520614389
M46: =IF(N46>0,Inserir_Dados!H33,M45) -> 0 | N46: =+Inserir_Dados!I33 -> 0 | O46: 0.3684442383 | P46: 7.611252073e-07 | Q46: 0.06624737267
M47: =IF(N47>0,Inserir_Dados!H34,M46) -> 0 | N47: =+Inserir_Dados!I34 -> 0 | O47: 0.4296669048 | P47: 1.118106062e-06 | Q47: 0.0794968472
M48: =IF(N48>0,Inserir_Dados!H35,M47) -> 0 | N48: =+Inserir_Dados!I35 -> 0 | O48: 0.4942145142 | P48: 1.573182386e-06 | Q48: 0.09539621664
M49: =IF(N49>0,Inserir_Dados!H36,M48) -> 0 | N49: =+Inserir_Dados!I36 -> 0 | O49: 0.5616682867 | P49: 2.173716283e-06 | Q49: 0.11447546
M50: =IF(N50>0,Inserir_Dados!H37,M49) -> 0 | N50: =+Inserir_Dados!I37 -> 0 | O50: 0.6316406784 | P50: 2.98016724e-06 | Q50: 0.137370552
M51: =IF(N51>0,Inserir_Dados!H38,M50) -> 0 | N51: =+Inserir_Dados!I38 -> 0 | O51: 0.7037798822 | P51: 4.065112356e-06 | Q51: 0.1648446624
M52: =IF(N52>0,Inserir_Dados!H39,M51) -> 0 | N52: =+Inserir_Dados!I39 -> 0 | O52: 0.7777712337 | P52: 5.515854572e-06 | Q52: 0.1978135948
M53: =IF(N53>0,Inserir_Dados!H40,M52) -> 0 | N53: =+Inserir_Dados!I40 -> 0 | O53: 0.853336479 | P53: 7.439310438e-06 | Q53: 0.2373763138
M54: =IF(N54>0,Inserir_Dados!H41,M53) -> 0 | N54: =+Inserir_Dados!I41 -> 0 | O54: 0.9302316637 | P54: 9.968383933e-06 | Q54: 0.2848515766
M55: =IF(N55>0,Inserir_Dados!H42,M54) -> 0 | N55: =+Inserir_Dados!I42 -> 0 | O55: 1.00824421 | P55: 1.32695918e-05 | Q55: 0.3418218919
M56: =IF(N56>0,Inserir_Dados!H43,M55) -> 0 | N56: =+Inserir_Dados!I43 -> 0 | O56: 1.087189592 | P56: 1.755208819e-05 | Q56: 0.4101862702
C57: 20 | M57: =IF(N57>0,Inserir_Dados!H44,M56) -> 0 | N57: =+Inserir_Dados!I44 -> 0 | O57: 1.166907874 | P57: 2.30784629e-05 | Q57: 0.4922235243
M58: =IF(N58>0,Inserir_Dados!H45,M57) -> 0 | N58: =+Inserir_Dados!I45 -> 0 | O58: 1.247260309 | P58: 3.017782664e-05 | Q58: 0.5906682292
M59: =IF(N59>0,Inserir_Dados!H46,M58) -> 0 | N59: =+Inserir_Dados!I46 -> 0 | O59: 1.328126077 | P59: 3.92618052e-05 | Q59: 0.708801875
M60: =IF(N60>0,Inserir_Dados!H47,M59) -> 0 | N60: =+Inserir_Dados!I47 -> 0 | O60: 1.409399231 | P60: 5.084417623e-05 | Q60: 0.85056225
M61: =IF(N61>0,Inserir_Dados!H48,M60) -> 0 | N61: =+Inserir_Dados!I48 -> 0 | O61: 1.490985855 | P61: 6.556501829e-05 | Q61: 1.0206747
M62: =IF(N62>0,Inserir_Dados!H49,M61) -> 0 | N62: =+Inserir_Dados!I49 -> 0 | O62: 1.572801429 | P62: 8.422041113e-05 | Q62: 1.22480964
M63: =IF(N63>0,Inserir_Dados!H50,M62) -> 0 | N63: =+Inserir_Dados!I50 -> 0 | O63: 1.654768371 | P63: 0.0001077989389 | Q63: 1.469771568
M64: =IF(N64>0,Inserir_Dados!H51,M63) -> 0 | N64: =+Inserir_Dados!I51 -> 0 | O64: 1.736813723 | P64: 0.0001375265109 | Q64: 1.763725882
M65: =IF(N65>0,Inserir_Dados!H52,M64) -> 0 | N65: =+Inserir_Dados!I52 -> 0 | O65: 1.818866935 | P65: 0.0001749213273 | Q65: 2.116471058
M66: =IF(N66>0,Inserir_Dados!H53,M65) -> 0 | N66: =+Inserir_Dados!I53 -> 0 | O66: 1.900857702 | P66: 0.000221861198 | Q66: 2.539765269
M67: =IF(N67>0,Inserir_Dados!H54,M66) -> 0 | N67: =+Inserir_Dados!I54 -> 0 | O67: 1.982713809 | P67: 0.0002806659119 | Q67: 3.047718323
M68: =IF(N68>0,Inserir_Dados!H55,M67) -> 0 | N68: =+Inserir_Dados!I55 -> 0 | O68: 2.064358934 | P68: 0.0003541978967 | Q68: 3.657261988
M69: =IF(N69>0,Inserir_Dados!H56,M68) -> 0 | N69: =+Inserir_Dados!I56 -> 0 | O69: 2.145710359 | P69: 0.0004459849475 | Q69: 4.388714386
M70: =IF(N70>0,Inserir_Dados!H57,M69) -> 0 | N70: =+Inserir_Dados!I57 -> 0 | O70: 2.226676561 | P70: 0.0005603695648 | Q70: 5.266457263
M71: =IF(N71>0,Inserir_Dados!H58,M70) -> 0 | N71: =+Inserir_Dados!I58 -> 0 | O71: 2.307154622 | P71: 0.0007026906614 | Q71: 6.319748715
M72: =IF(N72>0,Inserir_Dados!H59,M71) -> 0 | N72: =+Inserir_Dados!I59 -> 0 | O72: 2.387027451 | P72: 0.000879504599 | Q72: 7.583698458
M73: =IF(N73>0,Inserir_Dados!H60,M72) -> 0 | N73: =+Inserir_Dados!I60 -> 0 | O73: 2.466160796 | P73: 0.001098853066 | Q73: 9.10043815
M74: =IF(N74>0,Inserir_Dados!H61,M73) -> 0 | N74: =+Inserir_Dados!I61 -> 0 | O74: 2.544400059 | P74: 0.001370585733 | Q74: 10.92052578
M75: =IF(N75>0,Inserir_Dados!H62,M74) -> 0 | N75: =+Inserir_Dados!I62 -> 0 | O75: 2.621566944 | P75: 0.001706747369 | Q75: 13.10463094
M76: =IF(N76>0,Inserir_Dados!H63,M75) -> 0 | N76: =+Inserir_Dados!I63 -> 0 | O76: 2.697456057 | P76: 0.002122042615 | Q76: 15.72555712
M77: =IF(N77>0,Inserir_Dados!H64,M76) -> 0 | N77: =+Inserir_Dados!I64 -> 0 | O77: 2.771831597 | P77: 0.002634394321 | Q77: 18.87066855
M78: =IF(N78>0,Inserir_Dados!H65,M77) -> 0 | N78: =+Inserir_Dados!I65 -> 0 | O78: 2.844424422 | P78: 0.003265616043 | Q78: 22.64480226
M79: =IF(N79>0,Inserir_Dados!H66,M78) -> 0 | N79: =+Inserir_Dados!I66 -> 0 | O79: 2.914929857 | P79: 0.004042210769 | Q79: 27.17376271
M80: =IF(N80>0,Inserir_Dados!H67,M79) -> 0 | N80: =+Inserir_Dados!I67 -> 0 | O80: 2.983006786 | P80: 0.004996304416 | Q80: 32.60851525
M81: =IF(N81>0,Inserir_Dados!H68,M80) -> 0 | N81: =+Inserir_Dados!I68 -> 0 | O81: 3.048278758 | P81: 0.006166798875 | Q81: 39.1302183
M82: =IF(N82>0,Inserir_Dados!H69,M81) -> 0 | N82: =+Inserir_Dados!I69 -> 0 | O82: 3.110338013 | P82: 0.007600645859 | Q82: 46.95626196
M83: =IF(N83>0,Inserir_Dados!H70,M82) -> 0 | N83: =+Inserir_Dados!I70 -> 0 | O83: 3.168753559 | P83: 0.009354043924 | Q83: 56.34751435
M84: =IF(N84>0,Inserir_Dados!H71,M83) -> 0 | N84: =+Inserir_Dados!I71 -> 0 | O84: 3.223084524 | P84: 0.01149447855 | Q84: 67.61701722
M85: =IF(N85>0,Inserir_Dados!H72,M84) -> 0 | N85: =+Inserir_Dados!I72 -> 0 | O85: 3.272899957 | P85: 0.01410398754 | Q85: 81.14042067
M86: =IF(N86>0,Inserir_Dados!H73,M85) -> 0 | N86: =+Inserir_Dados!I73 -> 0 | O86: 3.317805879 | P86: 0.01728018122 | Q86: 97.3685048
M87: =IF(N87>0,Inserir_Dados!H74,M86) -> 0 | N87: =+Inserir_Dados!I74 -> 0 | O87: 3.357479555 | P87: 0.02113401472 | Q87: 116.8422058
M88: =IF(N88>0,Inserir_Dados!H75,M87) -> 0 | N88: =+Inserir_Dados!I75 -> 0 | O88: =+($N$16/$C$35)*W_3(($N$18/$G$29), ((Q88*$C$35)/($H$35*$G$29^2)), ($H$35/$H$37), ((($C$37/$N$15)*$G$29^2)/$C$35)) -> 3.391709461 | P88: =+($N$16/$C$35)*Eta_3(($N$18/$G$29), ((Q88*$C$35)/($H$35*$G$29^2)), ($H$35/$H$37), ((($C$37/$N$15)*$G$29^2)/$C$35)) -> 0.02579448449 | Q88: 140.2106469
M89: =IF(N89>0,Inserir_Dados!H76,M88) -> 0 | N89: =+Inserir_Dados!I76 -> 0 | O89: 3.4204373 | P89: 0.03142785324 | Q89: =+Q88*1.2 -> 168.2527763
M90: =IF(N90>0,Inserir_Dados!H77,M89) -> 0 | N90: =+Inserir_Dados!I77 -> 0 | O90: 3.443795729 | P90: 0.03825277581 | Q90: 201.9033316
M91: =IF(N91>0,Inserir_Dados!H78,M90) -> 0 | N91: =+Inserir_Dados!I78 -> 0 | O91: 3.462132986 | P91: 0.04652097773 | Q91: 242.2839979
M92: =IF(N92>0,Inserir_Dados!H79,M91) -> 0 | N92: =+Inserir_Dados!I79 -> 0 | O92: 3.476015128 | P92: 0.05647187374 | Q92: 290.7407974
M93: =IF(N93>0,Inserir_Dados!H80,M92) -> 0 | N93: =+Inserir_Dados!I80 -> 0 | O93: 3.486193566 | P93: 0.06831574217 | Q93: 348.8889569
M94: =IF(N94>0,Inserir_Dados!H81,M93) -> 0 | N94: =+Inserir_Dados!I81 -> 0 | O94: 3.493544417 | P94: 0.08230765408 | Q94: 418.6667483
M95: =IF(N95>0,Inserir_Dados!H82,M94) -> 0 | N95: =+Inserir_Dados!I82 -> 0 | O95: 3.498977399 | P95: 0.09888624594 | Q95: 502.400098
M96: =IF(N96>0,Inserir_Dados!H83,M95) -> 0 | N96: =+Inserir_Dados!I83 -> 0 | O96: 3.503339999 | P96: 0.1187948021 | Q96: 602.8801176
M97: =IF(N97>0,Inserir_Dados!H84,M96) -> 0 | N97: =+Inserir_Dados!I84 -> 0 | O97: 3.507341938 | P97: 0.1430735513 | Q97: 723.4561411
M98: =IF(N98>0,Inserir_Dados!H85,M97) -> 0 | N98: =+Inserir_Dados!I85 -> 0 | O98: 3.511520644 | P98: 0.1728667947 | Q98: 868.1473693
M99: =IF(N99>0,Inserir_Dados!H86,M98) -> 0 | N99: =+Inserir_Dados!I86 -> 0 | O99: 3.516255941 | P99: 0.2091164116 | Q99: 1041.776843
M100: =IF(N100>0,Inserir_Dados!H87,M99) -> 0 | N100: =+Inserir_Dados!I87 -> 0 | O100: 3.521817749 | P100: 0.2523321015 | Q100: 1250.132212
M101: =IF(N101>0,Inserir_Dados!H88,M100) -> 0 | N101: =+Inserir_Dados!I88 -> 0 | O101: 3.528423181 | P101: 0.3026338303 | Q101: 1500.158654
M102: =IF(N102>0,Inserir_Dados!H89,M101) -> 0 | N102: =+Inserir_Dados!I89 -> 0 | O102: 3.536284335 | P102: 0.3601043119 | Q102: 1800.190385
M103: =IF(N103>0,Inserir_Dados!H90,M102) -> 0 | N103: =+Inserir_Dados!I90 -> 0 | O103: 3.545627081 | P103: 0.4252752961 | Q103: 2160.228462
M104: =IF(N104>0,Inserir_Dados!H91,M103) -> 0 | N104: =+Inserir_Dados!I91 -> 0 | O104: 3.556710819 | P104: 0.4995261058 | Q104: 2592.274154
M105: =IF(N105>0,Inserir_Dados!H92,M104) -> 0 | N105: =+Inserir_Dados!I92 -> 0 | O105: 3.569830259 | P105: 0.5851940197 | Q105: 3110.728985
M106: =IF(N106>0,Inserir_Dados!H93,M105) -> 0 | N106: =+Inserir_Dados!I93 -> 0 | O106: 3.585317575 | P106: 0.6853825643 | Q106: 3732.874782
M107: =IF(N107>0,Inserir_Dados!H94,M106) -> 0 | N107: =+Inserir_Dados!I94 -> 0 | O107: 3.603542299 | P107: 0.8035519556 | Q107: 4479.449739
M108: =IF(N108>0,Inserir_Dados!H95,M107) -> 0 | N108: =+Inserir_Dados!I95 -> 0 | O108: 3.624909631 | P108: 0.9430199302 | Q108: 5375.339687
M109: =IF(N109>0,Inserir_Dados!H96,M108) -> 0 | N109: =+Inserir_Dados!I96 -> 0 | O109: 3.649845829 | P109: 1.106466193 | Q109: 6450.407624
M110: =IF(N110>0,Inserir_Dados!H97,M109) -> 0 | N110: =+Inserir_Dados!I97 -> 0 | O110: 3.678798188 | P110: 1.295525272 | Q110: 7740.489149
M111: =IF(N111>0,Inserir_Dados!H98,M110) -> 0 | N111: =+Inserir_Dados!I98 -> 0 | O111: 3.712211556 | P111: 1.510447553 | Q111: 9288.586978
M112: =IF(N112>0,Inserir_Dados!H99,M111) -> 0 | N112: =+Inserir_Dados!I99 -> 0 | O112: 3.750501739 | P112: 1.749849507 | Q112: 11146.30437
M113: =IF(N113>0,Inserir_Dados!H100,M112) -> 0 | N113: =+Inserir_Dados!I100 -> 0 | O113: 3.794024154 | P113: 2.010557338 | Q113: 13375.56525
M114: =IF(N114>0,Inserir_Dados!H101,M113) -> 0 | N114: =+Inserir_Dados!I101 -> 0 | O114: 3.843041034 | P114: 2.287572824 | Q114: 16050.6783
M115: =IF(N115>0,Inserir_Dados!H102,M114) -> 0 | N115: =+Inserir_Dados!I102 -> 0 | O115: 3.897676644 | P115: 2.574198866 | Q115: 19260.81396
M116: =IF(N116>0,Inserir_Dados!H103,M115) -> 0 | N116: =+Inserir_Dados!I103 -> 0 | O116: 3.957870571 | P116: 2.862394565 | Q116: 23112.97675
M117: =IF(N117>0,Inserir_Dados!H104,M116) -> 0 | N117: =+Inserir_Dados!I104 -> 0 | O117: 4.023373479 | P117: 3.143449247 | Q117: 27735.5721
M118: =IF(N118>0,Inserir_Dados!H105,M117) -> 0 | N118: =+Inserir_Dados!I105 -> 0 | O118: 4.093705924 | P118: 3.408886168 | Q118: 33282.68652
M119: =IF(N119>0,Inserir_Dados!H106,M118) -> 0 | N119: =+Inserir_Dados!I106 -> 0 | O119: 4.168215211 | P119: 3.651622778 | Q119: 39939.22382
M120: =IF(N120>0,Inserir_Dados!H107,M119) -> 0 | N120: =+Inserir_Dados!I107 -> 0 | O120: 4.246094467 | P120: 3.867022754 | Q120: 47927.06859
M121: =IF(N121>0,Inserir_Dados!H108,M120) -> 0 | N121: =+Inserir_Dados!I108 -> 0 | O121: 4.326509837 | P121: 4.05366888 | Q121: 57512.48231
M122: =IF(N122>0,Inserir_Dados!H109,M121) -> 0 | N122: =+Inserir_Dados!I109 -> 0 | O122: 4.408646309 | P122: 4.213375269 | Q122: 69014.97877
M123: =IF(N123>0,Inserir_Dados!H110,M122) -> 0 | N123: =+Inserir_Dados!I110 -> 0 | O123: 4.491852386 | P123: 4.350521267 | Q123: 82817.97452

Sheet ResumoDosResultados
B4: Resultados Finais de Todos os Testes de Bombeamento e de Aqüífero, Ajustados nas Planilhas
B7: Resultados - Recuperação Jacob | F7: Resultados - Teste de Theis
B8: B (espessura aqüífero) = | C8: =Recuperação_Jacob!G20 -> 326.5 | D8: m | F8: B (espessura aqüífero) = | G8: =Theis!G21 -> 326.5 | H8: m
B9: Q (vazão) = | C9: =Recuperação_Jacob!G21 -> 250 | D9: m³/h | F9: Q (vazão) = | G9: =Theis!G22 -> 250 | H9: m³/h
B10: R (dist. do piezômetro) = | C10: =Recuperação_Jacob!G22 -> 20 | D10: m | F10: R (dist. do piezômetro) = | G10: =Theis!G23 -> 20 | H10: m
B11: T (Transmissividade) = | C11: =Recuperação_Jacob!G23 -> 52.27601823 | D11: m²/h | F11: T (Transmissividade) = | G11: =Theis!G24 -> 43.68199862 | H11: m²/h
B12: k (permeabilidade) = | C12: =Recuperação_Jacob!G24 -> 0.1601103162 | D12: m/h | F12: k (permeabilidade) = | G12: =Theis!G25 -> 0.1337886635 | H12: m/h
F13: S (coef. de armazenamento) = | G13: =Theis!G26 -> 0.0002051162179
B15: Resultados - Theis Dupuit | F15: Resultados -Teste de Cooper-Jacob
B16: B (espessura aqüífero) = | C16: =+Theis_Dupuit!G22 -> 326.5 | D16: m | F16: B (espessura aqüífero) = | G16: =Cooper_Jacob!G21 -> 326.5 | H16: m
B17: Q (vazão) = | C17: =+Theis_Dupuit!G23 -> 250 | D17: m³/h | F17: Q (vazão) = | G17: =Cooper_Jacob!G22 -> 250 | H17: m³/h
B18: R (dist. do piezômetro) = | C18: =+Theis_Dupuit!G24 -> 20 | D18: m | F18: R (dist. do piezômetro) = | G18: =Cooper_Jacob!G23 -> 20 | H18: m
B19: T (Transmissividade) = | C19: =+Theis_Dupuit!G25 -> 39.38242919 | D19: m²/h | F19: T (Transmissividade) = | G19: =Cooper_Jacob!G24 -> 45.95179712 | H19: m²/h
B20: k (permeabilidade) = | C20: =+Theis_Dupuit!G26 -> 0.1206199975 | D20: m/h | F20: k (permeabilidade) = | G20: =Cooper_Jacob!G25 -> 0.1407405731 | H20: m/h
B21: S (coef. de armazenamento) = | C21: =+Theis_Dupuit!G27 -> 0.000319889511 | F21: S (coef. de armazenamento) = | G21: =Cooper_Jacob!G26 -> 0.0001629296033
B23: Resultados - Teste de Boulton | F23: Resultados - Teste de Hantush
B24: B (espessura aqüífero) = | C24: =Boulton!G23 -> 326.5 | D24: m | F24: B (espessura aqüífero) = | G24: =Hantush!G23 -> 326.5 | H24: m
B25: Q (vazão) = | C25: =Boulton!G24 -> 250 | D25: m³/h | F25: Q (vazão) = | G25: =Hantush!G24 -> 250 | H25: m³/h
B26: R (dist. do piezômetro) = | C26: =Boulton!G25 -> 20 | D26: m | F26: R (dist. do piezômetro) = | G26: =Hantush!G25 -> 20 | H26: m
B27: T (Transmissividade) = | C27: =Boulton!G26 -> 43.08265913 | D27: m²/h | F27: T (Transmissividade) = | G27: =Hantush!G26 -> 48.22836075 | H27: m²/h
B28: Ss (coef. de armazen. elástico) = | C28: =Boulton!G27 -> 0.0001655769963 | F28: k (permeabilidade) = | G28: =Hantush!G27 -> 0.1477132029 | H28: m/h
B29: Sy (porosidade eficaz) = | C29: =Boulton!G28 -> 0.0197696964 | F29: S (coef. de armazenamento) = | G29: =Hantush!G28 -> 0.0001119437883
B30: L (função do aqüitarde) = | C30: =Boulton!G29 -> 780.5913879 | D30: m/h | F30: B (fator de drenança) = | G30: =Hantush!G29 -> 2872.177275 | H30: m
B31: b' (espessura aqüítarde) = | C31: =Boulton!G30 -> 90 | D31: m | F31: b' (espessura do aquitarde) = | G31: =Hantush!G30 -> 90 | H31: m
B32: k' (permeab. Aqüitarde) = | C32: =Boulton!G31 -> 0.006363521258 | D32: m/h | F32: k' (permeab. Aqüitarde) = | G32: =Hantush!G31 -> 1.461571366e-07 | H32: m/s
B33: k (permeabilidade do aquifero) = | C33: =+C27/(Inserir_Dados!D18-Inserir_Dados!D17) -> 0.1319530142 | D33: m/h

Sheet Matriz_Theis_Hantush_Boulton
N20: T= | O20: 0.01 | Q20: m²/s
N21: S= | O21: 0.1
N22: Q= | O22: 0.07 | Q22: m³/s
D25: Seg. | E25: Seg. | F25: Seg. | G25: Seg. | H25: Seg. | I25: Seg. | J25: Min. | K25: Min. | L25: Min. | M25: Min. | N25: Min. | O25: Min. | P25: Hora | Q25: Horas | R25: Horas | S25: Horas | T25: Dia | U25: Dias | V25: Dias | W25: Dias | X25: Dias | Y25: Dias | Z25: Dias | AA25: Dias | AB25: Dias | AC25: Dias | AD25: Anos | AE25: Anos | AF25: Anos
C26: Dist/Temp | D26: 1 | E26: 2 | F26: =5 -> 5 | G26: =+F26*2 -> 10 | H26: =+G26*2 -> 20 | I26: =+H26*2 -> 40 | J26: 1.333333333 | K26: 2.666666667 | L26: 5.333333333 | M26: 10.66666667 | N26: 21.33333333 | O26: 42.66666667 | P26: 1.422222222 | Q26: 2.844444444 | R26: 5.688888889 | S26: 11.37777778 | T26: 0.9481481481 | U26: 1.896296296 | V26: 3.792592593 | W26: 7.585185185 | X26: 15.17037037 | Y26: 30.34074074 | Z26: 60.68148148 | AA26: 121.362963 | AB26: 242.7259259 | AC26: 485.4518519 | AD26: =970.903703703704/365 -> 2.660010147 | AE26: =1941.80740740741/365 -> 5.320020294 | AF26: =3883.61481481481/365 -> 10.64004059
B27: Metros | C27: 20 | D27: =($O$22/(4*PI()*$O$20))*C132 -> 5.570423008e-101 | E27: 5.570423008e-101 | F27: 3.835435784e-90 | G27: 2.05199528e-46 | H27: 2.107581129e-24 | I27: 2.979910742e-13 | J27: 1.54547828e-07 | K27: 0.0001507001122 | L27: 0.006205161931 | M27: 0.05080354399 | N27: 0.1790078184 | O27: 0.400152922 | P27: 0.6919098986 | Q27: 1.027413621 | R27: 1.387297924 | S27: 1.760056493 | T27: 2.139430858 | U27: 2.522158778 | V27: 2.906575017 | W27: 3.291838317 | X27: 3.677525874 | Y27: 4.063425742 | Z27: 4.449431811 | AA27: 4.835490992 | AB27: 5.221576732 | AC27: 5.607675751 | AD27: 5.993781411 | AE27: 6.379890391 | AF27: 6.766001031
B28: Metros | C28: 50 | D28: =($O$22/(4*PI()*$O$20))*C133 -> 5.570423008e-101 | E28: 5.570423008e-101 | F28: 5.570423008e-101 | G28: 5.570423008e-101 | H28: 5.570423008e-101 | I28: 4.90696105e-71 | J28: 8.287160434e-37 | K28: 1.509441882e-19 | L28: 8.957055541e-11 | M28: 2.99240972e-06 | N28: 0.0007342800564 | O28: 0.01499864414 | P28: 0.0854108909 | Q28: 0.2479061239 | R28: 0.4974595693 | S28: 0.807576387 | T28: 1.153528144 | U28: 1.518987096 | V28: 1.894625195 | W28: 2.275462966 | X28: 2.658928575 | Y28: 3.043715165 | Z28: 3.429164018 | AA28: 3.814944446 | AB28: 4.200890773 | AC28: 4.586920077 | AD28: 4.972990878 | AE28: 5.359082427 | AF28: 5.745184352
B29: Metros | C29: 100 | D29: =($O$22/(4*PI()*$O$20))*C134 -> 5.570423008e-101 | E29: 5.570423008e-101 | F29: 5.570423008e-101 | G29: 5.570423008e-101 | H29: 5.570423008e-101 | I29: 5.570423008e-101 | J29: 5.570423008e-101 | K29: 4.90696105e-71 | L29: 8.287160434e-37 | M29: 1.509441882e-19 | N29: 8.957055541e-11 | O29: 2.99240972e-06 | P29: 0.0007342800564 | Q29: 0.01499864414 | R29: 0.0854108909 | S29: 0.2479061239 | T29: 0.4974595693 | U29: 0.807576387 | V29: 1.153528144 | W29: 1.518987096 | X29: 1.894625195 | Y29: 2.275462966 | Z29: 2.658928575 | AA29: 3.043715165 | AB29: 3.429164018 | AC29: 3.814944446 | AD29: 4.200890773 | AE29: 4.586920077 | AF29: 4.972990878
B30: Metros | C30: 200 | D30: =($O$22/(4*PI()*$O$20))*C135 -> 5.570423008e-101 | E30: 5.570423008e-101 | F30: 5.570423008e-101 | G30: 5.570423008e-101 | H30: 5.570423008e-101 | I30: 5.570423008e-101 | J30: 5.570423008e-101 | K30: 5.570423008e-101 | L30: 5.570423008e-101 | M30: 4.90696105e-71 | N30: 8.287160434e-37 | O30: 1.509441882e-19 | P30: 8.957055541e-11 | Q30: 2.99240972e-06 | R30: 0.0007342800564 | S30: 0.01499864414 | T30: 0.0854108909 | U30: 0.2479061239 | V30: 0.4974595693 | W30: 0.807576387 | X30: 1.153528144 | Y30: 1.518987096 | Z30: 1.894625195 | AA30: 2.275462966 | AB30: 2.658928575 | AC30: 3.043715165 | AD30: 3.429164018 | AE30: 3.814944446 | AF30: 4.200890773
B31: Metros | C31: 400 | D31: =($O$22/(4*PI()*$O$20))*C136 -> 5.570423008e-101 | E31: 5.570423008e-101 | F31: 5.570423008e-101 | G31: 5.570423008e-101 | H31: 5.570423008e-101 | I31: 5.570423008e-101 | J31: 5.570423008e-101 | K31: 5.570423008e-101 | L31: 5.570423008e-101 | M31: 5.570423008e-101 | N31: 5.570423008e-101 | O31: 4.90696105e-71 | P31: 8.287160434e-37 | Q31: 1.509441882e-19 | R31: 8.957055541e-11 | S31: 2.99240972e-06 | T31: 0.0007342800564 | U31: 0.01499864414 | V31: 0.0854108909 | W31: 0.2479061239 | X31: 0.4974595693 | Y31: 0.807576387 | Z31: 1.153528144 | AA31: 1.518987096 | AB31: 1.894625195 | AC31: 2.275462966 | AD31: 2.658928575 | AE31: 3.043715165 | AF31: 3.429164018
B32: Metros | C32: 500 | D32: =($O$22/(4*PI()*$O$20))*C137 -> 5.570423008e-101 | E32: 5.570423008e-101 | F32: 5.570423008e-101 | G32: 5.570423008e-101 | H32: 5.570423008e-101 | I32: 5.570423008e-101 | J32: 5.570423008e-101 | K32: 5.570423008e-101 | L32: 5.570423008e-101 | M32: 5.570423008e-101 | N32: 5.570423008e-101 | O32: 5.570423008e-101 | P32: 4.378378099e-56 | Q32: 2.793528017e-29 | R32: 9.866792984e-16 | S32: 8.119760392e-09 | T32: 3.173312847e-05 | U32: 0.002637923977 | V32: 0.03099331682 | W32: 0.1321567866 | X32: 0.3280319455 | Y32: 0.602407842 | Z32: 0.9277023625 | AA32: 1.282051787 | AB32: 1.651928365 | AC32: 2.02983218 | AD32: 2.41181732 | AE32: 2.795860277 | AF32: 3.180936461
B33: Metros | C33: 1000 | D33: =($O$22/(4*PI()*$O$20))*C138 -> 5.570423008e-101 | E33: 5.570423008e-101 | F33: 5.570423008e-101 | G33: 5.570423008e-101 | H33: 5.570423008e-101 | I33: 5.570423008e-101 | J33: 5.570423008e-101 | K33: 5.570423008e-101 | L33: 5.570423008e-101 | M33: 5.570423008e-101 | N33: 5.570423008e-101 | O33: 5.570423008e-101 | P33: 5.570423008e-101 | Q33: 5.570423008e-101 | R33: 4.378378099e-56 | S33: 2.793528017e-29 | T33: 9.866792984e-16 | U33: 8.119760392e-09 | V33: 3.173312847e-05 | W33: 0.002637923977 | X33: 0.03099331682 | Y33: 0.1321567866 | Z33: 0.3280319455 | AA33: 0.602407842 | AB33: 0.9277023625 | AC33: 1.282051787 | AD33: 1.651928365 | AE33: 2.02983218 | AF33: 2.41181732
B34: Metros | C34: 1500 | D34: =($O$22/(4*PI()*$O$20))*C139 -> 5.570423008e-101 | E34: 5.570423008e-101 | F34: 5.570423008e-101 | G34: 5.570423008e-101 | H34: 5.570423008e-101 | I34: 5.570423008e-101 | J34: 5.570423008e-101 | K34: 5.570423008e-101 | L34: 5.570423008e-101 | M34: 5.570423008e-101 | N34: 5.570423008e-101 | O34: 5.570423008e-101 | P34: 5.570423008e-101 | Q34: 5.570423008e-101 | R34: 5.570423008e-101 | S34: 9.198942168e-63 | T34: 1.208788478e-32 | U34: 1.939854162e-17 | V34: 1.078274902e-09 | W34: 1.098833924e-05 | X34: 0.001481939248 | Y34: 0.02230459045 | Z34: 0.1083092541 | AA34: 0.2884717325 | AB34: 0.5514631985 | AC34: 0.8698886806 | AD34: 1.220463255 | AE34: 1.588360859 | AF34: 1.965251443
B35: Metros | C35: 2000 | D35: =($O$22/(4*PI()*$O$20))*C140 -> 5.570423008e-101 | E35: 5.570423008e-101 | F35: 5.570423008e-101 | G35: 5.570423008e-101 | H35: 5.570423008e-101 | I35: 5.570423008e-101 | J35: 5.570423008e-101 | K35: 5.570423008e-101 | L35: 5.570423008e-101 | M35: 5.570423008e-101 | N35: 5.570423008e-101 | O35: 5.570423008e-101 | P35: 5.570423008e-101 | Q35: 5.570423008e-101 | R35: 5.570423008e-101 | S35: 5.570423008e-101 | T35: 4.378378099e-56 | U35: 2.793528017e-29 | V35: 9.866792984e-16 | W35: 8.119760392e-09 | X35: 3.173312847e-05 | Y35: 0.002637923977 | Z35: 0.03099331682 | AA35: 0.1321567866 | AB35: 0.3280319455 | AC35: 0.602407842 | AD35: 0.9277023625 | AE35: 1.282051787 | AF35: 1.651928365
B36: Metros | C36: 4000 | D36: =($O$22/(4*PI()*$O$20))*C141 -> 5.570423008e-101 | E36: 5.570423008e-101 | F36: 5.570423008e-101 | G36: 5.570423008e-101 | H36: 5.570423008e-101 | I36: 5.570423008e-101 | J36: 5.570423008e-101 | K36: 5.570423008e-101 | L36: 5.570423008e-101 | M36: 5.570423008e-101 | N36: 5.570423008e-101 | O36: 5.570423008e-101 | P36: 5.570423008e-101 | Q36: 5.570423008e-101 | R36: 5.570423008e-101 | S36: 5.570423008e-101 | T36: 5.570423008e-101 | U36: 5.570423008e-101 | V36: 4.378378099e-56 | W36: 2.793528017e-29 | X36: 9.866792984e-16 | Y36: 8.119760392e-09 | Z36: 3.173312847e-05 | AA36: 0.002637923977 | AB36: 0.03099331682 | AC36: 0.1321567866 | AD36: 0.3280319455 | AE36: 0.602407842 | AF36: 0.9277023625
B37: Metros | C37: 8000 | D37: =($O$22/(4*PI()*$O$20))*C142 -> 5.570423008e-101 | E37: 5.570423008e-101 | F37: 5.570423008e-101 | G37: 5.570423008e-101 | H37: 5.570423008e-101 | I37: 5.570423008e-101 | J37: 5.570423008e-101 | K37: 5.570423008e-101 | L37: 5.570423008e-101 | M37: 5.570423008e-101 | N37: 5.570423008e-101 | O37: 5.570423008e-101 | P37: 5.570423008e-101 | Q37: 5.570423008e-101 | R37: 5.570423008e-101 | S37: 5.570423008e-101 | T37: 5.570423008e-101 | U37: 5.570423008e-101 | V37: 5.570423008e-101 | W37: 5.570423008e-101 | X37: 4.378378099e-56 | Y37: 2.793528017e-29 | Z37: 9.866792984e-16 | AA37: 8.119760392e-09 | AB37: 3.173312847e-05 | AC37: 0.002637923977 | AD37: 0.03099331682 | AE37: 0.1321567866 | AF37: 0.3280319455
B38: Metros | C38: 16000 | D38: =($O$22/(4*PI()*$O$20))*C143 -> 5.570423008e-101 | E38: 5.570423008e-101 | F38: 5.570423008e-101 | G38: 5.570423008e-101 | H38: 5.570423008e-101 | I38: 5.570423008e-101 | J38: 5.570423008e-101 | K38: 5.570423008e-101 | L38: 5.570423008e-101 | M38: 5.570423008e-101 | N38: 5.570423008e-101 | O38: 5.570423008e-101 | P38: 5.570423008e-101 | Q38: 5.570423008e-101 | R38: 5.570423008e-101 | S38: 5.570423008e-101 | T38: 5.570423008e-101 | U38: 5.570423008e-101 | V38: 5.570423008e-101 | W38: 5.570423008e-101 | X38: 5.570423008e-101 | Y38: 5.570423008e-101 | Z38: 4.378378099e-56 | AA38: 2.793528017e-29 | AB38: 9.866792984e-16 | AC38: 8.119760392e-09 | AD38: 3.173312847e-05 | AE38: 0.002637923977 | AF38: 0.03099331682
B39: Metros | C39: 32000 | D39: =($O$22/(4*PI()*$O$20))*C144 -> 5.570423008e-101 | E39: 5.570423008e-101 | F39: 5.570423008e-101 | G39: 5.570423008e-101 | H39: 5.570423008e-101 | I39: 5.570423008e-101 | J39: 5.570423008e-101 | K39: 5.570423008e-101 | L39: 5.570423008e-101 | M39: 5.570423008e-101 | N39: 5.570423008e-101 | O39: 5.570423008e-101 | P39: 5.570423008e-101 | Q39: 5.570423008e-101 | R39: 5.570423008e-101 | S39: 5.570423008e-101 | T39: 5.570423008e-101 | U39: 5.570423008e-101 | V39: 5.570423008e-101 | W39: 5.570423008e-101 | X39: 5.570423008e-101 | Y39: 5.570423008e-101 | Z39: 5.570423008e-101 | AA39: 5.570423008e-101 | AB39: 4.378378099e-56 | AC39: 2.793528017e-29 | AD39: 9.866792984e-16 | AE39: 8.119760392e-09 | AF39: 3.173312847e-05
B40: Metros | C40: 64000 | D40: =($O$22/(4*PI()*$O$20))*C145 -> 5.570423008e-101 | E40: 5.570423008e-101 | F40: 5.570423008e-101 | G40: 5.570423008e-101 | H40: 5.570423008e-101 | I40: 5.570423008e-101 | J40: 5.570423008e-101 | K40: 5.570423008e-101 | L40: 5.570423008e-101 | M40: 5.570423008e-101 | N40: 5.570423008e-101 | O40: 5.570423008e-101 | P40: 5.570423008e-101 | Q40: 5.570423008e-101 | R40: 5.570423008e-101 | S40: 5.570423008e-101 | T40: 5.570423008e-101 | U40: 5.570423008e-101 | V40: 5.570423008e-101 | W40: 5.570423008e-101 | X40: 5.570423008e-101 | Y40: 5.570423008e-101 | Z40: 5.570423008e-101 | AA40: 5.570423008e-101 | AB40: 5.570423008e-101 | AC40: 5.570423008e-101 | AD40: 4.378378099e-56 | AE40: 2.793528017e-29 | AF40: 9.866792984e-16
N52: Q= | O52: 0.07 | P52: m²/s
N53: T= | O53: 0.0111
N54: S= | O54: 0.0003 | P54: m³/s
N55: r/B= | O55: 0.0336
D58: Seg. | E58: Seg. | F58: Seg. | G58: Seg. | H58: Seg. | I58: Seg. | J58: Min. | K58: Min. | L58: Min. | M58: Min. | N58: Min. | O58: Min. | P58: Hora | Q58: Horas | R58: Horas | S58: Horas | T58: Dia | U58: Dias | V58: Dias | W58: Dias | X58: Dias | Y58: Dias | Z58: Dias | AA58: Dias | AB58: Dias | AC58: Dias | AD58: Anos | AE58: Anos | AF58: Anos
C59: Dist/Temp | D59: =+D26 -> 1 | E59: 2 | F59: 5 | G59: 10 | H59: 20 | I59: 40 | J59: 1.333333333 | K59: 2.666666667 | L59: 5.333333333 | M59: 10.66666667 | N59: 21.33333333 | O59: 42.66666667 | P59: 1.422222222 | Q59: 2.844444444 | R59: 5.688888889 | S59: 11.37777778 | T59: 0.9481481481 | U59: 1.896296296 | V59: 3.792592593 | W59: 7.585185185 | X59: 15.17037037 | Y59: 30.34074074 | Z59: 60.68148148 | AA59: 121.362963 | AB59: 242.7259259 | AC59: 485.4518519 | AD59: 2.660010147 | AE59: 5.320020294 | AF59: 10.64004059
B60: Metros | C60: =+C27 -> 20 | D60: =($O$52/(4*PI()*$O$53))*C166 -> 0.009591726219 | E60: 0.06279969774 | F60: 0.2575752208 | G60: 0.4936350734 | H60: 0.7796498581 | I60: 1.09429726 | J60: 1.423620135 | K60: 1.759028566 | L60: 2.094481392 | M60: 2.423956364 | N60: 2.738925053 | O60: 3.025536125 | P60: 3.262579558 | Q60: 3.425237443 | R60: 3.503068635 | S60: 3.521993756 | T60: 3.523341054 | U60: 3.523351264 | V60: 3.523351265 | W60: 3.523351265 | X60: 3.523351265 | Y60: 3.523351265 | Z60: 3.523351265 | AA60: 3.523351265 | AB60: 3.523351265 | AC60: 3.523351265 | AD60: 3.523351265 | AE60: 3.523351265 | AF60: 3.523351265
B61: Metros | C61: 50 | D61: =($O$52/(4*PI()*$O$53))*C167 -> 1.297418631e-09 | E61: 1.151935019e-05 | F61: 0.00406773449 | G61: 0.0380479803 | H61: 0.1438728735 | I61: 0.3343093679 | J61: 0.5910337207 | K61: 0.8892968525 | L61: 1.210431155 | M61: 1.542716876 | N61: 1.878781241 | O61: 2.212868815 | P61: 2.538369048 | Q61: 2.845188319 | R61: 3.116951812 | S61: 3.330162525 | T61: 3.46220073 | U61: 3.514182857 | V61: 3.523020206 | W61: 3.523350523 | X61: 3.523351265 | Y61: 3.523351265 | Z61: 3.523351265 | AA61: 3.523351265 | AB61: 3.523351265 | AC61: 3.523351265 | AD61: 3.523351265 | AE61: 3.523351265 | AF61: 3.523351265
B62: Metros | C62: 100 | D62: =($O$52/(4*PI()*$O$53))*C168 -> 3.313710345e-32 | E62: 3.071977405e-17 | F62: 4.696565302e-08 | G62: 7.628649273e-05 | H62: 0.00406773449 | I62: 0.0380479803 | J62: 0.1438728735 | K62: 0.3343093679 | L62: 0.5910337207 | M62: 0.8892968525 | N62: 1.210431155 | O62: 1.542716876 | P62: 1.878781241 | Q62: 2.212868815 | R62: 2.538369048 | S62: 2.845188319 | T62: 3.116951812 | U62: 3.330162525 | V62: 3.46220073 | W62: 3.514182857 | X62: 3.523020206 | Y62: 3.523350523 | Z62: 3.523351265 | AA62: 3.523351265 | AB62: 3.523351265 | AC62: 3.523351265 | AD62: 3.523351265 | AE62: 3.523351265 | AF62: 3.523351265
B63: Metros | C63: 200 | D63: =($O$52/(4*PI()*$O$53))*C169 -> 7.767510732e-121 | E63: 7.553958221e-62 | F63: 3.051665615e-26 | G63: 3.279578218e-14 | H63: 4.696565302e-08 | I63: 7.628649273e-05 | J63: 0.00406773449 | K63: 0.0380479803 | L63: 0.1438728735 | M63: 0.3343093679 | N63: 0.5910337207 | O63: 0.8892968525 | P63: 1.210431155 | Q63: 1.542716876 | R63: 1.878781241 | S63: 2.212868815 | T63: 2.538369048 | U63: 2.845188319 | V63: 3.116951812 | W63: 3.330162525 | X63: 3.46220073 | Y63: 3.514182857 | Z63: 3.523020206 | AA63: 3.523350523 | AB63: 3.523351265 | AC63: 3.523351265 | AD63: 3.523351265 | AE63: 3.523351265 | AF63: 3.523351265
B64: Metros | C64: 400 | D64: =($O$52/(4*PI()*$O$53))*C170 -> 0 | E64: 1.633660096e-238 | F64: 2.898494504e-97 | G64: 5.152158526e-50 | H64: 3.051665615e-26 | I64: 3.279578218e-14 | J64: 4.696565302e-08 | K64: 7.628649273e-05 | L64: 0.00406773449 | M64: 0.0380479803 | N64: 0.1438728735 | O64: 0.3343093679 | P64: 0.5910337207 | Q64: 0.8892968525 | R64: 1.210431155 | S64: 1.542716876 | T64: 1.878781241 | U64: 2.212868815 | V64: 2.538369048 | W64: 2.845188319 | X64: 3.116951812 | Y64: 3.330162525 | Z64: 3.46220073 | AA64: 3.514182857 | AB64: 3.523020206 | AC64: 3.523350523 | AD64: 3.523351265 | AE64: 3.523351265 | AF64: 3.523351265
B65: Metros | C65: 500 | D65: =($O$52/(4*PI()*$O$53))*C171 -> 0 | E65: 0 | F65: 2.814934611e-150 | G65: 1.287608879e-76 | H65: 1.226269747e-39 | I65: 5.307214865e-21 | J65: 1.536851859e-11 | K65: 1.136305055e-06 | L65: 0.0004159603984 | M65: 0.01041526412 | N65: 0.06592983196 | O65: 0.2025449864 | P65: 0.4194865344 | Q65: 0.6936311935 | R65: 1.001777754 | S65: 1.327939703 | T65: 1.662278367 | U65: 1.998290744 | V65: 2.330198639 | W65: 2.650471571 | X65: 2.947080416 | Y65: 3.200956067 | Z65: 3.387230651 | AA65: 3.488584003 | AB65: 3.51987109 | AC65: 3.523293841 | AD65: 3.523351238 | AE65: 3.523351265 | AF65: 3.523351265
B66: Metros | C66: 1000 | D66: =($O$52/(4*PI()*$O$53))*C172 -> 0 | E66: 0 | F66: 0 | G66: 2.678971411e-297 | H66: 2.814934611e-150 | I66: 1.287608879e-76 | J66: 1.226269747e-39 | K66: 5.307214865e-21 | L66: 1.536851859e-11 | M66: 1.136305055e-06 | N66: 0.0004159603984 | O66: 0.01041526412 | P66: 0.06592983196 | Q66: 0.2025449864 | R66: 0.4194865344 | S66: 0.6936311935 | T66: 1.001777754 | U66: 1.327939703 | V66: 1.662278367 | W66: 1.998290744 | X66: 2.330198639 | Y66: 2.650471571 | Z66: 2.947080416 | AA66: 3.200956067 | AB66: 3.387230651 | AC66: 3.488584003 | AD66: 3.51987109 | AE66: 3.523293841 | AF66: 3.523351238
B67: Metros | C67: 1500 | D67: =($O$52/(4*PI()*$O$53))*C173 -> 0 | E67: 0 | F67: 0 | G67: 0 | H67: 0 | I67: 1.143717708e-168 | J67: 7.74182114e-86 | K67: 2.837604686e-44 | L67: 2.411401234e-23 | M67: 9.800486891e-13 | N67: 2.721974821e-07 | O67: 0.0001939023358 | P67: 0.006808854373 | Q67: 0.05134823203 | R67: 0.173204209 | S67: 0.3778699412 | T67: 0.6440949043 | U67: 0.9477978243 | V67: 1.271726706 | W67: 1.605191476 | X67: 1.941316234 | Y67: 2.274371996 | Z67: 2.597309688 | AA67: 2.899069476 | AB67: 3.161876867 | AC67: 3.361361964 | AD67: 3.477247859 | AE67: 3.517689569 | AF67: 3.523212307
B68: Metros | C68: 2000 | D68: =($O$52/(4*PI()*$O$53))*C174 -> 0 | E68: 0 | F68: 0 | G68: 0 | H68: 0 | I68: 2.678971411e-297 | J68: 2.814934611e-150 | K68: 1.287608879e-76 | L68: 1.226269747e-39 | M68: 5.307214865e-21 | N68: 1.536851859e-11 | O68: 1.136305055e-06 | P68: 0.0004159603984 | Q68: 0.01041526412 | R68: 0.06592983196 | S68: 0.2025449864 | T68: 0.4194865344 | U68: 0.6936311935 | V68: 1.001777754 | W68: 1.327939703 | X68: 1.662278367 | Y68: 1.998290744 | Z68: 2.330198639 | AA68: 2.650471571 | AB68: 2.947080416 | AC68: 3.200956067 | AD68: 3.387230651 | AE68: 3.488584003 | AF68: 3.51987109
B69: Metros | C69: 4000 | D69: =($O$52/(4*PI()*$O$53))*C175 -> 0 | E69: 0 | F69: 0 | G69: 0 | H69: 0 | I69: 0 | J69: 0 | K69: 2.678971411e-297 | L69: 2.814934611e-150 | M69: 1.287608879e-76 | N69: 1.226269747e-39 | O69: 5.307214865e-21 | P69: 1.536851859e-11 | Q69: 1.136305055e-06 | R69: 0.0004159603984 | S69: 0.01041526412 | T69: 0.06592983196 | U69: 0.2025449864 | V69: 0.4194865344 | W69: 0.6936311935 | X69: 1.001777754 | Y69: 1.327939703 | Z69: 1.662278367 | AA69: 1.998290744 | AB69: 2.330198639 | AC69: 2.650471571 | AD69: 2.947080416 | AE69: 3.200956067 | AF69: 3.387230651
B70: Metros | C70: 8000 | D70: =($O$52/(4*PI()*$O$53))*C176 -> 0 | E70: 0 | F70: 0 | G70: 0 | H70: 0 | I70: 0 | J70: 0 | K70: 0 | L70: 0 | M70: 2.678971411e-297 | N70: 2.814934611e-150 | O70: 1.287608879e-76 | P70: 1.226269747e-39 | Q70: 5.307214865e-21 | R70: 1.536851859e-11 | S70: 1.136305055e-06 | T70: 0.0004159603984 | U70: 0.01041526412 | V70: 0.06592983196 | W70: 0.2025449864 | X70: 0.4194865344 | Y70: 0.6936311935 | Z70: 1.001777754 | AA70: 1.327939703 | AB70: 1.662278367 | AC70: 1.998290744 | AD70: 2.330198639 | AE70: 2.650471571 | AF70: 2.947080416
B71: Metros | C71: 16000 | D71: =($O$52/(4*PI()*$O$53))*C177 -> 0 | E71: 0 | F71: 0 | G71: 0 | H71: 0 | I71: 0 | J71: 0 | K71: 0 | L71: 0 | M71: 0 | N71: 0 | O71: 2.678971411e-297 | P71: 2.814934611e-150 | Q71: 1.287608879e-76 | R71: 1.226269747e-39 | S71: 5.307214865e-21 | T71: 1.536851859e-11 | U71: 1.136305055e-06 | V71: 0.0004159603984 | W71: 0.01041526412 | X71: 0.06592983196 | Y71: 0.2025449864 | Z71: 0.4194865344 | AA71: 0.6936311935 | AB71: 1.001777754 | AC71: 1.327939703 | AD71: 1.662278367 | AE71: 1.998290744 | AF71: 2.330198639
B72: Metros | C72: 32000 | D72: =($O$52/(4*PI()*$O$53))*C178 -> 0 | E72: 0 | F72: 0 | G72: 0 | H72: 0 | I72: 0 | J72: 0 | K72: 0 | L72: 0 | M72: 0 | N72: 0 | O72: 0 | P72: 0 | Q72: 2.678971411e-297 | R72: 2.814934611e-150 | S72: 1.287608879e-76 | T72: 1.226269747e-39 | U72: 5.307214865e-21 | V72: 1.536851859e-11 | W72: 1.136305055e-06 | X72: 0.0004159603984 | Y72: 0.01041526412 | Z72: 0.06592983196 | AA72: 0.2025449864 | AB72: 0.4194865344 | AC72: 0.6936311935 | AD72: 1.001777754 | AE72: 1.327939703 | AF72: 1.662278367
B73: Metros | C73: 64000 | D73: =($O$52/(4*PI()*$O$53))*C179 -> 0 | E73: 0 | F73: 0 | G73: 0 | H73: 0 | I73: 0 | J73: 0 | K73: 0 | L73: 0 | M73: 0 | N73: 0 | O73: 0 | P73: 0 | Q73: 0 | R73: 0 | S73: 2.678971411e-297 | T73: 2.814934611e-150 | U73: 1.287608879e-76 | V73: 1.226269747e-39 | W73: 5.307214865e-21 | X73: 1.536851859e-11 | Y73: 1.136305055e-06 | Z73: 0.0004159603984 | AA73: 0.01041526412 | AB73: 0.06592983196 | AC73: 0.2025449864 | AD73: 0.4194865344 | AE73: 0.6936311935 | AF73: 1.001777754
N83: Q = | O83: 0.07 | P83: m²/s
N84: T = | O84: 0.012 | P84: m³/s
N85: Ss = | O85: 0.000186
N86: Sy = | O86: 0.1
N87: L = | O87: 0.22 | P87: m/s
N88: k' = | O88: 1.776939844e-06 | P88: m/s
N89: b' = | O89: 93 | P89: m
C91: Tempo | D91: Seg. | E91: Seg. | F91: Seg. | G91: Seg. | H91: Seg. | I91: Seg. | J91: Min. | K91: Min. | L91: Min. | M91: Min. | N91: Min. | O91: Min. | P91: Hora | Q91: Horas | R91: Horas | S91: Horas | T91: Dia | U91: Dias | V91: Dias | W91: Dias | X91: Dias | Y91: Dias | Z91: Dias | AA91: Dias | AB91: Dias | AC91: Dias | AD91: Anos | AE91: Anos | AF91: Anos
B92: Distância | D92: =+D26 -> 1 | E92: 2 | F92: 5 | G92: 10 | H92: 20 | I92: 40 | J92: 1.333333333 | K92: 2.666666667 | L92: 5.333333333 | M92: 10.66666667 | N92: 21.33333333 | O92: 42.66666667 | P92: 1.422222222 | Q92: 2.844444444 | R92: 5.688888889 | S92: 11.37777778 | T92: 0.9481481481 | U92: 1.896296296 | V92: 3.792592593 | W92: 7.585185185 | X92: 15.17037037 | Y92: 30.34074074 | Z92: 60.68148148 | AA92: 121.362963 | AB92: 242.7259259 | AC92: 485.4518519 | AD92: 2.660010147 | AE92: 5.320020294 | AF92: 10.64004059
B93: Metros | C93: =+C27 -> 20 | D93: =($O$83/$O$84)*Eta_3(($C93/$O$87),((C$130*$O$84)/($O$85*($O$87^2))),$O$85/$O$86,((($O$88/$O$89)*($O$87^2)))/$O$84) -> -1.365732849e-07 | E93: -3.606752597e-08 | F93: 3.037031004e-07 | G93: 8.428950076e-07 | H93: 2.407933152e-06 | I93: 6.728653161e-06 | J93: 1.767955801e-05 | K93: 4.429636353e-05 | L93: 0.0001070541532 | M93: 0.0002514448068 | N93: 0.0005768163341 | O93: 0.001295762255 | P93: 0.002852951699 | Q93: 0.006133508061 | R93: 0.01307267124 | S93: 0.02566232031 | T93: 0.05804749886 | U93: 0.1084394694 | V93: 0.1783431568 | W93: 0.3820713001 | X93: 0.8350067632 | Y93: 1.578957471 | Z93: 2.553785863 | AA93: 3.534212025 | AB93: 4.242602611 | AC93: 4.688061642 | AD93: 5.047344147 | AE93: 5.385157302 | AF93: 5.717808461
B94: Metros | C94: 50 | D94: =($O$83/$O$84)*Eta_3(($C94/$O$87),((C$130*$O$84)/($O$85*($O$87^2))),$O$85/$O$86,((($O$88/$O$89)*($O$87^2)))/$O$84) -> -3.537351455e-10 | E94: -2.12864886e-08 | F94: -1.257000453e-07 | G94: -6.928810201e-08 | H94: 3.845811925e-07 | I94: 2.039915516e-06 | J94: 6.898664938e-06 | K94: 2.100108083e-05 | L94: 5.831994697e-05 | M94: 0.0001513287197 | N94: 0.0003734271605 | O94: 0.0008855088867 | P94: 0.002028289787 | Q94: 0.004493591196 | R94: 0.009630978792 | S94: 0.02003900737 | T94: 0.04075476007 | U94: 0.08183099194 | V94: 0.161733456 | W94: 0.3235416183 | X94: 0.5961770685 | Y94: 1.070765695 | Z94: 1.831129979 | AA94: 2.710302506 | AB94: 3.394076678 | AC94: 3.83746539 | AD94: 4.196684384 | AE94: 4.534482435 | AF94: 4.86712685
B95: Metros | C95: 100 | D95: =($O$83/$O$84)*Eta_3(($C95/$O$87),((C$130*$O$84)/($O$85*($O$87^2))),$O$85/$O$86,((($O$88/$O$89)*($O$87^2)))/$O$84) -> -3.518071885e-22 | E95: -4.521544997e-14 | F95: -1.957600955e-09 | G95: -4.413667114e-08 | H95: -1.169771501e-07 | I95: 1.062022262e-07 | J95: 1.620264101e-06 | K95: 7.67337849e-06 | L95: 2.701315164e-05 | M95: 8.260084572e-05 | N95: 0.0002283371015 | O95: 0.0005861679594 | P95: 0.001419139524 | Q95: 0.003264387726 | R95: 0.007162374412 | S95: 0.01509041635 | T95: 0.03091968372 | U95: 0.06231593817 | V95: 0.1238752261 | W95: 0.2425809182 | X95: 0.4630961528 | Y95: 0.8520471876 | Z95: 1.429211376 | AA95: 2.134648142 | AB95: 2.757128005 | AC95: 3.194265491 | AD95: 3.553264111 | AE95: 3.891008226 | AF95: 4.223628559
B96: Metros | C96: 200 | D96: =($O$83/$O$84)*Eta_3(($C96/$O$87),((C$130*$O$84)/($O$85*($O$87^2))),$O$85/$O$86,((($O$88/$O$89)*($O$87^2)))/$O$84) -> -4.604657303e-72 | E96: -1.051361493e-38 | F96: -6.579344572e-19 | G96: -1.767155526e-12 | H96: -2.03246158e-09 | I96: -4.644966677e-08 | J96: -8.224495936e-08 | K96: 8.027696497e-07 | L96: 6.499121821e-06 | M96: 2.972882036e-05 | N96: 0.0001047046165 | O96: 0.0003154115494 | P96: 0.0008490492194 | Q96: 0.002091872729 | R96: 0.004784052243 | S96: 0.01030710678 | T96: 0.02135179775 | U96: 0.04326141161 | V96: 0.08638104306 | W96: 0.1699539215 | X96: 0.3264262626 | Y96: 0.602205379 | Z96: 1.035553922 | AA96: 1.593602237 | AB96: 2.129269904 | AC96: 2.551950401 | AD96: 2.910144376 | AE96: 3.247672867 | AF96: 3.580196891
B97: Metros | C97: 400 | D97: =($O$83/$O$84)*Eta_3(($C97/$O$87),((C$130*$O$84)/($O$85*($O$87^2))),$O$85/$O$86,((($O$88/$O$89)*($O$87^2)))/$O$84) -> -1.910423493e-273 | E97: -4.382760086e-139 | F97: -1.081420222e-58 | G97: -4.616855187e-32 | H97: -6.825337969e-19 | I97: -1.900873633e-12 | J97: -2.330668206e-09 | K97: -5.562969696e-08 | L97: 5.415413435e-08 | M97: 3.50419302e-06 | N97: 2.502401679e-05 | O97: 0.0001107153653 | P97: 0.0003754765916 | Q97: 0.001065473473 | R97: 0.00264371959 | S97: 0.005940929677 | T97: 0.01255635429 | U97: 0.0257046675 | V97: 0.05166605343 | W97: 0.1022669431 | X97: 0.1984883443 | Y97: 0.3728949499 | Z97: 0.6601479995 | AA97: 1.06354853 | AB97: 1.51095577 | AC97: 1.912743379 | AD97: 2.268224711 | AE97: 2.604892535 | AF97: 2.937031632
B98: Metros | C98: 500 | D98: =($O$83/$O$84)*Eta_3(($C98/$O$87),((C$130*$O$84)/($O$85*($O$87^2))),$O$85/$O$86,((($O$88/$O$89)*($O$87^2)))/$O$84) -> 0 | E98: -1.232021899e-214 | F98: -8.57813846e-89 | G98: -5.157013293e-47 | H98: -2.863786895e-26 | I98: -4.906253003e-16 | J98: -4.780526706e-11 | K98: -1.124352613e-08 | L98: -9.329071992e-08 | M98: 8.820135852e-07 | N98: 1.180407582e-05 | O98: 6.65825762e-05 | P98: 0.0002581172369 | Q98: 0.0007908758725 | R98: 0.002048087827 | S98: 0.00470199364 | T98: 0.01003647049 | U98: 0.02064769876 | V98: 0.0416315225 | W98: 0.08267678062 | X98: 0.1611446985 | Y98: 0.3051291016 | Z98: 0.5481069925 | AA98: 0.9019973448 | AB98: 1.316646016 | AC98: 1.708650552 | AD98: 2.062255736 | AE98: 2.398279915 | AF98: 2.730130642
B99: Metros | C99: 1000 | D99: =($O$83/$O$84)*Eta_3(($C99/$O$87),((C$130*$O$84)/($O$85*($O$87^2))),$O$85/$O$86,((($O$88/$O$89)*($O$87^2)))/$O$84) -> 0 | E99: 0 | F99: 0 | G99: -1.201926019e-172 | H99: -8.835667388e-89 | I99: -5.511586759e-47 | J99: -3.267633338e-26 | K99: -6.255304376e-16 | L99: -7.20805153e-11 | M99: -2.043526577e-08 | N99: -1.437548543e-07 | O99: 3.519177966e-06 | P99: 3.942239712e-05 | Q99: 0.0001978943871 | R99: 0.0006588877824 | S99: 0.0017024385 | T99: 0.003825000742 | U99: 0.008063646754 | V99: 0.01650947426 | W99: 0.03327774949 | X99: 0.06630382134 | Y99: 0.1302615134 | Z99: 0.2492569286 | AA99: 0.4529823784 | AB99: 0.7481314052 | AC99: 1.089408699 | AD99: 1.428648061 | AE99: 1.759368121 | AF99: 2.088826543
B100: Metros | C100: 1500 | D100: =($O$83/$O$84)*Eta_3(($C100/$O$87),((C$130*$O$84)/($O$85*($O$87^2))),$O$85/$O$86,((($O$88/$O$89)*($O$87^2)))/$O$84) -> 0 | E100: 0 | F100: 0 | G100: 0 | H100: -1.247140225e-193 | I100: -3.11516346e-99 | J100: -3.697552086e-52 | K100: -1.003136578e-28 | L100: -4.376205765e-17 | M100: -2.570315082e-11 | N100: -1.736212278e-08 | O100: -2.399815587e-07 | P100: 3.849388051e-06 | Q100: 4.825148258e-05 | R100: 0.000228755442 | S100: 0.0006854981468 | T100: 0.001631159988 | U100: 0.003525926656 | V100: 0.007328222413 | W100: 0.01498602226 | X100: 0.0304871879 | Y100: 0.06202630154 | Z100: 0.1259205434 | AA100: 0.2498626648 | AB100: 0.4617631679 | AC100: 0.7505107016 | AD100: 1.068450433 | AE100: 1.390559303 | AF100: 1.716072986
B101: Metros | C101: 2000 | D101: =($O$83/$O$84)*Eta_3(($C101/$O$87),((C$130*$O$84)/($O$85*($O$87^2))),$O$85/$O$86,((($O$88/$O$89)*($O$87^2)))/$O$84) -> 0 | E101: 0 | F101: 0 | G101: 0 | H101: 0 | I101: -1.252833074e-172 | J101: -9.861811123e-89 | K101: -6.918907013e-47 | L101: -4.85788585e-26 | M101: -1.148229721e-15 | N101: -1.630668514e-10 | O101: -5.272229698e-08 | P101: -3.198544188e-07 | Q101: 9.270555423e-06 | R101: 7.838333238e-05 | S101: 0.0002864806328 | T101: 0.0007298776261 | U101: 0.001620006547 | V101: 0.003417658473 | W101: 0.007088125889 | X101: 0.01471414453 | Y101: 0.03096243887 | Z101: 0.06641915477 | AA101: 0.1431643655 | AB101: 0.2938261324 | AC101: 0.531782592 | AD101: 0.8235261777 | AE101: 1.13403807 | AF101: 1.454116903
B102: Metros | C102: 4000 | D102: =($O$83/$O$84)*Eta_3(($C102/$O$87),((C$130*$O$84)/($O$85*($O$87^2))),$O$85/$O$86,((($O$88/$O$89)*($O$87^2)))/$O$84) -> 0 | E102: 0 | F102: 0 | G102: 0 | H102: 0 | I102: 0 | J102: 0 | K102: -1.45489853e-172 | L102: -1.39035171e-88 | M102: -1.237637544e-46 | N102: -1.08339253e-25 | O102: -2.991090773e-15 | P102: -4.450887217e-10 | Q102: -1.316171414e-07 | R102: -8.759559859e-07 | S102: 5.873522748e-06 | T102: 3.260585224e-05 | U102: 8.818294636e-05 | V102: 0.0001999161717 | W102: 0.000436516353 | X102: 0.0009747685237 | Y102: 0.002318150129 | Z102: 0.006055171615 | AA102: 0.01740886975 | AB102: 0.05201631929 | AC102: 0.1424989595 | AD102: 0.3163286364 | AE102: 0.5595727808 | AF102: 0.8449847028
B103: Metros | C103: 8000 | D103: =($O$83/$O$84)*Eta_3(($C103/$O$87),((C$130*$O$84)/($O$85*($O$87^2))),$O$85/$O$86,((($O$88/$O$89)*($O$87^2)))/$O$84) -> 0 | E103: 0 | F103: 0 | G103: 0 | H103: 0 | I103: 0 | J103: 0 | K103: 0 | L103: 0 | M103: -2.238688086e-172 | N103: -2.910672755e-88 | O103: -3.168304711e-46 | P103: -2.954368809e-25 | Q103: -7.52692878e-15 | R103: -8.858461225e-10 | S103: -1.956785142e-07 | T103: -1.8059574e-06 | U103: -3.117841278e-06 | V103: -9.681886339e-07 | W103: 3.464070275e-06 | X103: 9.599144661e-06 | Y103: 2.235602957e-05 | Z103: 6.746494597e-05 | AA103: 0.0002862189218 | AB103: 0.001561662504 | AC103: 0.009023444113 | AD103: 0.04372668273 | AE103: 0.1437417186 | AF103: 0.3265581424
B104: Metros | C104: 16000 | D104: =($O$83/$O$84)*Eta_3(($C104/$O$87),((C$130*$O$84)/($O$85*($O$87^2))),$O$85/$O$86,((($O$88/$O$89)*($O$87^2)))/$O$84) -> 0 | E104: 0 | F104: 0 | G104: 0 | H104: 0 | I104: 0 | J104: 0 | K104: 0 | L104: 0 | M104: 0 | N104: 0 | O104: -5.014209086e-172 | P104: -7.688452934e-88 | Q104: -7.98097521e-46 | R104: -5.976947534e-25 | S104: -1.09654105e-14 | T104: -9.886012024e-10 | U104: -2.016961752e-07 | V104: -1.894393009e-06 | W104: -3.452174548e-06 | X104: -1.844011133e-06 | Y104: 1.30199563e-06 | Z104: 3.976722898e-06 | AA104: 5.669196806e-06 | AB104: 7.480870655e-06 | AC104: -5.135927421e-05 | AD104: 0.0002491568568 | AE104: 0.005699827714 | AF104: 0.04158010184
B105: Metros | C105: 32000 | D105: =($O$83/$O$84)*Eta_3(($C105/$O$87),((C$130*$O$84)/($O$85*($O$87^2))),$O$85/$O$86,((($O$88/$O$89)*($O$87^2)))/$O$84) -> 0 | E105: 0 | F105: 0 | G105: 0 | H105: 0 | I105: 0 | J105: 0 | K105: 0 | L105: 0 | M105: 0 | N105: 0 | O105: 0 | P105: 0 | Q105: -1.195834865e-171 | R105: -1.550821303e-87 | S105: -1.17718173e-45 | T105: -6.730903307e-25 | U105: -1.109905933e-14 | V105: -9.88814701e-10 | W105: -2.017017569e-07 | X105: -1.894415956e-06 | Y105: -3.452246813e-06 | Z105: -1.844257003e-06 | AA105: 1.300939239e-06 | AB105: 3.970283617e-06 | AC105: -5.2160225e-05 | AD105: -9.861422439e-05 | AE105: -0.0001250269819 | AF105: 2.869542854e-05
B106: Metros | C106: 64000 | D106: =($O$83/$O$84)*Eta_3(($C106/$O$87),((C$130*$O$84)/($O$85*($O$87^2))),$O$85/$O$86,((($O$88/$O$89)*($O$87^2)))/$O$84) -> 0 | E106: 0 | F106: 0 | G106: 0 | H106: 0 | I106: 0 | J106: 0 | K106: 0 | L106: 0 | M106: 0 | N106: 0 | O106: 0 | P106: 0 | Q106: 0 | R106: 0 | S106: -1.748830028e-171 | T106: -1.752502602e-87 | U106: -1.193532992e-45 | V106: -6.732093044e-25 | W106: -1.109905963e-14 | X106: -9.88814701e-10 | Y106: -2.017017569e-07 | Z106: -1.894415956e-06 | AA106: -3.452246813e-06 | AB106: -1.844257003e-06 | AC106: -1.970633515e-05 | AD106: -2.524010578e-05 | AE106: -2.673645415e-05 | AF106: -2.734495382e-05
B130: W(u) p r/t | C130: =+D26 -> 1 | D130: =+C130*2 -> 2 | E130: 5 | F130: =+E130*2 -> 10 | G130: =+F130*2 -> 20 | H130: 40 | I130: 80 | J130: 160 | K130: 320 | L130: 640 | M130: 1280 | N130: 2560 | O130: 5120 | P130: 10240 | Q130: 20480 | R130: 40960 | S130: 81920 | T130: 163840 | U130: 327680 | V130: 655360 | W130: 1310720 | X130: 2621440 | Y130: 5242880 | Z130: 10485760 | AA130: 20971520 | AB130: =+AA130*2 -> 41943040 | AC130: =+AB130*2 -> 83886080 | AD130: 167772160 | AE130: 335544320
B131: =+#REF! ->  | C131: =+expint1(C148) -> 
B132: =+C27 -> 20 | C132: =+expint1(C149) -> 1e-100 | D132: 1e-100 | E132: 6.885358219e-90 | F132: 3.683733312e-46 | G132: 3.783520795e-24 | H132: 5.349523255e-13 | I132: 2.77443612e-07 | J132: 0.0002705362089 | K132: 0.01113948065 | L132: 0.0912023089 | M132: 0.3213540841 | N132: 0.7183528457 | O132: 1.242113745 | P132: 1.844408619 | Q132: 2.490471409 | R132: 3.159646028 | S132: 3.840697295 | T132: 4.527768851 | U132: 5.21787127 | V132: 5.909494328 | W132: 6.601879011 | X132: 7.294644834 | Y132: 7.987601309 | Z132: 8.68065313 | AA132: 9.373752629 | AB132: 10.06687597 | AC132: 10.76001123 | AD132: 11.45315245 | AE132: 12.14629665
B133: 50 | C133: =+expint1(C150) -> 1e-100 | D133: 1e-100 | E133: 1e-100 | F133: 1e-100 | G133: 1e-100 | H133: 8.808955879e-71 | I133: 1.487707562e-36 | J133: 2.709743729e-19 | K133: 1.607966851e-10 | L133: 5.371961368e-06 | M133: 0.001318176475 | N133: 0.026925503 | O133: 0.1533292728 | P133: 0.445040033 | Q133: 0.8930373306 | R133: 1.44975774 | S133: 2.070808882 | T133: 2.726879259 | U133: 3.401223196 | V133: 4.084901564 | W133: 4.773297417 | X133: 5.464064687 | Y133: 6.156020849 | Z133: 6.848572254 | AA133: 7.541421481 | AB133: 8.234419667 | AC133: 8.927492347 | AD133: 9.620602276 | AE133: 10.31373083
B134: 100 | C134: =+expint1(C151) -> 1e-100 | D134: 1e-100 | E134: 1e-100 | F134: 1e-100 | G134: 1e-100 | H134: 1e-100 | I134: 1e-100 | J134: 8.808955879e-71 | K134: 1.487707562e-36 | L134: 2.709743729e-19 | M134: 1.607966851e-10 | N134: 5.371961368e-06 | O134: 0.001318176475 | P134: 0.026925503 | Q134: 0.1533292728 | R134: 0.445040033 | S134: 0.8930373306 | T134: 1.44975774 | U134: 2.070808882 | V134: 2.726879259 | W134: 3.401223196 | X134: 4.084901564 | Y134: 4.773297417 | Z134: 5.464064687 | AA134: 6.156020849 | AB134: 6.848572254 | AC134: 7.541421481 | AD134: 8.234419667 | AE134: 8.927492347
B135: 200 | C135: =+expint1(C152) -> 1e-100 | D135: 1e-100 | E135: 1e-100 | F135: 1e-100 | G135: 1e-100 | H135: 1e-100 | I135: 1e-100 | J135: 1e-100 | K135: 1e-100 | L135: 8.808955879e-71 | M135: 1.487707562e-36 | N135: 2.709743729e-19 | O135: 1.607966851e-10 | P135: 5.371961368e-06 | Q135: 0.001318176475 | R135: 0.026925503 | S135: 0.1533292728 | T135: 0.445040033 | U135: 0.8930373306 | V135: 1.44975774 | W135: 2.070808882 | X135: 2.726879259 | Y135: 3.401223196 | Z135: 4.084901564 | AA135: 4.773297417 | AB135: 5.464064687 | AC135: 6.156020849 | AD135: 6.848572254 | AE135: 7.541421481
B136: 400 | C136: =+expint1(C153) -> 1e-100 | D136: 1e-100 | E136: 1e-100 | F136: 1e-100 | G136: 1e-100 | H136: 1e-100 | I136: 1e-100 | J136: 1e-100 | K136: 1e-100 | L136: 1e-100 | M136: 1e-100 | N136: 8.808955879e-71 | O136: 1.487707562e-36 | P136: 2.709743729e-19 | Q136: 1.607966851e-10 | R136: 5.371961368e-06 | S136: 0.001318176475 | T136: 0.026925503 | U136: 0.1533292728 | V136: 0.445040033 | W136: 0.8930373306 | X136: 1.44975774 | Y136: 2.070808882 | Z136: 2.726879259 | AA136: 3.401223196 | AB136: 4.084901564 | AC136: 4.773297417 | AD136: 5.464064687 | AE136: 6.156020849
B137: 500 | C137: =+expint1(C154) -> 1e-100 | D137: 1e-100 | E137: 1e-100 | F137: 1e-100 | G137: 1e-100 | H137: 1e-100 | I137: 1e-100 | J137: 1e-100 | K137: 1e-100 | L137: 1e-100 | M137: 1e-100 | N137: 1e-100 | O137: 7.860045984e-56 | P137: 5.01492977e-29 | Q137: 1.771282534e-15 | R137: 1.457655977e-08 | S137: 5.696717902e-05 | T137: 0.00473559005 | U137: 0.05563907224 | V137: 0.2372473086 | W137: 0.5888815715 | X137: 1.081440029 | Y137: 1.665407387 | Z137: 2.301533985 | AA137: 2.965534866 | AB137: 3.643946208 | AC137: 4.329684328 | AD137: 5.019116633 | AE137: 5.710403782
B138: 1000 | C138: =+expint1(C155) -> 1e-100 | D138: 1e-100 | E138: 1e-100 | F138: 1e-100 | G138: 1e-100 | H138: 1e-100 | I138: 1e-100 | J138: 1e-100 | K138: 1e-100 | L138: 1e-100 | M138: 1e-100 | N138: 1e-100 | O138: 1e-100 | P138: 1e-100 | Q138: 7.860045984e-56 | R138: 5.01492977e-29 | S138: 1.771282534e-15 | T138: 1.457655977e-08 | U138: 5.696717902e-05 | V138: 0.00473559005 | W138: 0.05563907224 | X138: 0.2372473086 | Y138: 0.5888815715 | Z138: 1.081440029 | AA138: 1.665407387 | AB138: 2.301533985 | AC138: 2.965534866 | AD138: 3.643946208 | AE138: 4.329684328
B139: 1500 | C139: 1e-100 | D139: 1e-100 | E139: 1e-100 | F139: 1e-100 | G139: 1e-100 | H139: 1e-100 | I139: 1e-100 | J139: 1e-100 | K139: 1e-100 | L139: 1e-100 | M139: 1e-100 | N139: 1e-100 | O139: 1e-100 | P139: 1e-100 | Q139: 1e-100 | R139: 1.651390236e-62 | S139: 2.170012001e-32 | T139: 3.482418049e-17 | U139: 1.935714578e-09 | V139: 1.972622048e-05 | W139: 0.002660371116 | X139: 0.04004110713 | Y139: 0.1944363183 | Z139: 0.5178632432 | AA139: 0.9899844189 | AB139: 1.561620508 | AC139: 2.190970513 | AD139: 2.851418746 | AE139: 3.52801114
B140: 2000 | C140: =+expint1(C157) -> 1e-100 | D140: 1e-100 | E140: 1e-100 | F140: 1e-100 | G140: 1e-100 | H140: 1e-100 | I140: 1e-100 | J140: 1e-100 | K140: 1e-100 | L140: 1e-100 | M140: 1e-100 | N140: 1e-100 | O140: 1e-100 | P140: 1e-100 | Q140: 1e-100 | R140: 1e-100 | S140: 7.860045984e-56 | T140: 5.01492977e-29 | U140: 1.771282534e-15 | V140: 1.457655977e-08 | W140: 5.696717902e-05 | X140: 0.00473559005 | Y140: 0.05563907224 | Z140: 0.2372473086 | AA140: 0.5888815715 | AB140: 1.081440029 | AC140: 1.665407387 | AD140: 2.301533985 | AE140: 2.965534866
B141: 4000 | C141: =+expint1(C158) -> 1e-100 | D141: 1e-100 | E141: 1e-100 | F141: 1e-100 | G141: 1e-100 | H141: 1e-100 | I141: 1e-100 | J141: 1e-100 | K141: 1e-100 | L141: 1e-100 | M141: 1e-100 | N141: 1e-100 | O141: 1e-100 | P141: 1e-100 | Q141: 1e-100 | R141: 1e-100 | S141: 1e-100 | T141: 1e-100 | U141: 7.860045984e-56 | V141: 5.01492977e-29 | W141: 1.771282534e-15 | X141: 1.457655977e-08 | Y141: 5.696717902e-05 | Z141: 0.00473559005 | AA141: 0.05563907224 | AB141: 0.2372473086 | AC141: 0.5888815715 | AD141: 1.081440029 | AE141: 1.665407387
B142: 8000 | C142: =+expint1(C159) -> 1e-100 | D142: 1e-100 | E142: 1e-100 | F142: 1e-100 | G142: 1e-100 | H142: 1e-100 | I142: 1e-100 | J142: 1e-100 | K142: 1e-100 | L142: 1e-100 | M142: 1e-100 | N142: 1e-100 | O142: 1e-100 | P142: 1e-100 | Q142: 1e-100 | R142: 1e-100 | S142: 1e-100 | T142: 1e-100 | U142: 1e-100 | V142: 1e-100 | W142: 7.860045984e-56 | X142: 5.01492977e-29 | Y142: 1.771282534e-15 | Z142: 1.457655977e-08 | AA142: 5.696717902e-05 | AB142: 0.00473559005 | AC142: 0.05563907224 | AD142: 0.2372473086 | AE142: 0.5888815715
B143: 16000 | C143: =+expint1(C160) -> 1e-100 | D143: 1e-100 | E143: 1e-100 | F143: 1e-100 | G143: 1e-100 | H143: 1e-100 | I143: 1e-100 | J143: 1e-100 | K143: 1e-100 | L143: 1e-100 | M143: 1e-100 | N143: 1e-100 | O143: 1e-100 | P143: 1e-100 | Q143: 1e-100 | R143: 1e-100 | S143: 1e-100 | T143: 1e-100 | U143: 1e-100 | V143: 1e-100 | W143: 1e-100 | X143: 1e-100 | Y143: 7.860045984e-56 | Z143: 5.01492977e-29 | AA143: 1.771282534e-15 | AB143: 1.457655977e-08 | AC143: 5.696717902e-05 | AD143: 0.00473559005 | AE143: 0.05563907224
B144: 32000 | C144: =+expint1(C161) -> 1e-100 | D144: 1e-100 | E144: 1e-100 | F144: 1e-100 | G144: 1e-100 | H144: 1e-100 | I144: 1e-100 | J144: 1e-100 | K144: 1e-100 | L144: 1e-100 | M144: 1e-100 | N144: 1e-100 | O144: 1e-100 | P144: 1e-100 | Q144: 1e-100 | R144: 1e-100 | S144: 1e-100 | T144: 1e-100 | U144: 1e-100 | V144: 1e-100 | W144: 1e-100 | X144: 1e-100 | Y144: 1e-100 | Z144: 1e-100 | AA144: 7.860045984e-56 | AB144: 5.01492977e-29 | AC144: 1.771282534e-15 | AD144: 1.457655977e-08 | AE144: 5.696717902e-05
B145: 64000 | C145: =+expint1(C162) -> 1e-100 | D145: 1e-100 | E145: 1e-100 | F145: 1e-100 | G145: 1e-100 | H145: 1e-100 | I145: 1e-100 | J145: 1e-100 | K145: 1e-100 | L145: 1e-100 | M145: 1e-100 | N145: 1e-100 | O145: 1e-100 | P145: 1e-100 | Q145: 1e-100 | R145: 1e-100 | S145: 1e-100 | T145: 1e-100 | U145: 1e-100 | V145: 1e-100 | W145: 1e-100 | X145: 1e-100 | Y145: 1e-100 | Z145: 1e-100 | AA145: 1e-100 | AB145: 1e-100 | AC145: 7.860045984e-56 | AD145: 5.01492977e-29 | AE145: 1.771282534e-15
B147: u p r/t | C147: 1 | D147: =+C147*2 -> 2 | E147: 5 | F147: =+E147*2 -> 10 | G147: =+F147*2 -> 20 | H147: 40 | I147: 80 | J147: 160 | K147: 320 | L147: 640 | M147: 1280 | N147: 2560 | O147: 5120 | P147: 10240 | Q147: 20480 | R147: 40960 | S147: 81920 | T147: 163840 | U147: 327680 | V147: 655360 | W147: 1310720 | X147: 2621440 | Y147: 5242880 | Z147: 10485760 | AA147: 20971520 | AB147: =+AA147*2 -> 41943040 | AC147: =+AB147*2 -> 83886080 | AD147: 167772160 | AE147: 335544320
B148: =+#REF! ->  | C148: =+($O$21*($B$148)^2)/(4*$O$20*C147) ->  | D148: =+($O$21*(B148)^2)/(4*$O$20*$D$147) ->  | E148: =+($O$21*(B148)^2)/(4*$O$20*$E$147) ->  | F148: =+($O$21*(B148)^2)/(4*$O$20*$F$147) ->  | G148: =+($O$21*(B148)^2)/(4*$O$20*$G$147) ->  | H148: =+($O$21*(B148)^2)/(4*$O$20*$H$147) ->  | I148: =+($O$21*(B148)^2)/(4*$O$20*$I$147) ->  | J148: =+($O$21*(B148)^2)/(4*$O$20*$J$147) ->  | K148: =+($O$21*(B148)^2)/(4*$O$20*$K$147) ->  | L148: =+($O$21*(B148)^2)/(4*$O$20*$L$147) ->  | M148: =+($O$21*(B148)^2)/(4*$O$20*$M$147) ->  | N148: =+($O$21*(B148)^2)/(4*$O$20*$N$147) ->  | O148: =+($O$21*(B148)^2)/(4*$O$20*$O$147) ->  | P148: =+($O$21*(B148)^2)/(4*$O$20*$P$147) ->  | Q148: =+($O$21*(B148)^2)/(4*$O$20*$Q$147) ->  | R148: =+($O$21*(B148)^2)/(4*$O$20*$R$147) ->  | S148: =+($O$21*(B148)^2)/(4*$O$20*$S$147) ->  | T148: =+($O$21*(B148)^2)/(4*$O$20*$T$147) ->  | U148: =+($O$21*(B148)^2)/(4*$O$20*$U$147) ->  | V148: =+($O$21*($B$148)^2)/(4*$O$20*V147) ->  | W148: =+($O$21*(B148)^2)/(4*$O$20*$W$147) ->  | X148: =+($O$21*(B148)^2)/(4*$O$20*$X$147) ->  | Y148: =+($O$21*(B148)^2)/(4*$O$20*$Y$147) ->  | Z148: =+($O$21*(B148)^2)/(4*$O$20*$Z$147) ->  | AA148: =+($O$21*(B148)^2)/(4*$O$20*$AA$147) ->  | AB148: =+($O$21*(B148)^2)/(4*$O$20*$AB$147) ->  | AC148: =+($O$21*(B148)^2)/(4*$O$20*$AC$147) ->  | AD148: =+($O$21*(B148)^2)/(4*$O$20*$AD$147) ->  | AE148: =+($O$21*(B148)^2)/(4*$O$20*$AE$147) -> 
B149: =+C27 -> 20 | C149: =+($O$21*(B149)^2)/(4*$O$20*$C$147) -> 1000 | D149: 500 | E149: 200 | F149: 100 | G149: 50 | H149: 25 | I149: 12.5 | J149: 6.25 | K149: 3.125 | L149: 1.5625 | M149: 0.78125 | N149: 0.390625 | O149: 0.1953125 | P149: 0.09765625 | Q149: 0.048828125 | R149: 0.0244140625 | S149: 0.01220703125 | T149: 0.006103515625 | U149: 0.003051757812 | V149: =+($O$21*(B149)^2)/(4*$O$20*$V$147) -> 0.001525878906 | W149: 0.0007629394531 | X149: 0.0003814697266 | Y149: 0.0001907348633 | Z149: 9.536743164e-05 | AA149: 4.768371582e-05 | AB149: 2.384185791e-05 | AC149: 1.192092896e-05 | AD149: 5.960464478e-06 | AE149: 2.980232239e-06
B150: 50 | C150: 6250 | D150: 3125 | E150: 1250 | F150: 625 | G150: 312.5 | H150: 156.25 | I150: 78.125 | J150: 39.0625 | K150: 19.53125 | L150: 9.765625 | M150: 4.8828125 | N150: 2.44140625 | O150: 1.220703125 | P150: 0.6103515625 | Q150: 0.3051757812 | R150: 0.1525878906 | S150: 0.07629394531 | T150: 0.03814697266 | U150: 0.01907348633 | V150: 0.009536743164 | W150: 0.004768371582 | X150: 0.002384185791 | Y150: 0.001192092896 | Z150: 0.0005960464478 | AA150: 0.0002980232239 | AB150: 0.0001490116119 | AC150: 7.450580597e-05 | AD150: 3.725290298e-05 | AE150: 1.862645149e-05
B151: 100 | C151: 25000 | D151: 12500 | E151: 5000 | F151: 2500 | G151: 1250 | H151: 625 | I151: 312.5 | J151: 156.25 | K151: 78.125 | L151: 39.0625 | M151: 19.53125 | N151: 9.765625 | O151: 4.8828125 | P151: 2.44140625 | Q151: 1.220703125 | R151: 0.6103515625 | S151: 0.3051757812 | T151: 0.1525878906 | U151: 0.07629394531 | V151: 0.03814697266 | W151: 0.01907348633 | X151: 0.009536743164 | Y151: 0.004768371582 | Z151: 0.002384185791 | AA151: 0.001192092896 | AB151: 0.0005960464478 | AC151: 0.0002980232239 | AD151: 0.0001490116119 | AE151: 7.450580597e-05
B152: 200 | C152: 100000 | D152: 50000 | E152: 20000 | F152: 10000 | G152: 5000 | H152: 2500 | I152: 1250 | J152: 625 | K152: 312.5 | L152: 156.25 | M152: 78.125 | N152: 39.0625 | O152: 19.53125 | P152: 9.765625 | Q152: 4.8828125 | R152: 2.44140625 | S152: 1.220703125 | T152: 0.6103515625 | U152: 0.3051757812 | V152: 0.1525878906 | W152: 0.07629394531 | X152: 0.03814697266 | Y152: 0.01907348633 | Z152: 0.009536743164 | AA152: 0.004768371582 | AB152: 0.002384185791 | AC152: 0.001192092896 | AD152: 0.0005960464478 | AE152: 0.0002980232239
B153: 400 | C153: 400000 | D153: 200000 | E153: 80000 | F153: 40000 | G153: 20000 | H153: 10000 | I153: 5000 | J153: 2500 | K153: 1250 | L153: 625 | M153: 312.5 | N153: 156.25 | O153: 78.125 | P153: 39.0625 | Q153: 19.53125 | R153: 9.765625 | S153: 4.8828125 | T153: 2.44140625 | U153: 1.220703125 | V153: 0.6103515625 | W153: 0.3051757812 | X153: 0.1525878906 | Y153: 0.07629394531 | Z153: 0.03814697266 | AA153: 0.01907348633 | AB153: 0.009536743164 | AC153: 0.004768371582 | AD153: 0.002384185791 | AE153: 0.001192092896
B154: 500 | C154: 625000 | D154: 312500 | E154: 125000 | F154: 62500 | G154: 31250 | H154: 15625 | I154: 7812.5 | J154: 3906.25 | K154: 1953.125 | L154: 976.5625 | M154: 488.28125 | N154: 244.140625 | O154: 122.0703125 | P154: 61.03515625 | Q154: 30.51757812 | R154: 15.25878906 | S154: 7.629394531 | T154: 3.814697266 | U154: 1.907348633 | V154: 0.9536743164 | W154: 0.4768371582 | X154: 0.2384185791 | Y154: 0.1192092896 | Z154: 0.05960464478 | AA154: 0.02980232239 | AB154: 0.01490116119 | AC154: 0.007450580597 | AD154: 0.003725290298 | AE154: 0.001862645149
B155: 1000 | C155: 2500000 | D155: 1250000 | E155: 500000 | F155: 250000 | G155: 125000 | H155: 62500 | I155: 31250 | J155: 15625 | K155: 7812.5 | L155: 3906.25 | M155: 1953.125 | N155: 976.5625 | O155: 488.28125 | P155: 244.140625 | Q155: 122.0703125 | R155: 61.03515625 | S155: 30.51757812 | T155: 15.25878906 | U155: 7.629394531 | V155: 3.814697266 | W155: 1.907348633 | X155: 0.9536743164 | Y155: 0.4768371582 | Z155: 0.2384185791 | AA155: 0.1192092896 | AB155: 0.05960464478 | AC155: 0.02980232239 | AD155: 0.01490116119 | AE155: 0.007450580597
B156: 1500 | C156: 5625000 | D156: 2812500 | E156: 1125000 | F156: 562500 | G156: 281250 | H156: 140625 | I156: 70312.5 | J156: 35156.25 | K156: 17578.125 | L156: 8789.0625 | M156: 4394.53125 | N156: 2197.265625 | O156: 1098.632812 | P156: 549.3164062 | Q156: 274.6582031 | R156: 137.3291016 | S156: 68.66455078 | T156: 34.33227539 | U156: 17.1661377 | V156: 8.583068848 | W156: 4.291534424 | X156: 2.145767212 | Y156: 1.072883606 | Z156: 0.536441803 | AA156: 0.2682209015 | AB156: 0.1341104507 | AC156: 0.06705522537 | AD156: 0.03352761269 | AE156: 0.01676380634
B157: 2000 | C157: 10000000 | D157: 5000000 | E157: 2000000 | F157: 1000000 | G157: 500000 | H157: 250000 | I157: 125000 | J157: 62500 | K157: 31250 | L157: 15625 | M157: 7812.5 | N157: 3906.25 | O157: 1953.125 | P157: 976.5625 | Q157: 488.28125 | R157: 244.140625 | S157: 122.0703125 | T157: 61.03515625 | U157: 30.51757812 | V157: 15.25878906 | W157: 7.629394531 | X157: 3.814697266 | Y157: 1.907348633 | Z157: 0.9536743164 | AA157: 0.4768371582 | AB157: 0.2384185791 | AC157: 0.1192092896 | AD157: 0.05960464478 | AE157: 0.02980232239
B158: 4000 | C158: 40000000 | D158: 20000000 | E158: 8000000 | F158: 4000000 | G158: 2000000 | H158: 1000000 | I158: 500000 | J158: 250000 | K158: 125000 | L158: 62500 | M158: 31250 | N158: 15625 | O158: 7812.5 | P158: 3906.25 | Q158: 1953.125 | R158: 976.5625 | S158: 488.28125 | T158: 244.140625 | U158: 122.0703125 | V158: 61.03515625 | W158: 30.51757812 | X158: 15.25878906 | Y158: 7.629394531 | Z158: 3.814697266 | AA158: 1.907348633 | AB158: 0.9536743164 | AC158: 0.4768371582 | AD158: 0.2384185791 | AE158: 0.1192092896
B159: 8000 | C159: 160000000 | D159: 80000000 | E159: 32000000 | F159: 16000000 | G159: 8000000 | H159: 4000000 | I159: 2000000 | J159: 1000000 | K159: 500000 | L159: 250000 | M159: 125000 | N159: 62500 | O159: 31250 | P159: 15625 | Q159: 7812.5 | R159: 3906.25 | S159: 1953.125 | T159: 976.5625 | U159: 488.28125 | V159: 244.140625 | W159: 122.0703125 | X159: 61.03515625 | Y159: 30.51757812 | Z159: 15.25878906 | AA159: 7.629394531 | AB159: 3.814697266 | AC159: 1.907348633 | AD159: 0.9536743164 | AE159: 0.4768371582
B160: 16000 | C160: 640000000 | D160: 320000000 | E160: 128000000 | F160: 64000000 | G160: 32000000 | H160: 16000000 | I160: 8000000 | J160: 4000000 | K160: 2000000 | L160: 1000000 | M160: 500000 | N160: 250000 | O160: 125000 | P160: 62500 | Q160: 31250 | R160: 15625 | S160: 7812.5 | T160: 3906.25 | U160: 1953.125 | V160: 976.5625 | W160: 488.28125 | X160: 244.140625 | Y160: 122.0703125 | Z160: 61.03515625 | AA160: 30.51757812 | AB160: 15.25878906 | AC160: 7.629394531 | AD160: 3.814697266 | AE160: 1.907348633
B161: 32000 | C161: 2560000000 | D161: 1280000000 | E161: 512000000 | F161: 256000000 | G161: 128000000 | H161: 64000000 | I161: 32000000 | J161: 16000000 | K161: 8000000 | L161: 4000000 | M161: 2000000 | N161: 1000000 | O161: 500000 | P161: 250000 | Q161: 125000 | R161: 62500 | S161: 31250 | T161: 15625 | U161: 7812.5 | V161: 3906.25 | W161: 1953.125 | X161: 976.5625 | Y161: 488.28125 | Z161: 244.140625 | AA161: 122.0703125 | AB161: 61.03515625 | AC161: 30.51757812 | AD161: 15.25878906 | AE161: 7.629394531
B162: 64000 | C162: 10240000000 | D162: 5120000000 | E162: 2048000000 | F162: 1024000000 | G162: 512000000 | H162: 256000000 | I162: 128000000 | J162: 64000000 | K162: 32000000 | L162: 16000000 | M162: 8000000 | N162: 4000000 | O162: 2000000 | P162: 1000000 | Q162: 500000 | R162: 250000 | S162: 125000 | T162: 62500 | U162: 31250 | V162: 15625 | W162: 7812.5 | X162: 3906.25 | Y162: 1953.125 | Z162: 976.5625 | AA162: 488.28125 | AB162: 244.140625 | AC162: 122.0703125 | AD162: 61.03515625 | AE162: 30.51757812
B164: W(u, r/L) | C164: 1 | D164: =+C164*2 -> 2 | E164: 5 | F164: =+E164*2 -> 10 | G164: =+F164*2 -> 20 | H164: 40 | I164: 80 | J164: 160 | K164: 320 | L164: 640 | M164: 1280 | N164: 2560 | O164: 5120 | P164: 10240 | Q164: 20480 | R164: 40960 | S164: 81920 | T164: 163840 | U164: 327680 | V164: 655360 | W164: 1310720 | X164: 2621440 | Y164: 5242880 | Z164: 10485760 | AA164: 20971520 | AB164: =+AA164*2 -> 41943040 | AC164: =+AB164*2 -> 83886080 | AD164: 167772160 | AE164: 335544320
B165: =+#REF! ->  | C165: =w_2(C183, $O$55) -> 
B166: =+C27 -> 20 | C166: =w_2(C184, $O$55) -> 0.01911311957 | D166: 0.1251389067 | E166: 0.5132617301 | F166: 0.9836504887 | G166: 1.553582809 | H166: 2.18057041 | I166: 2.836801348 | J166: 3.505158774 | K166: 4.173604664 | L166: 4.830138681 | M166: 5.457766501 | N166: 6.028887023 | O166: 6.50123573 | P166: 6.825358785 | Q166: 6.980450459 | R166: 7.01816193 | S166: 7.020846646 | T166: 7.020866992 | U166: 7.020866994 | V166: 7.020866994 | W166: 7.020866994 | X166: 7.020866994 | Y166: 7.020866994 | Z166: 7.020866994 | AA166: 7.020866994 | AB166: 7.020866994 | AC166: 7.020866994 | AD166: 7.020866994 | AE166: 7.020866994
B167: 50 | C167: =w_2(C185, $O$55) -> 2.585323732e-09 | D167: 2.29542329e-05 | E167: 0.008105641667 | F167: 0.07581696771 | G167: 0.2866907762 | H167: 0.666167359 | I167: 1.177733592 | J167: 1.772072794 | K167: 2.411986631 | L167: 3.074121534 | M167: 3.743786019 | N167: 4.409511416 | O167: 5.058125099 | P167: 5.669513841 | Q167: 6.211048076 | R167: 6.635906102 | S167: 6.89901432 | T167: 7.002597406 | U167: 7.020207303 | V167: 7.020865516 | W167: 7.020866994 | X167: 7.020866994 | Y167: 7.020866994 | Z167: 7.020866994 | AA167: 7.020866994 | AB167: 7.020866994 | AC167: 7.020866994 | AD167: 7.020866994 | AE167: 7.020866994
B168: 100 | C168: =w_2(C186, $O$55) -> 6.603122379e-32 | D168: 6.121429044e-17 | E168: 9.35869229e-08 | F168: 0.0001520136026 | G168: 0.008105641667 | H168: 0.07581696771 | I168: 0.2866907762 | J168: 0.666167359 | K168: 1.177733592 | L168: 1.772072794 | M168: 2.411986631 | N168: 3.074121534 | O168: 3.743786019 | P168: 4.409511416 | Q168: 5.058125099 | R168: 5.669513841 | S168: 6.211048076 | T168: 6.635906102 | U168: 6.89901432 | V168: 7.002597406 | W168: 7.020207303 | X168: 7.020865516 | Y168: 7.020866994 | Z168: 7.020866994 | AA168: 7.020866994 | AB168: 7.020866994 | AC168: 7.020866994 | AD168: 7.020866994 | AE168: 7.020866994
B169: 200 | C169: =w_2(C187, $O$55) -> 1.547806495e-120 | D169: 1.505252584e-61 | E169: 6.080954405e-26 | F169: 6.535108405e-14 | G169: 9.35869229e-08 | H169: 0.0001520136026 | I169: 0.008105641667 | J169: 0.07581696771 | K169: 0.2866907762 | L169: 0.666167359 | M169: 1.177733592 | N169: 1.772072794 | O169: 2.411986631 | P169: 3.074121534 | Q169: 3.743786019 | R169: 4.409511416 | S169: 5.058125099 | T169: 5.669513841 | U169: 6.211048076 | V169: 6.635906102 | W169: 6.89901432 | X169: 7.002597406 | Y169: 7.020207303 | Z169: 7.020865516 | AA169: 7.020866994 | AB169: 7.020866994 | AC169: 7.020866994 | AD169: 7.020866994 | AE169: 7.020866994
B170: 400 | C170: =w_2(C188, $O$55) -> 0 | D170: 3.255341118e-238 | E170: 5.775735335e-97 | F170: 1.026653803e-49 | G170: 6.080954405e-26 | H170: 6.535108405e-14 | I170: 9.35869229e-08 | J170: 0.0001520136026 | K170: 0.008105641667 | L170: 0.07581696771 | M170: 0.2866907762 | N170: 0.666167359 | O170: 1.177733592 | P170: 1.772072794 | Q170: 2.411986631 | R170: 3.074121534 | S170: 3.743786019 | T170: 4.409511416 | U170: 5.058125099 | V170: 5.669513841 | W170: 6.211048076 | X170: 6.635906102 | Y170: 6.89901432 | Z170: 7.002597406 | AA170: 7.020207303 | AB170: 7.020865516 | AC170: 7.020866994 | AD170: 7.020866994 | AE170: 7.020866994
B171: 500 | C171: =w_2(C189, $O$55) -> 0 | D171: 0 | E171: 5.609228264e-150 | F171: 2.56577616e-76 | G171: 2.443547675e-39 | H171: 1.057551373e-20 | I171: 3.062434507e-11 | J171: 2.264277972e-06 | K171: 0.0008288707008 | L171: 0.02075415665 | M171: 0.1313762229 | N171: 0.4036047794 | O171: 0.8358971167 | P171: 1.382176226 | Q171: 1.996209812 | R171: 2.646142075 | S171: 3.312367813 | T171: 3.981928702 | U171: 4.643310724 | V171: 5.281508135 | W171: 5.872550894 | X171: 6.378440613 | Y171: 6.749623892 | Z171: 6.951587407 | AA171: 7.013932163 | AB171: 7.020752567 | AC171: 7.02086694 | AD171: 7.020866994 | AE171: 7.020866994
B172: 1000 | C172: =w_2(C190, $O$55) -> 0 | D172: 0 | E172: 0 | F172: 5.338298835e-297 | G172: 5.609228264e-150 | H172: 2.56577616e-76 | I172: 2.443547675e-39 | J172: 1.057551373e-20 | K172: 3.062434507e-11 | L172: 2.264277972e-06 | M172: 0.0008288707008 | N172: 0.02075415665 | O172: 0.1313762229 | P172: 0.4036047794 | Q172: 0.8358971167 | R172: 1.382176226 | S172: 1.996209812 | T172: 2.646142075 | U172: 3.312367813 | V172: 3.981928702 | W172: 4.643310724 | X172: 5.281508135 | Y172: 5.872550894 | Z172: 6.378440613 | AA172: 6.749623892 | AB172: 6.951587407 | AC172: 7.013932163 | AD172: 7.020752567 | AE172: 7.02086694
B173: 1500 | C173: =w_2(C191, $O$55) -> 0 | D173: 0 | E173: 0 | F173: 0 | G173: 0 | H173: 2.279048923e-168 | I173: 1.542687414e-85 | J173: 5.654402182e-44 | K173: 4.805120482e-23 | L173: 1.952911015e-12 | M173: 5.423990326e-07 | N173: 0.0003863828517 | O173: 0.01356778173 | P173: 0.102319945 | Q173: 0.3451383705 | R173: 0.7529690906 | S173: 1.28346688 | T173: 1.88864577 | U173: 2.534128273 | V173: 3.19861263 | W173: 3.868397457 | X173: 4.532066797 | Y173: 5.175574188 | Z173: 5.776881061 | AA173: 6.300568767 | AB173: 6.698076205 | AC173: 6.928998242 | AD173: 7.009585118 | AE173: 7.020590097
B174: 2000 | C174: =w_2(C192, $O$55) -> 0 | D174: 0 | E174: 0 | F174: 0 | G174: 0 | H174: 5.338298835e-297 | I174: 5.609228264e-150 | J174: 2.56577616e-76 | K174: 2.443547675e-39 | L174: 1.057551373e-20 | M174: 3.062434507e-11 | N174: 2.264277972e-06 | O174: 0.0008288707008 | P174: 0.02075415665 | Q174: 0.1313762229 | R174: 0.4036047794 | S174: 0.8358971167 | T174: 1.382176226 | U174: 1.996209812 | V174: 2.646142075 | W174: 3.312367813 | X174: 3.981928702 | Y174: 4.643310724 | Z174: 5.281508135 | AA174: 5.872550894 | AB174: 6.378440613 | AC174: 6.749623892 | AD174: 6.951587407 | AE174: 7.013932163
B175: 4000 | C175: =w_2(C193, $O$55) -> 0 | D175: 0 | E175: 0 | F175: 0 | G175: 0 | H175: 0 | I175: 0 | J175: 5.338298835e-297 | K175: 5.609228264e-150 | L175: 2.56577616e-76 | M175: 2.443547675e-39 | N175: 1.057551373e-20 | O175: 3.062434507e-11 | P175: 2.264277972e-06 | Q175: 0.0008288707008 | R175: 0.02075415665 | S175: 0.1313762229 | T175: 0.4036047794 | U175: 0.8358971167 | V175: 1.382176226 | W175: 1.996209812 | X175: 2.646142075 | Y175: 3.312367813 | Z175: 3.981928702 | AA175: 4.643310724 | AB175: 5.281508135 | AC175: 5.872550894 | AD175: 6.378440613 | AE175: 6.749623892
B176: 8000 | C176: =w_2(C194, $O$55) -> 0 | D176: 0 | E176: 0 | F176: 0 | G176: 0 | H176: 0 | I176: 0 | J176: 0 | K176: 0 | L176: 5.338298835e-297 | M176: 5.609228264e-150 | N176: 2.56577616e-76 | O176: 2.443547675e-39 | P176: 1.057551373e-20 | Q176: 3.062434507e-11 | R176: 2.264277972e-06 | S176: 0.0008288707008 | T176: 0.02075415665 | U176: 0.1313762229 | V176: 0.4036047794 | W176: 0.8358971167 | X176: 1.382176226 | Y176: 1.996209812 | Z176: 2.646142075 | AA176: 3.312367813 | AB176: 3.981928702 | AC176: 4.643310724 | AD176: 5.281508135 | AE176: 5.872550894
B177: 16000 | C177: =w_2(C195, $O$55) -> 0 | D177: 0 | E177: 0 | F177: 0 | G177: 0 | H177: 0 | I177: 0 | J177: 0 | K177: 0 | L177: 0 | M177: 0 | N177: 5.338298835e-297 | O177: 5.609228264e-150 | P177: 2.56577616e-76 | Q177: 2.443547675e-39 | R177: 1.057551373e-20 | S177: 3.062434507e-11 | T177: 2.264277972e-06 | U177: 0.0008288707008 | V177: 0.02075415665 | W177: 0.1313762229 | X177: 0.4036047794 | Y177: 0.8358971167 | Z177: 1.382176226 | AA177: 1.996209812 | AB177: 2.646142075 | AC177: 3.312367813 | AD177: 3.981928702 | AE177: 4.643310724
B178: 32000 | C178: =w_2(C196, $O$55) -> 0 | D178: 0 | E178: 0 | F178: 0 | G178: 0 | H178: 0 | I178: 0 | J178: 0 | K178: 0 | L178: 0 | M178: 0 | N178: 0 | O178: 0 | P178: 5.338298835e-297 | Q178: 5.609228264e-150 | R178: 2.56577616e-76 | S178: 2.443547675e-39 | T178: 1.057551373e-20 | U178: 3.062434507e-11 | V178: 2.264277972e-06 | W178: 0.0008288707008 | X178: 0.02075415665 | Y178: 0.1313762229 | Z178: 0.4036047794 | AA178: 0.8358971167 | AB178: 1.382176226 | AC178: 1.996209812 | AD178: 2.646142075 | AE178: 3.312367813
B179: 64000 | C179: =w_2(C197, $O$55) -> 0 | D179: 0 | E179: 0 | F179: 0 | G179: 0 | H179: 0 | I179: 0 | J179: 0 | K179: 0 | L179: 0 | M179: 0 | N179: 0 | O179: 0 | P179: 0 | Q179: 0 | R179: 5.338298835e-297 | S179: 5.609228264e-150 | T179: 2.56577616e-76 | U179: 2.443547675e-39 | V179: 1.057551373e-20 | W179: 3.062434507e-11 | X179: 2.264277972e-06 | Y179: 0.0008288707008 | Z179: 0.02075415665 | AA179: 0.1313762229 | AB179: 0.4036047794 | AC179: 0.8358971167 | AD179: 1.382176226 | AE179: 1.996209812
B182: u p r/t | C182: 1 | D182: =+C182*2 -> 2 | E182: 5 | F182: =+E182*2 -> 10 | G182: =+F182*2 -> 20 | H182: 40 | I182: 80 | J182: 160 | K182: 320 | L182: 640 | M182: 1280 | N182: 2560 | O182: 5120 | P182: 10240 | Q182: 20480 | R182: 40960 | S182: 81920 | T182: 163840 | U182: 327680 | V182: 655360 | W182: 1310720 | X182: 2621440 | Y182: 5242880 | Z182: 10485760 | AA182: 20971520 | AB182: =+AA182*2 -> 41943040 | AC182: =+AB182*2 -> 83886080 | AD182: 167772160 | AE182: 335544320
B183: =+#REF! ->  | C183: =+($O$54*($B$183)^2)/(4*$O$53*C182) ->  | D183: =+($O$54*(B183)^2)/(4*$O$53*$D$182) ->  | E183: =+($O$54*(B183)^2)/(4*$O$53*$E$182) ->  | F183: =+($O$54*(B183)^2)/(4*$O$53*$F$182) ->  | G183: =+($O$54*(B183)^2)/(4*$O$53*$G$182) ->  | H183: =+($O$54*(B183)^2)/(4*$O$53*$H$182) ->  | I183: =+($O$54*(B183)^2)/(4*$O$53*$I$182) ->  | J183: =+($O$54*(B183)^2)/(4*$O$53*$J$182) ->  | K183: =+($O$54*(B183)^2)/(4*$O$53*$K$182) ->  | L183: =+($O$54*(B183)^2)/(4*$O$53*$L$182) ->  | M183: =+($O$54*(B183)^2)/(4*$O$53*$M$182) ->  | N183: =+($O$54*(B183)^2)/(4*$O$53*$N$182) ->  | O183: =+($O$54*(B183)^2)/(4*$O$53*$O$182) ->  | P183: =+($O$54*(B183)^2)/(4*$O$53*$P$182) ->  | Q183: =+($O$54*(B183)^2)/(4*$O$53*$Q$182) ->  | R183: =+($O$54*(B183)^2)/(4*$O$53*$R$182) ->  | S183: =+($O$54*(B183)^2)/(4*$O$53*$S$182) ->  | T183: =+($O$54*(B183)^2)/(4*$O$53*$T$182) ->  | U183: =+($O$54*(B183)^2)/(4*$O$53*$U$182) ->  | V183: =+($O$54*($B$183)^2)/(4*$O$53*V182) ->  | W183: =+($O$54*(B183)^2)/(4*$O$53*$W$182) ->  | X183: =+($O$54*(B183)^2)/(4*$O$53*$X$182) ->  | Y183: =+($O$54*(B183)^2)/(4*$O$53*$Y$182) ->  | Z183: =+($O$54*(B183)^2)/(4*$O$53*$Z$182) ->  | AA183: =+($O$54*(B183)^2)/(4*$O$53*$AA$182) ->  | AB183: =+($O$54*(B183)^2)/(4*$O$53*$AB$182) ->  | AC183: =+($O$54*(B183)^2)/(4*$O$53*$AC$182) ->  | AD183: =+($O$54*(B183)^2)/(4*$O$53*$AD$182) ->  | AE183: =+($O$54*(B183)^2)/(4*$O$53*$AE$182) -> 
B184: =+C27 -> 20 | C184: =+($O$54*(B184)^2)/(4*$O$53*$C$182) -> 2.702702703 | D184: 1.351351351 | E184: 0.5405405405 | F184: 0.2702702703 | G184: 0.1351351351 | H184: 0.06756756757 | I184: 0.03378378378 | J184: 0.01689189189 | K184: 0.008445945946 | L184: 0.004222972973 | M184: 0.002111486486 | N184: 0.001055743243 | O184: 0.0005278716216 | P184: 0.0002639358108 | Q184: 0.0001319679054 | R184: 6.59839527e-05 | S184: 3.299197635e-05 | T184: 1.649598818e-05 | U184: 8.247994088e-06 | V184: =+($O$54*(B184)^2)/(4*$O$53*$V$182) -> 4.123997044e-06 | W184: 2.061998522e-06 | X184: 1.030999261e-06 | Y184: 5.154996305e-07 | Z184: 2.577498152e-07 | AA184: 1.288749076e-07 | AB184: 6.443745381e-08 | AC184: 3.221872691e-08 | AD184: 1.610936345e-08 | AE184: 8.054681726e-09
B185: 50 | C185: 16.89189189 | D185: 8.445945946 | E185: 3.378378378 | F185: 1.689189189 | G185: 0.8445945946 | H185: 0.4222972973 | I185: 0.2111486486 | J185: 0.1055743243 | K185: 0.05278716216 | L185: 0.02639358108 | M185: 0.01319679054 | N185: 0.00659839527 | O185: 0.003299197635 | P185: 0.001649598818 | Q185: 0.0008247994088 | R185: 0.0004123997044 | S185: 0.0002061998522 | T185: 0.0001030999261 | U185: 5.154996305e-05 | V185: 2.577498152e-05 | W185: 1.288749076e-05 | X185: 6.443745381e-06 | Y185: 3.221872691e-06 | Z185: 1.610936345e-06 | AA185: 8.054681726e-07 | AB185: 4.027340863e-07 | AC185: 2.013670432e-07 | AD185: 1.006835216e-07 | AE185: 5.034176079e-08
B186: 100 | C186: 67.56756757 | D186: 33.78378378 | E186: 13.51351351 | F186: 6.756756757 | G186: 3.378378378 | H186: 1.689189189 | I186: 0.8445945946 | J186: 0.4222972973 | K186: 0.2111486486 | L186: 0.1055743243 | M186: 0.05278716216 | N186: 0.02639358108 | O186: 0.01319679054 | P186: 0.00659839527 | Q186: 0.003299197635 | R186: 0.001649598818 | S186: 0.0008247994088 | T186: 0.0004123997044 | U186: 0.0002061998522 | V186: 0.0001030999261 | W186: 5.154996305e-05 | X186: 2.577498152e-05 | Y186: 1.288749076e-05 | Z186: 6.443745381e-06 | AA186: 3.221872691e-06 | AB186: 1.610936345e-06 | AC186: 8.054681726e-07 | AD186: 4.027340863e-07 | AE186: 2.013670432e-07
B187: 200 | C187: 270.2702703 | D187: 135.1351351 | E187: 54.05405405 | F187: 27.02702703 | G187: 13.51351351 | H187: 6.756756757 | I187: 3.378378378 | J187: 1.689189189 | K187: 0.8445945946 | L187: 0.4222972973 | M187: 0.2111486486 | N187: 0.1055743243 | O187: 0.05278716216 | P187: 0.02639358108 | Q187: 0.01319679054 | R187: 0.00659839527 | S187: 0.003299197635 | T187: 0.001649598818 | U187: 0.0008247994088 | V187: 0.0004123997044 | W187: 0.0002061998522 | X187: 0.0001030999261 | Y187: 5.154996305e-05 | Z187: 2.577498152e-05 | AA187: 1.288749076e-05 | AB187: 6.443745381e-06 | AC187: 3.221872691e-06 | AD187: 1.610936345e-06 | AE187: 8.054681726e-07
B188: 400 | C188: 1081.081081 | D188: 540.5405405 | E188: 216.2162162 | F188: 108.1081081 | G188: 54.05405405 | H188: 27.02702703 | I188: 13.51351351 | J188: 6.756756757 | K188: 3.378378378 | L188: 1.689189189 | M188: 0.8445945946 | N188: 0.4222972973 | O188: 0.2111486486 | P188: 0.1055743243 | Q188: 0.05278716216 | R188: 0.02639358108 | S188: 0.01319679054 | T188: 0.00659839527 | U188: 0.003299197635 | V188: 0.001649598818 | W188: 0.0008247994088 | X188: 0.0004123997044 | Y188: 0.0002061998522 | Z188: 0.0001030999261 | AA188: 5.154996305e-05 | AB188: 2.577498152e-05 | AC188: 1.288749076e-05 | AD188: 6.443745381e-06 | AE188: 3.221872691e-06
B189: 500 | C189: 1689.189189 | D189: 844.5945946 | E189: 337.8378378 | F189: 168.9189189 | G189: 84.45945946 | H189: 42.22972973 | I189: 21.11486486 | J189: 10.55743243 | K189: 5.278716216 | L189: 2.639358108 | M189: 1.319679054 | N189: 0.659839527 | O189: 0.3299197635 | P189: 0.1649598818 | Q189: 0.08247994088 | R189: 0.04123997044 | S189: 0.02061998522 | T189: 0.01030999261 | U189: 0.005154996305 | V189: 0.002577498152 | W189: 0.001288749076 | X189: 0.0006443745381 | Y189: 0.0003221872691 | Z189: 0.0001610936345 | AA189: 8.054681726e-05 | AB189: 4.027340863e-05 | AC189: 2.013670432e-05 | AD189: 1.006835216e-05 | AE189: 5.034176079e-06
B190: 1000 | C190: 6756.756757 | D190: 3378.378378 | E190: 1351.351351 | F190: 675.6756757 | G190: 337.8378378 | H190: 168.9189189 | I190: 84.45945946 | J190: 42.22972973 | K190: 21.11486486 | L190: 10.55743243 | M190: 5.278716216 | N190: 2.639358108 | O190: 1.319679054 | P190: 0.659839527 | Q190: 0.3299197635 | R190: 0.1649598818 | S190: 0.08247994088 | T190: 0.04123997044 | U190: 0.02061998522 | V190: 0.01030999261 | W190: 0.005154996305 | X190: 0.002577498152 | Y190: 0.001288749076 | Z190: 0.0006443745381 | AA190: 0.0003221872691 | AB190: 0.0001610936345 | AC190: 8.054681726e-05 | AD190: 4.027340863e-05 | AE190: 2.013670432e-05
B191: 1500 | C191: 15202.7027 | D191: 7601.351351 | E191: 3040.540541 | F191: 1520.27027 | G191: 760.1351351 | H191: 380.0675676 | I191: 190.0337838 | J191: 95.01689189 | K191: 47.50844595 | L191: 23.75422297 | M191: 11.87711149 | N191: 5.938555743 | O191: 2.969277872 | P191: 1.484638936 | Q191: 0.7423194679 | R191: 0.371159734 | S191: 0.185579867 | T191: 0.09278993349 | U191: 0.04639496674 | V191: 0.02319748337 | W191: 0.01159874169 | X191: 0.005799370843 | Y191: 0.002899685422 | Z191: 0.001449842711 | AA191: 0.0007249213554 | AB191: 0.0003624606777 | AC191: 0.0001812303388 | AD191: 9.061516942e-05 | AE191: 4.530758471e-05
B192: 2000 | C192: 27027.02703 | D192: 13513.51351 | E192: 5405.405405 | F192: 2702.702703 | G192: 1351.351351 | H192: 675.6756757 | I192: 337.8378378 | J192: 168.9189189 | K192: 84.45945946 | L192: 42.22972973 | M192: 21.11486486 | N192: 10.55743243 | O192: 5.278716216 | P192: 2.639358108 | Q192: 1.319679054 | R192: 0.659839527 | S192: 0.3299197635 | T192: 0.1649598818 | U192: 0.08247994088 | V192: 0.04123997044 | W192: 0.02061998522 | X192: 0.01030999261 | Y192: 0.005154996305 | Z192: 0.002577498152 | AA192: 0.001288749076 | AB192: 0.0006443745381 | AC192: 0.0003221872691 | AD192: 0.0001610936345 | AE192: 8.054681726e-05
B193: 4000 | C193: 108108.1081 | D193: 54054.05405 | E193: 21621.62162 | F193: 10810.81081 | G193: 5405.405405 | H193: 2702.702703 | I193: 1351.351351 | J193: 675.6756757 | K193: 337.8378378 | L193: 168.9189189 | M193: 84.45945946 | N193: 42.22972973 | O193: 21.11486486 | P193: 10.55743243 | Q193: 5.278716216 | R193: 2.639358108 | S193: 1.319679054 | T193: 0.659839527 | U193: 0.3299197635 | V193: 0.1649598818 | W193: 0.08247994088 | X193: 0.04123997044 | Y193: 0.02061998522 | Z193: 0.01030999261 | AA193: 0.005154996305 | AB193: 0.002577498152 | AC193: 0.001288749076 | AD193: 0.0006443745381 | AE193: 0.0003221872691
B194: 8000 | C194: 432432.4324 | D194: 216216.2162 | E194: 86486.48649 | F194: 43243.24324 | G194: 21621.62162 | H194: 10810.81081 | I194: 5405.405405 | J194: 2702.702703 | K194: 1351.351351 | L194: 675.6756757 | M194: 337.8378378 | N194: 168.9189189 | O194: 84.45945946 | P194: 42.22972973 | Q194: 21.11486486 | R194: 10.55743243 | S194: 5.278716216 | T194: 2.639358108 | U194: 1.319679054 | V194: 0.659839527 | W194: 0.3299197635 | X194: 0.1649598818 | Y194: 0.08247994088 | Z194: 0.04123997044 | AA194: 0.02061998522 | AB194: 0.01030999261 | AC194: 0.005154996305 | AD194: 0.002577498152 | AE194: 0.001288749076
B195: 16000 | C195: 1729729.73 | D195: 864864.8649 | E195: 345945.9459 | F195: 172972.973 | G195: 86486.48649 | H195: 43243.24324 | I195: 21621.62162 | J195: 10810.81081 | K195: 5405.405405 | L195: 2702.702703 | M195: 1351.351351 | N195: 675.6756757 | O195: 337.8378378 | P195: 168.9189189 | Q195: 84.45945946 | R195: 42.22972973 | S195: 21.11486486 | T195: 10.55743243 | U195: 5.278716216 | V195: 2.639358108 | W195: 1.319679054 | X195: 0.659839527 | Y195: 0.3299197635 | Z195: 0.1649598818 | AA195: 0.08247994088 | AB195: 0.04123997044 | AC195: 0.02061998522 | AD195: 0.01030999261 | AE195: 0.005154996305
B196: 32000 | C196: 6918918.919 | D196: 3459459.459 | E196: 1383783.784 | F196: 691891.8919 | G196: 345945.9459 | H196: 172972.973 | I196: 86486.48649 | J196: 43243.24324 | K196: 21621.62162 | L196: 10810.81081 | M196: 5405.405405 | N196: 2702.702703 | O196: 1351.351351 | P196: 675.6756757 | Q196: 337.8378378 | R196: 168.9189189 | S196: 84.45945946 | T196: 42.22972973 | U196: 21.11486486 | V196: 10.55743243 | W196: 5.278716216 | X196: 2.639358108 | Y196: 1.319679054 | Z196: 0.659839527 | AA196: 0.3299197635 | AB196: 0.1649598818 | AC196: 0.08247994088 | AD196: 0.04123997044 | AE196: 0.02061998522
B197: 64000 | C197: 27675675.68 | D197: 13837837.84 | E197: 5535135.135 | F197: 2767567.568 | G197: 1383783.784 | H197: 691891.8919 | I197: 345945.9459 | J197: 172972.973 | K197: 86486.48649 | L197: 43243.24324 | M197: 21621.62162 | N197: 10810.81081 | O197: 5405.405405 | P197: 2702.702703 | Q197: 1351.351351 | R197: 675.6756757 | S197: 337.8378378 | T197: 168.9189189 | U197: 84.45945946 | V197: 42.22972973 | W197: 21.11486486 | X197: 10.55743243 | Y197: 5.278716216 | Z197: 2.639358108 | AA197: 1.319679054 | AB197: 0.659839527 | AC197: 0.3299197635 | AD197: 0.1649598818 | AE197: 0.08247994088

Sheet Listas
C2: Propridades Comuns das Rochas
C3: Extremo | D3: Normalidade | E3: Normalidade | F3: Extremo
B4: Material do Aqüífero | C4: Kmin, m/d | D4: Kmin, m/d | E4: Kmax, m/d | F4: Kmax, m/d | G4: Tipo da Rocha | I4: Material Pré-Filtro | J4: Selo Poço
B5: Cascalho | C5: 27.432 | D5: 91.44 | E5: 914.4 | F5: 914.4 | G5: Rocha Sedimentar inconsolidada | I5: Cascalho | J5: Bentonita
B6: Areia e Cascalho | C6: 0.3048 | D6: 9.144 | E6: 91.44 | F6: 91.44 | G6: Rocha Sedimentar inconsolidada | I6: Areia Grossa | J6: Cimento
B7: Areia Grossa | C7: 15.24 | D7: 21.336 | E7: 91.44 | F7: 91.44 | G7: Rocha Sedimentar inconsolidada | I7: Areia Média | J7: Argila
B8: Areia Média | C8: 0.3048 | D8: 6.096 | E8: 21.336 | F8: 60.96 | G8: Rocha Sedimentar inconsolidada | I8: Areia Fina | J8: Sem Selo
B9: Areia Fina | C9: 0.01524 | D9: 0.9144 | E9: 6.096 | F9: 6.096 | G9: Rocha Sedimentar inconsolidada | I9: Sem Pré-Filtro
B10: Terraço Aluvionar | C10: 0.003048 | D10: 0.3048 | E10: 30.48 | F10: 91.44 | G10: Rocha Sedimentar inconsolidada
B11: Areia Fina e Silte | C11: 0.003048 | D11: 0.03048 | E11: 9.144 | F11: 15.24 | G11: Rocha Sedimentar inconsolidada
B12: Silte, Duna | C12: 9.144e-05 | D12: 0.0003048 | E12: 0.03048 | F12: 1.8288 | G12: Rocha Sedimentar inconsolidada
B13: Brecha Glacial | C13: 9.144e-08 | D13: 0.0009144 | E13: 0.09144 | F13: 0.18288 | G13: Rocha Sedimentar inconsolidada
B14: Solo Argiloso (superfície) | C14: 0.003048 | D14: 0.003048 | E14: 0.3048 | F14: 0.3048 | G14: Rocha Sedimentar inconsolidada
B15: Argila | C15: 3.048e-07 | D15: 3.048e-06 | E15: 3.048e-05 | F15: 0.0003048 | G15: Rocha Sedimentar inconsolidada
B16: Argila Marinha não alterada | C16: 6.096e-08 | D16: 6.096e-08 | E16: 0.00018288 | F16: 0.00018288 | G16: Rocha Carbonática
B17: Karst | C17: 0.09144 | D17: 3.048 | E17: 304.8 | F17: 3048 | G17: Rocha Carbonática
B18: Recife Calcário | C18: 0.09144 | D18: 3.048 | E18: 304.8 | F18: 1828.8 | G18: Rocha Carbonática
B19: Calcário, Dolomita | C19: 9.144e-05 | D19: 0.0012192 | E19: 0.03048 | F19: 0.6096 | G19: Rocha Carbonática
B20: Arenito Granulometria Fina | C20: 3.048e-05 | D20: 0.0003048 | E20: 0.3048 | F20: 1.8288 | G20: Rocha Sedimentar consolidada
B21: Arenito Granulometria Média | C21: 0.0003048 | D21: 0.3048 | E21: 3.048 | F21: 24.384 | G21: Rocha Sedimentar consolidada
B22: Siltito | C22: 3.048e-07 | D22: 3.048e-06 | E22: 0.001524 | F22: 0.012192 | G22: Rocha Sedimentar consolidada
B23: Argilito | C23: 9.144e-10 | D23: 3.048e-07 | E23: 3.048e-06 | F23: 9.144e-06 | G23: Rocha Sedimentar consolidada
B24: Anidrito | C24: 3.048e-08 | D24: 3.048e-08 | E24: 0.0018288 | F24: 0.0018288 | G24: Rocha Sedimentar consolidada
B25: Folhelho | C25: 3.048e-09 | D25: 3.048e-08 | E25: 3.048e-05 | F25: 0.3048 | G25: Rocha metamórfica ou magmática
B26: Basalto Permeável | C26: 0.03048 | D26: 0.3048 | E26: 30.48 | F26: 1828.8 | G26: Rocha metamórfica ou magmática
B27: Rx Ígnea/Metamórfica Fraturada | C27: 0.0003048 | D27: 0.01524 | E27: 3.048 | F27: 30.48 | G27: Rocha metamórfica ou magmática
B28: Granito Alterado | C28: 0.03048 | D28: 0.3048 | E28: 3.048 | F28: 6.096 | G28: Rocha metamórfica ou magmática
B29: Gabro Fraturado | C29: 0.03048 | D29: 0.03048 | E29: 0.3048 | F29: 0.3048 | G29: Rocha metamórfica ou magmática
B30: Basalto | C30: 0 | D30: 0.009144 | E30: 0.03048 | F30: 0.03048 | G30: Rocha metamórfica ou magmática
B31: Rx Ígnea/Metamórfica Não Fraturada | C31: 0 | D31: 2.7432e-09 | E31: 1.8288e-05 | F31: 1.8288e-05 | G31: Rocha metamórfica ou magmática
B34: 1 Bouwer, 1978 (order of magnitude in meter/day)

Sheet Referências
